{"text_format":"1","workbook":"xlsx","n_sheets":1,"sheets":["HC All"],"not_rendered":{"charts":0,"images":0,"macros":0,"external_links":0,"defined_names":34,"comments":0,"pivot_tables":0},"unopened":[],"bounds":{"document_bytes":16777216,"sheet_cells":100000,"rows_first":2000,"rows_last":500,"rows_between":2000,"halvings":0,"cell_chars":16384,"cell_head_chars":4096},"cells_cut":0,"cells_raw":0,"read":"whole","date_system":"1900"}

{"sheet":"HC All","index":0,"n_rows":563,"n_cols":72,"rows_kept":563,"cut":false,"hidden":false,"merged":[]}
["Date of Award","Credit Year","Status","Project Name","Project Address","City"," ZIP","Lat","Long","Project County","Credit Type","Owners","Type of Construction","Population","No. of Units","No. of Buildings","Credit Amount     (10 yr amt)","Housing Credit Equity","Tax Exempt Bonds Issued","Tax Exempt Perm Loan Amount","Rate","Term","Placed in Service (earliest date)","1st Year Credit Period per 8609","Date Used to Calc Comp Period","End YR 15 (Dec 31)","Ext Yrs","End of Comp (Dec 31). ","Owner 1","Owner 2","Owner Adress","City","ST","Zip","Email","Phone","Chief Elected Official","Organization","Address","City","ST","Zip","Targeting Summary","Email","Phone","Market Need # of Units","Total # of units","Unit Type: SRO","Eff (0-bdrn)","1-Bdrm","2-Bdrm","3-Bdrm","4-Bdrm","5-Bdrm","Rowhouse","Mkt","Mgr","Min Set Aside",0.2,0.3,0.4,0.5,0.6,0.7,0.8,"mkt","mgr 60%","total","Ave Inc","Total Project Costs","Jobs per $1 million ","Wages Pd per $1 million"]
[]
["April mtg",2025,"Active","Aspen Village 4%","3010 11th Ave S","Great Falls",59405,47.491388000000001,-111.255574,"Cascade",0.04,"For-Profit","Acq/Rehab","Family",60,3,7523630,6319217,11984655,null,6.0499999999999998E-2,40,null,null,null,null,null,null,"Aspen Village Housing Partners, LP","Gavin Taylor","2607 2nd Ave, Suite 300","Seattle","WA",98121,"gavin.taylor@vitus.com","(253) 886-2906","Cory Reeves Mayor","City of Great Falls","PO Box 5021","Great Falls","MT",59403,60,null,"(406) 455-8451",null,null,null,null,null,27,30,3,null,null,null,null,"40-60",null,null,null,null,60,null,null,null,null,{"$f":"SUM(BG3:BO3)","v":60},{"$f":"((BH3*BH$1)+(BI3*BI$1)+(BJ3*BJ$1)+(BK3*BK$1)+(BL3*BL$1)+(BM3*BM$1))/SUM(BH3:BM3)","v":0.6},18158568,{"$f":"VLOOKUP(M3,#REF!,2,TRUE)*(BR3/1000000)","v":{"$error":"#REF!"}},{"$f":"VLOOKUP(M3,#REF!,3,TRUE)*(BR3/1000000)","v":{"$error":"#REF!"}}]
["2024-10-22",2025,"Active","Skyview","TBD Jackson St","Billings",59101,45.755600000000001,-108.51479,"Yellowstone",0.09,"For-Profit","New Const","Family",26,10,4702040,3925811,0,0,0,null,null,null,null,null,null,null,"Echo Development","Gene Leuwer","1625 E 6th Ave","Helena","MT",59601,"gleuwer1139@msn.com",4064595332,"Bill Cole Mayor","City of Billings","PO Box 1178","Billings","MT",59105,"40/50/60/80","coleb@billingsmt.gov",4066578296,10425,{"$f":"SUM(AV4:BE4)","v":26},null,null,5,8,13,null,null,null,null,null,"Ave Inc",null,null,6,6,5,null,9,null,null,26,{"$f":"((BH4*BH$1)+(BI4*BI$1)+(BJ4*BJ$1)+(BK4*BK$1)+(BL4*BL$1)+(BM4*BM$1))/SUM(BH4:BM4)","v":0.60000000000000009},9074050,{"$f":"VLOOKUP(M4,#REF!,2,TRUE)*(BR4/1000000)","v":{"$error":"#REF!"}},{"$f":"VLOOKUP(M4,#REF!,3,TRUE)*(BR4/1000000)","v":{"$error":"#REF!"}}]
["2024-10-22",2025,"Active","LB Lofts 9%","201 Sioux Ln","Billings",59105,45.82461,-108.48148,"Yellowstone",0.09,"Non-Profit","New Const","Family",22,4,6500000,5524448,null,null,null,null,null,null,null,null,null,null,"Homeword / HA Billings","Heather McMilin","1535 Liberty ln STE 116A","Missoula","MT",59801,"heather@homeword.org",4065324663,"Bill Cole Mayor","City of Billings","PO Box 1178","Billings","MT",59105,"40/50/60","coleb@billingsmt.gov",4066578296,1254,22,null,null,null,{"$f":"17+5","v":22},null,null,null,null,null,null,"40-60",null,null,null,17,5,null,null,null,null,22,0.52272727272727271,6414158,{"$f":"VLOOKUP(M5,#REF!,2,TRUE)*(BR5/1000000)","v":{"$error":"#REF!"}},{"$f":"VLOOKUP(M5,#REF!,3,TRUE)*(BR5/1000000)","v":{"$error":"#REF!"}}]
["Bd Clsing",2025,"Active","LB Lofts 4%","313 S 8th Ave","Laurel",59044,45.664679999999997,-108.78151,"Yellowstone",0.04,"Non-Profit","New Const","Senior",109,24,11761520,10231498,18500000,8500000,6.6799999999999998E-2,35,null,null,null,null,null,null,"Homeword / HA Billings","Heather McMilin","1535 Liberty ln STE 116A","Missoula","MT",59801,"heather@homeword.org",4065324663,"Dave Waggoner Mayor","City of Laurel","115 West 1st Ave","Laurel","MT",59044,"40/50/60","citymayor@laurel.mt.gov",4066288456,1254,109,null,null,29,{"$f":"34+33+3+8","v":78},null,null,null,null,null,2,"40-60",null,null,3,{"$f":"29+34+8","v":71},33,null,null,null,2,109,0.5280373831775701,30573048,{"$f":"VLOOKUP(M6,#REF!,2,TRUE)*(BR6/1000000)","v":{"$error":"#REF!"}},{"$f":"VLOOKUP(M6,#REF!,3,TRUE)*(BR6/1000000)","v":{"$error":"#REF!"}}]
["2024-10-22",2025,"Active","Opportunity Place","901 S. Third St. W.","Missoula",59801,46.866630000000001,-114.01009999999999,"Missoula",0.09,"Non-Profit","New Const","Family",24,1,6500000,5362500,0,0,0,0,null,null,null,null,null,null,"42-44 Developers","Mike Bouchee","2550 Triple Creek Drive","Missoula","MT",59804,"mike@boucheedevelopment.com",4062141618,"Andrea Davis Mayor","City of Missoula","435 Ryman St","Missoula","MT",59801,"40/50/60/70/80","staffm@ci.missoua.mt.us ","406-552-6001",2194,24,null,null,9,15,null,null,null,null,null,null,"Ave Inc",null,null,1,1,20,1,1,null,null,24,0.6,8652454,{"$f":"VLOOKUP(M7,#REF!,2,TRUE)*(BR7/1000000)","v":{"$error":"#REF!"}},{"$f":"VLOOKUP(M7,#REF!,3,TRUE)*(BR7/1000000)","v":{"$error":"#REF!"}}]
["2024-10-22",2025,"Active","Hidden Creek 9%","500 Oak Park Drive ","Bozeman",59718,45.690289999999997,-111.05395,"Gallatin",0.09,"Non-Profit","New Const","Family",21,1,6500000,5348500,0,0,null,null,null,null,null,null,null,null,"United Housing Ptnrs / HRDC Bzn","Tyson O'Connell","545 Blaine St","Missoula","MT",59801,"tyson@uhousingpartners.com",4065314745,"Terry Cunningham Mayor","City of Bozeman","121 N Rouse Ave","Bozeman","MT",59715,60,"tcunningham@bozeman.net",4065953295,2393,20,null,null,20,null,null,null,null,null,null,null,"40-60",null,null,null,null,20,null,null,null,null,20,0.6,6603969,{"$f":"VLOOKUP(M8,#REF!,2,TRUE)*(BR8/1000000)","v":{"$error":"#REF!"}},{"$f":"VLOOKUP(M8,#REF!,3,TRUE)*(BR8/1000000)","v":{"$error":"#REF!"}}]
["Bd Clsing",2025,"Active","Hidden Creek 4%","501 Oak Park Drive ","Bozeman",59718,45.690289999999997,-111.05395,"Gallatin",0.04,"Non-Profit","New Const","Family",{"$f":"166-O8","v":145},5,27999530,23517250,35700000,16968921,6.5000000000000002E-2,30,null,null,null,null,null,null,"United Housing Ptnrs / HRDC Bzn","Tyson O'Connell","545 Blaine St","Missoula","MT",59801,"tyson@uhousingpartners.com",4065314745,"Terry Cunningham Mayor","City of Bozeman","121 N Rouse Ave","Bozeman","MT",59715,"30/60/70","tcunningham@bozeman.net",4065953295,2393,162,null,null,68,80,null,14,null,null,null,null,"40-60",null,8,null,null,{"$f":"68+48+14","v":130},24,null,null,null,162,0.6,59465304,{"$f":"VLOOKUP(M9,#REF!,2,TRUE)*(BR9/1000000)","v":{"$error":"#REF!"}},{"$f":"VLOOKUP(M9,#REF!,3,TRUE)*(BR9/1000000)","v":{"$error":"#REF!"}}]
["2024-10-22",2025,"Active","Polson Gardens","TBD between 7th Ave. E. and 5th Ave. E. ","Polson",59860,47.69003,-114.149677,"Lake",0.09,"For-Profit","New Const","Senior",24,6,6500000,5361964,0,0,0,0,null,null,null,null,null,null,"Housing Solutions","Alex Burkhalter","PO Box 2099","Missoula","MT",59806,"alex@housing-solutions.org",4062031558,"Eric Huffine (Mayor)","City of Polson","106 1st Street","Polson","MT",59860,"40/50/60","mayor@cityofpolson.com","406-883-8205",154,24,null,null,11,12,null,null,null,null,null,1,"40-60",null,null,2,13,8,null,null,null,1,24,0.52608695652173909,7287461,{"$f":"VLOOKUP(M10,#REF!,2,TRUE)*(BR10/1000000)","v":{"$error":"#REF!"}},{"$f":"VLOOKUP(M10,#REF!,3,TRUE)*(BR10/1000000)","v":{"$error":"#REF!"}}]
["2024-10-22",2025,"Active","The Homestead","TBD Harrington Ave","Dillon",59725,45.22316,-112.62775000000001,"Beaverhead",0.09,"Non-Profit","New Const","Senior",20,1,6500000,5491951,0,0,0,0,null,null,null,null,null,null,"The Housing Company","Tiffany Hapney","PO Box 6943","Boise","ID",83707,"tiffanyh@ihfa.org",9862176594,"John McGinley Mayor","City of Dillon","125 N. Idaho Street","Dillon","MT",59725,"30/50/60","mayor@dillonmt.org ","406-683-4245",62,20,null,null,20,null,null,null,null,null,null,null,"40-60",null,2,null,12,6,null,null,null,null,20,0.51,6561537,{"$f":"VLOOKUP(M11,#REF!,2,TRUE)*(BR11/1000000)","v":{"$error":"#REF!"}},{"$f":"VLOOKUP(M11,#REF!,3,TRUE)*(BR11/1000000)","v":{"$error":"#REF!"}}]
["2024-12-17",2024,"Active","Aurora","3605 Grand Ave","Billings MT",59102,45.78783,-108.60587,"Yellowstone",0.04,"For-Profit","New Const","Family",156,2,16956070,14072131,27155000,25080000,5.8599999999999999E-2,40,null,null,null,null,null,null,"Kamaka Aff Housing","Jackson Sheppard","595 S Riverwoods PKWY STE 400","Logan","UT",84321,"Jackson.sheppard@netwasatch.com",9492579062,"Bill Cole Mayor","City of Billings","PO Box 1178","Billings","MT",59105,60,"coleb@billingsmt.gov",4066578296,1000,{"$f":"SUM(AV12:BE12)","v":156},null,null,50,72,34,null,null,null,null,null,"40-60",null,null,null,null,156,null,null,null,null,{"$f":"SUM(BH12:BO12)","v":156},{"$f":"((BH12*BH$1)+(BI12*BI$1)+(BJ12*BJ$1)+(BK12*BK$1)+(BL12*BL$1)+(BM12*BM$1))/SUM(BH12:BM12)","v":0.6},45384541,{"$f":"VLOOKUP(M12,#REF!,2,TRUE)*(BR12/1000000)","v":{"$error":"#REF!"}},{"$f":"VLOOKUP(M12,#REF!,3,TRUE)*(BR12/1000000)","v":{"$error":"#REF!"}}]
["2024-12-19",2024,"Active","The Manor","401 N 10th St","Hamilton",59840,46.249859999999998,-114.17032,"Ravalli",0.04,"Non-Profit","Acq/Rehab","Senior",60,1,3969300,3413262,7000000,3450000,7.7499999999999999E-2,16,null,null,null,null,null,null,"Sapphire Lutheran Homes","Cole Harden","501 N 10th Ave","Hamilton","MT",59840,"charden@stjohnsunited.org",4063632800,"Dominic Farrenkopf Mayor","City of Hamilton","223 S 2nd St","Hamilton ","MT",59840,"30/50/60","dfarrenkopf@cityofhamilton.net",4063632101,195,60,null,null,42,18,null,null,null,null,null,null,"40/60",null,9,null,21,30,null,null,null,null,{"$f":"SUM(BH13:BO13)","v":60},{"$f":"((BH13*BH$1)+(BI13*BI$1)+(BJ13*BJ$1)+(BK13*BK$1)+(BL13*BL$1)+(BM13*BM$1))/SUM(BH13:BM13)","v":0.52},12106976,{"$f":"VLOOKUP(M13,#REF!,2,TRUE)*(BR13/1000000)","v":{"$error":"#REF!"}},{"$f":"VLOOKUP(M13,#REF!,3,TRUE)*(BR13/1000000)","v":{"$error":"#REF!"}}]
["2024-08-30",2024,"Active","Bigfork Sr (orig 2006 Crestview Apts resyn)","103 Crestview Drive","Big Fork",59911,48.069420000000001,-114.0818,"Flathead",0.04,"For-Profit","Acq/Rehab","Family",24,5,2614040,2195754,3100000,1600000,6.25E-2,20,null,null,null,null,null,null,"American Covenant Senior Housing","Gerald Fritts","234 Shelter Valley Dr","Kalispell","MT",59901,"gmf@acshf.com",4062356593,"Pamela Homquist Commissioner","Flathead County","800 S Main","Kalispell","MT",59901,"30/60","pam.holmquist@flathead.mt.gov",4067585503,522,{"$f":"SUM(AV14:BE14)","v":24},null,null,16,8,null,null,null,null,null,null,"40-60",null,4,null,null,20,null,null,null,null,{"$f":"SUM(BG14:BO14)","v":24},{"$f":"((BH14*BH$1)+(BI14*BI$1)+(BJ14*BJ$1)+(BK14*BK$1)+(BL14*BL$1)+(BM14*BM$1))/SUM(BH14:BM14)","v":0.54999999999999993},6208908,{"$f":"VLOOKUP(M14,#REF!,2,TRUE)*(BR14/1000000)","v":{"$error":"#REF!"}},{"$f":"VLOOKUP(M14,#REF!,3,TRUE)*(BR14/1000000)","v":{"$error":"#REF!"}}]
["2023-10-23",2024,"Active","Elmore Roberts (original 1987)","6 6th Street S","Great Falls",59401,47.504930000000002,-111.2975,"Cascade",0.09,"Non-Profit","Acq/Rehab","Family",60,1,6500000,5621937,null,null,4.0524999999999999E-2,30,null,null,null,null,null,null,"Community Pres Prtnrs","Ryan Kucich","17782 Sky Park Circle","Irvine","CA",92614,"rkucich@cpp-housing.com",2099814595,"Bob Kelly Manor","City of Great Falls","PO Box 5021","Great Falls","MT",59403,50,"commission@greatfallsmt.net",4068700212,676,{"$f":"SUM(AV15:BE15)","v":60},null,null,29,30,null,null,null,null,null,1,"40/60",null,null,59,null,null,null,null,null,1,{"$f":"SUM(BH15:BO15)","v":60},{"$f":"((BH15*BH$1)+(BI15*BI$1)+(BJ15*BJ$1)+(BK15*BK$1)+(BL15*BL$1)+(BM15*BM$1))/SUM(BH15:BM15)","v":0.4},12459340,{"$f":"VLOOKUP(M15,#REF!,2,TRUE)*(BR15/1000000)","v":{"$error":"#REF!"}},{"$f":"VLOOKUP(M15,#REF!,3,TRUE)*(BR15/1000000)","v":{"$error":"#REF!"}}]
["2023-10-23",2024,"Active","Midtown Aspen 9%","706 North 7th Ave","Bozeman",59715,45.68694,-111.04581,"Gallatin",0.09,"For-Profit","New Const","Family",23,1,6350000,5670000,0,0,0,null,null,null,null,null,null,null,"Boundary Dev and HRDC","Joseph Walsh","PO Box 6220","Bozeman","MT",59771,"joe@boundarydev.com",5037849411,"Cyndy Andrus Mayor","City of Bozeman","121 N Rouse Ave","Bozeman","MT",59715,"50/60",null,4065822383,1688,23,null,null,14,5,4,null,null,null,null,null,"Ave Inc",null,null,null,17,6,null,null,null,null,23,0.52608695652173909,6670000,{"$f":"VLOOKUP(M16,#REF!,2,TRUE)*(BR16/1000000)","v":{"$error":"#REF!"}},{"$f":"VLOOKUP(M16,#REF!,3,TRUE)*(BR16/1000000)","v":{"$error":"#REF!"}}]
["Bd Clsing",2025,"Active","Midtown Aspen (4%)","706 North 7th Ave","Bozeman",59715,45.68694,-111.04581,"Gallatin",0.04,"For-Profit","New Const","Family",17,1,2097880,1890000,null,null,null,null,null,null,null,null,null,null,"Boundary Dev and HRDC","Joseph Walsh","PO Box 6220","Bozeman","MT",59771,"joe@boundarydev.com",5037849411,"Cyndy Andrus Mayor","City of Bozeman","121 N Rouse Ave","Bozeman","MT",59715,60,null,4065822383,1668,{"$f":"SUM(AV17:BE17)","v":17},null,null,10,5,2,null,null,null,null,null,"40/60",null,null,null,null,17,null,null,null,null,{"$f":"SUM(BH17:BO17)","v":17},{"$f":"((BH17*BH$1)+(BI17*BI$1)+(BJ17*BJ$1)+(BK17*BK$1)+(BL17*BL$1)+(BM17*BM$1))/SUM(BH17:BM17)","v":0.6},4930000,{"$f":"VLOOKUP(M17,#REF!,2,TRUE)*(BR17/1000000)","v":{"$error":"#REF!"}},{"$f":"VLOOKUP(M17,#REF!,3,TRUE)*(BR17/1000000)","v":{"$error":"#REF!"}}]
["2023-12-23",2024,"Active","Twin Creek Apts 9","300 Dorothy St","Helena",59601,46.588340000000002,-111.96698000000001,"Lewis and Clark",0.09,"For-Profit","New Const","Family",20,1,6500000,5524446,0,0,3.8324999999999998E-2,16,null,null,null,null,null,null,"United Housing Ptnrs LLC","Tyson O'Connell","545 Blaine St","Missoula","MT",59801,"tyson@uhousingpartners.com",4065314745,"Wilmot Collins Mayor","City of Helena","316 N Park Ave","Helena","MT",59623,60,"wcollins@helena.gov",4064478410,810,{"$f":"SUM(AV18:BE18)","v":20},null,null,20,null,null,null,null,null,null,null,"Ave Inc",null,null,null,null,20,null,null,null,null,{"$f":"SUM(BH18:BO18)","v":20},{"$f":"((BH18*BH$1)+(BI18*BI$1)+(BJ18*BJ$1)+(BK18*BK$1)+(BL18*BL$1)+(BM18*BM$1))/SUM(BH18:BM18)","v":0.6},6002691,{"$f":"VLOOKUP(M18,#REF!,2,TRUE)*(BR18/1000000)","v":{"$error":"#REF!"}},{"$f":"VLOOKUP(M18,#REF!,3,TRUE)*(BR18/1000000)","v":{"$error":"#REF!"}}]
["2024-08-30",2024,"Active","Twin Creek Apts 4","300 Dorothy St","Helena",59601,46.588340000000002,-111.96698000000001,"Lewis and Clark",0.04,"For-Profit","New Const","Family",52,2,5926220,5036783,null,null,3.8324999999999998E-2,20,null,null,null,null,null,null,"United Housing Ptnrs LLC","Tyson O'Connell","545 Blaine St","Missoula","MT",59801,"tyson@uhousingpartners.com",4065314745,"Wilmot Collins Mayor","City of Helena","316 N Park Ave","Helena","MT",59623,"30/60/70","wcollins@helena.gov",4064478410,810,{"$f":"SUM(AV19:BE19)","v":52},null,null,24,16,12,null,null,null,null,null,"Ave Inc",null,12,null,null,4,36,null,null,null,{"$f":"SUM(BH19:BO19)","v":52},{"$f":"((BH19*BH$1)+(BI19*BI$1)+(BJ19*BJ$1)+(BK19*BK$1)+(BL19*BL$1)+(BM19*BM$1))/SUM(BH19:BM19)","v":0.6},16702104,{"$f":"VLOOKUP(M19,#REF!,2,TRUE)*(BR19/1000000)","v":{"$error":"#REF!"}},{"$f":"VLOOKUP(M19,#REF!,3,TRUE)*(BR19/1000000)","v":{"$error":"#REF!"}}]
["2023-10-23",2024,"Active","Mitchell Court","4154 Mitchell Ave","Billings",59101,45.761710000000001,-108.51721000000001,"Yellowstone",0.09,"For-Profit","New Const","Family",32,5,6500000,5394461,null,null,3.8324999999999998E-2,20,null,null,null,null,null,null,"GL Development","Gene Leuwer","1625 E 6th Ave","Helena","MT",59601,"gleuwer1139@msn.com",4064595332,"Bill Cole Mayor","City of Billings","PO Box 1178","Billings","MT",59103,"50/60","coleb@billingsmt.gov",4066578433,1131,{"$f":"SUM(AV20:BE20)","v":32},null,null,14,14,4,null,null,null,null,null,"40/60",null,null,null,23,9,null,null,null,null,{"$f":"SUM(BH20:BO20)","v":32},{"$f":"((BH20*BH$1)+(BI20*BI$1)+(BJ20*BJ$1)+(BK20*BK$1)+(BL20*BL$1)+(BM20*BM$1))/SUM(BH20:BM20)","v":0.52812499999999996},11176278,{"$f":"VLOOKUP(M20,#REF!,2,TRUE)*(BR20/1000000)","v":{"$error":"#REF!"}},{"$f":"VLOOKUP(M20,#REF!,3,TRUE)*(BR20/1000000)","v":{"$error":"#REF!"}}]
["2023-10-23",2024,"Active","Riverstone Senior Res","123 Skeels Ave","Hamilton",59840,46.249830000000003,-114.15173,"Ravalli",0.09,"For-Profit","New Const","Senior",23,1,6500000,5426957,null,null,3.8324999999999998E-2,16,null,null,null,null,null,null,"Housing Solutions, LLC","Alex Burkhalter","PO Box 2099","Missoula","MT",59806,"alex@housing-solutions.org",4062031558,"Dominic Farrenkopf Mayor","City of Hamilton","223 S 2nd St","Hamilton","MT",59840,"40/50/60","dfarrenkopf@cityofhamilton.net",4063632101,148,23,null,null,16,6,null,null,null,null,null,1,"40/60",null,null,3,11,8,null,null,null,1,23,0.52272727272727271,6979519,{"$f":"VLOOKUP(M21,#REF!,2,TRUE)*(BR21/1000000)","v":{"$error":"#REF!"}},{"$f":"VLOOKUP(M21,#REF!,3,TRUE)*(BR21/1000000)","v":{"$error":"#REF!"}}]
["2023-11-17",2023,"Active","Baxter Apartments","2561 Trade Wind Ln","Bozeman",59718,45.699049044332298,-111.07155540269601,"Gallatin",0.04,"For-Profit","Acq/Rehab","Family",50,5,4693710,4228735,7300000,550000,6.0999999999999999E-2,15,null,null,null,null,null,null,"DevCo Preservation","Chase Huber","10900 NE 8th St STE 1200","Bellevue","WA",98004,"chase.huber@devcowa.com",6122821977,"Cyndy Andrus Mayor","City of Bozeman","121 N Rouse Ave","Bozeman","MT",59715,60,null,4065822383,3551,50,null,null,20,30,null,null,null,null,null,null,"40/60",null,null,null,null,50,null,null,null,null,50,0.6,13942393,{"$f":"VLOOKUP(M22,#REF!,2,TRUE)*(BR22/1000000)","v":{"$error":"#REF!"}},{"$f":"VLOOKUP(M22,#REF!,3,TRUE)*(BR22/1000000)","v":{"$error":"#REF!"}}]
["2023-11-15",2023,"Active","N 3rd Apts","699 N 3rd Ave","Bozeman",59718,45.686630000000001,-111.04103000000001,"Gallatin",0.04,"For-Profit","New Const","Family",216,1,35558210,31646806,49000000,26000000,6.0400000000000002E-2,30,null,null,null,null,null,null,"DevCo Preservation","Chase Huber","10900 NE 8th St STE 1200","Bellevue","WA",98004,"chase.huber@devcowa.com",4257360580,"Cyndy Andrus Mayor","City of Bozeman","121 N Rouse Ave","Bozeman","MT",59715,"50/60/70",null,4065822383,4952,{"$f":"SUM(AV23:BE23)","v":210},null,null,78,82,43,7,null,null,null,null,"Ave Inc",null,null,null,null,216,null,null,null,null,{"$f":"SUM(BG23:BO23)","v":216},{"$f":"((BH23*BH$1)+(BI23*BI$1)+(BJ23*BJ$1)+(BK23*BK$1)+(BL23*BL$1)+(BM23*BM$1))/SUM(BH23:BM23)","v":0.6},73485712,{"$f":"VLOOKUP(M23,#REF!,2,TRUE)*(BR23/1000000)","v":{"$error":"#REF!"}},{"$f":"VLOOKUP(M23,#REF!,3,TRUE)*(BR23/1000000)","v":{"$error":"#REF!"}}]
["2023-12-14",2023,"Active","The Beaumont (formerly Lumberyard Apts)","1525 North 14th Ave","Bozeman",59715,45.695118999999998,-111.055083,"Gallatin",0.04,"For-Profit","New Const","Family",155,1,23551220,20487512,35000000,0,0.04,16,null,null,null,null,null,null,"Reuter Walton Development LLC","Paul Keenen","4450 Excelsior Blvd STE 400","St Louis Park","MN",55416,"pkeenan@reuterwalton.com",6122821977,"Cyndy Andrus Mayor","City of Bozeman","121 N Rouse Ave","Bozeman","MT",59715,60,null,4065822383,3551,155,null,null,67,43,45,null,null,null,null,null,"40/60",null,null,null,null,155,null,null,null,null,155,0.6,51935664,{"$f":"VLOOKUP(M24,#REF!,2,TRUE)*(BR24/1000000)","v":{"$error":"#REF!"}},{"$f":"VLOOKUP(M24,#REF!,3,TRUE)*(BR24/1000000)","v":{"$error":"#REF!"}}]
["2023-10-12",2023,"Active","Highland Manor 4% (orig 1993 resyn)","1315-1325 Jefferson Ave","Havre",59501,48.539270000000002,-109.69504000000001,"Hill",0.04,"For-profit","Acq/Rehab","Family",32,2,2487870,2139350,4000000,null,2.2499999999999999E-2,20,null,null,{"$f":"IF(W25>X25,W25,X25)","v":"00:00:00"},{"$f":"DATE(YEAR(Y25)+14,MONTH(Y25),DAY(Y25))","v":{"$error":"#NUM!"}},35,{"$f":"DATE(YEAR(Z25)+AA25,MONTH(Z25),DAY(Z25))","v":{"$error":"#NUM!"}},"Echo Enterprises LLC","Beki Brandborg","4835 Echo Dr","Helena","MT",59602,"beki@blackfoot.net",4064312151,"Doug Kaercher Mayor","City of Havre","520 4th St","Havre","MT",59501,"30/50/60",null,null,109,{"$f":"SUM(AV25:BE25)","v":32},null,null,7,25,null,null,null,null,null,null,"40/60",null,16,null,10,6,null,null,null,null,{"$f":"SUM(BG25:BO25)","v":32},0.41875000000000001,6966344,{"$f":"VLOOKUP(M25,#REF!,2,TRUE)*(BR25/1000000)","v":{"$error":"#REF!"}},{"$f":"VLOOKUP(M25,#REF!,3,TRUE)*(BR25/1000000)","v":{"$error":"#REF!"}}]
["2023-10-06",2023,"Active","Parkview Village - Vitus","624 5th Ave NW","Great Falls",59404,47.512479999999996,-111.32349000000001,"Cascade",0.04,"For-Profit","Acq/Rehab","Family",84,10,6841480,6156724,11500000,12330000,6.2600000000000003E-2,17,null,null,{"$f":"IF(W26>X26,W26,X26)","v":"00:00:00"},{"$f":"DATE(YEAR(Y26)+14,MONTH(Y26),DAY(Y26))","v":{"$error":"#NUM!"}},null,{"$f":"DATE(YEAR(Z26)+AA26,MONTH(Z26),DAY(Z26))","v":{"$error":"#NUM!"}},"Vitus Development IV LLC","Samantha Cullen","415 First Avenue North, STE 19240","Seattle ","WA",98004,"samantha.cullen@vitus.com","(206) 832-1326","Bob Kelly Mayor","City of Great Falls","PO Box 5021","Great Falls","MT ",59403,"40/60","commission@greatfallsmt.net","(406) 870-0212",2619,{"$f":"SUM(AV26:BE26)","v":84},null,null,36,30,18,null,null,null,null,null,"40/60",null,null,null,null,84,null,null,null,null,{"$f":"SUM(BG26:BO26)","v":84},{"$f":"((BH26*BH$1)+(BI26*BI$1)+(BJ26*BJ$1)+(BK26*BK$1)+(BL26*BL$1)+(BM26*BM$1))/SUM(BH26:BM26)","v":0.6},19063276,{"$f":"VLOOKUP(M26,#REF!,2,TRUE)*(BR26/1000000)","v":{"$error":"#REF!"}},{"$f":"VLOOKUP(M26,#REF!,3,TRUE)*(BR26/1000000)","v":{"$error":"#REF!"}}]
["2023-07-25",2023,"Active","Union Place 4% (orig 2006 and 2004 ph I & II)","2500 Great Northern Loop","Missoula",59808,46.889626,-114.03527200000001,"Missoula",0.04,"For-Profit","Acq/Rehab","Family",63,6,5482680,4860169,8860000,5130000,5.96E-2,18,null,null,"00:00:00",{"$error":"#NUM!"},null,{"$error":"#NUM!"},"DevCo Preservation","Chase Huber","10900 NE 8th St STE 1200","Bellevue","WA",98004,"chase.huber@devcowa.com",4254587369,"Jordan Hess Mayor","City of Missoula","435 Ryman St","Missoula","MT",59802,0.6,"mayorstaff@ci.missoula.mt.us",4065526001,722,{"$f":"SUM(AV27:BE27)","v":63},null,null,null,36,27,null,null,null,null,null,"40/60",null,null,null,null,63,null,null,null,null,63,0.6,14547095,{"$f":"VLOOKUP(M27,#REF!,2,TRUE)*(BR27/1000000)","v":{"$error":"#REF!"}},{"$f":"VLOOKUP(M27,#REF!,3,TRUE)*(BR27/1000000)","v":{"$error":"#REF!"}}]
["2023-06-12",2023,"Active","Sunshine","600 13th Ave South","Great Falls",59405,47.490189999999998,-111.29738,"Cascade",0.04,"For-profit","Acq/Rehab","Senior",72,1,{"$f":"8594820*0.8","v":6875856},{"$f":"7734564*0.8","v":6187651.2000000002},{"$f":"15381160*0.8","v":12304928},{"$f":"10958000*0.8","v":8766400},5.2900000000000003E-2,35,"2023-05-23","1905-07-15","2023-05-23","2037-05-23",35,"2072-05-23","Community Preservation Partners/Hampstead","Karen Buckland","17782 Sky Park Circle","Irvine","CA",92614,"kbuckland@cpp-housing.com",9492368135,"Bob Kelly Mayor","City of Great Falls","PO Box 5021","Great Falls","MT",59403,"50% / 60%","commision@greatfallmt.net",4068700212,375,72,null,null,60,11,null,null,null,null,null,1,"40/60",null,null,null,46,25,null,null,null,1,{"$f":"SUM(BH28:BO28)","v":72},{"$f":"((BH28*BH$1)+(BI28*BI$1)+(BJ28*BJ$1)+(BK28*BK$1)+(BL28*BL$1)+(BM28*BM$1))/SUM(BH28:BM28)","v":0.53521126760563376},{"$f":"23151193*0.8","v":18520954.400000002},{"$f":"VLOOKUP(M28,#REF!,2,TRUE)*(BR28/1000000)","v":{"$error":"#REF!"}},{"$f":"VLOOKUP(M28,#REF!,3,TRUE)*(BR28/1000000)","v":{"$error":"#REF!"}}]
["2023-06-12",2023,"Active","Broadview Manor East","720 & 724 42A St North","Great Falls",59404,47.514060000000001,-111.23358,"Cascade",0.04,"For-profit","Acq/Rehab","Family",10,2,{"$f":"8594820*0.1","v":859482},{"$f":"7734564*0.1","v":773456.4},{"$f":"15381160*0.1","v":1538116},{"$f":"10958000*0.1","v":1095800},5.2900000000000003E-2,35,null,null,"00:00:00",{"$error":"#NUM!"},null,{"$error":"#NUM!"},"Community Preservation Partners/Hampstead","Karen Buckland","17783 Sky Park Circle","Irvine","CA",92614,"kbuckland@cpp-housing.com",9492368135,"Bob Kelly Mayor","City of Great Falls","PO Box 5022","Great Falls","MT",59403,"50% / 60%","commision@greatfallmt.net",4068700212,269,12,null,null,null,null,6,6,null,null,null,null,"40/60",null,null,null,null,12,null,null,null,null,12,0.6,{"$f":"23151193*0.1","v":2315119.3000000003},{"$f":"VLOOKUP(M29,#REF!,2,TRUE)*(BR29/1000000)","v":{"$error":"#REF!"}},{"$f":"VLOOKUP(M29,#REF!,3,TRUE)*(BR29/1000000)","v":{"$error":"#REF!"}}]
["2023-06-12",2023,"Active","Broadview Manor West","710 & 714 4th Ave NW","Great Falls",59405,47.511409999999998,-111.32486,"Cascade",0.04,"For-profit","Acq/Rehab","Family",10,2,{"$f":"8594820*0.1","v":859482},{"$f":"7734564*0.1","v":773456.4},{"$f":"15381160*0.1","v":1538116},{"$f":"10958000*0.1","v":1095800},5.2900000000000003E-2,35,null,null,"00:00:00",{"$error":"#NUM!"},null,{"$error":"#NUM!"},"Community Preservation Partners/Hampstead","Karen Buckland","17784 Sky Park Circle","Irvine","CA",92614,"kbuckland@cpp-housing.com",9492368135,"Bob Kelly Mayor","City of Great Falls","PO Box 5023","Great Falls","MT",59403,"50% / 60%","commision@greatfallmt.net",4068700212,269,8,null,null,null,null,4,4,null,null,null,null,"40/60",null,null,null,null,8,null,null,null,null,8,0.6,{"$f":"23151193*0.1","v":2315119.3000000003},{"$f":"VLOOKUP(M30,#REF!,2,TRUE)*(BR30/1000000)","v":{"$error":"#REF!"}},{"$f":"VLOOKUP(M30,#REF!,3,TRUE)*(BR30/1000000)","v":{"$error":"#REF!"}}]
["2023-05-11",2023,"Active","South Forty Apartments 4% (resynd orig 2007)","769 Fallow Lane","Billings",59101,45.756,-108.60182,"Yellowstone ",0.04,"For-profit","Acq/Rehab","Senior",101,1,9103280,8073665,14999944.82,null,null,null,null,null,"00:00:00",{"$error":"#NUM!"},31,{"$error":"#NUM!"},"South Forty Partners LP","Brian Moloney","401 Wilshire Blvd Ste 1070","Santa Monica","CA",90401,"bmoloney@lincolnavecap.com",5094967232,"Bill Cole Mayor","City of Billings","PO Box 1178","Billings","MT",59103,"50% / 60%","coleb@billingsmt.gov",4066578296,{"$f":"(873+374)/2","v":623.5},{"$f":"SUM(AV31:BE31)","v":101},null,null,100,null,null,null,null,null,null,1,"40/60",null,null,null,51,50,null,null,null,null,{"$f":"SUM(BH31:BO31)","v":101},{"$f":"((BH31*BH$1)+(BI31*BI$1)+(BJ31*BJ$1)+(BK31*BK$1)+(BL31*BL$1)+(BM31*BM$1))/SUM(BH31:BM31)","v":0.54950495049504955},25165580,{"$f":"VLOOKUP(M31,#REF!,2,TRUE)*(BR31/1000000)","v":{"$error":"#REF!"}},{"$f":"VLOOKUP(M31,#REF!,3,TRUE)*(BR31/1000000)","v":{"$error":"#REF!"}}]
["2022-11-17",2022,"Active","Comstock Apts (resyn Comstock I, II, II)","777 Haggerty Lane","Bozeman",59715,45.672359999999998,-111.0102,"Gallatin",0.04,"For-profit","Acq/Rehab","Family",86,10,7514790,6627681,14000000,null,null,null,null,null,"00:00:00",{"$error":"#NUM!"},35,{"$error":"#NUM!"},"DevCo Preservation","Chase Huber","10900 NE 8th St STE 1200","Bellevue","WA",98004,"chase.huber@devcowa.com",4254587369,"Cyndy Andrus","City of Bozeman","121 N Rouse Ave","Bozeman","MT",59715,0.6,null,4065822383,null,{"$f":"SUM(AV32:BE32)","v":86},null,null,52,23,9,1,null,null,null,1,"40/60",null,null,null,null,86,null,null,null,null,{"$f":"SUM(BH32:BO32)","v":86},{"$f":"((BH32*BH$1)+(BI32*BI$1)+(BJ32*BJ$1)+(BK32*BK$1)+(BL32*BL$1)+(BM32*BM$1))/SUM(BH32:BM32)","v":0.6},21411734,{"$f":"VLOOKUP(M32,#REF!,2,TRUE)*(BR32/1000000)","v":{"$error":"#REF!"}},{"$f":"VLOOKUP(M32,#REF!,3,TRUE)*(BR32/1000000)","v":{"$error":"#REF!"}}]
["2022-10-17",2023,"Active","ANHA LIHTC #2","1 Circle Ln (scattered sites)","Crow Agency",59022,45.609479999999998,-107.47302000000001,"Big Horn",0.09,"Tribal","Acq/Rehab","Family",23,23,6435000,5388774,null,null,null,null,null,null,null,null,null,null,"Apsaalooke Nation HA","Miriam Smith","PO Box 99","Crow Agency","MT",59022,"m.smith@a-resource.com",4066237146,"Frank White Clay Chairman","Crow Tribe","PO Box 159","Crow Agency","MT",59022,"30% / 60%","whiteclay.frank@gmail.com",4066796567,null,{"$f":"SUM(AV33:BE33)","v":23},null,null,null,2,15,6,null,null,null,null,"40-60",null,6,null,null,17,null,null,null,null,{"$f":"SUM(BH33:BO33)","v":23},{"$f":"((BH33*BH$1)+(BI33*BI$1)+(BJ33*BJ$1)+(BK33*BK$1)+(BL33*BL$1)+(BM33*BM$1))/SUM(BH33:BM33)","v":0.52173913043478259},6955297,{"$f":"VLOOKUP(M33,#REF!,2,TRUE)*(BR33/1000000)","v":{"$error":"#REF!"}},{"$f":"VLOOKUP(M33,#REF!,3,TRUE)*(BR33/1000000)","v":{"$error":"#REF!"}}]
["2022-10-17",2023,"Active","Carter Commons","500 3rd St South","Great Falls",59405,47.499630000000003,-111.30301,"Cascade",0.09,"For-Profit","New Const","Senior",25,1,6500000,5524448,null,null,null,null,null,null,null,null,null,null,"Housing Solutions","Alex Burkhalter","PO Box 2099","Missoula","MT",59806,"alex@housing-solutions.org",4062031558,"Bob Kelly Mayor","City of Great Falls","PO Box 5021","Great Falls","MT",59403,"40% / 50% / 60%","bkelly@greatfallsmt.net",4068700212,270,25,null,null,18,6,null,null,null,null,null,1,"40-60",null,null,2,14,9,null,null,null,null,25,0.52800000000000002,6849388,{"$f":"VLOOKUP(M34,#REF!,2,TRUE)*(BR34/1000000)","v":{"$error":"#REF!"}},{"$f":"VLOOKUP(M34,#REF!,3,TRUE)*(BR34/1000000)","v":{"$error":"#REF!"}}]
["2022-10-17",2023,"Active","Cabinet Affordable Housing","400 Commerce Way","Libby",59923,48.394576000000001,-115.56329700000001,"Lincoln",0.09,"Non-Profit","New Const","Family",24,13,6500000,5524448,null,null,null,null,null,null,null,null,null,null,"Amer Covenant / CAP NWMT","Gerald Fritts","234 Shelter Valley Dr","Kalispell","MT",59901,"gmf@acshf.com",4062356593,"Peggy Williams Mayor","City of Libby","952 East Spruce St","Libby","MT",59923,"50% / 60%","libbylocal@yahoo.com",4062932761,null,24,null,null,14,10,null,null,null,null,null,null,"40-60",null,null,null,12,12,null,null,null,null,24,0.54999999999999993,6717141,{"$f":"VLOOKUP(M35,#REF!,2,TRUE)*(BR35/1000000)","v":{"$error":"#REF!"}},{"$f":"VLOOKUP(M35,#REF!,3,TRUE)*(BR35/1000000)","v":{"$error":"#REF!"}}]
["2022-10-17",2023,"Active","Creekside Apartments 9%","1405 E Broadway St","Missoula",59802,46.862900000000003,-113.94172,"Missoula",0.09,"Non-Profit","Acq/Rehab","Family",41,4,5750000,4887011,null,null,null,null,null,null,null,null,null,null,"Homeword Inc","Heather McMillan","1535 Liberty Ln STE 116A","Missoula","MT",59808,"heather@homeword.org",4065324663,"John Engen Mayor","City of Missoula","435 Ryman St","Missoula","MT",59802,"50% / 60%",null,4065526001,null,41,null,4,4,28,4,null,null,null,null,1,"40/60",null,null,null,29,12,null,null,null,null,41,0.52926829268292686,10260323,{"$f":"VLOOKUP(M36,#REF!,2,TRUE)*(BR36/1000000)","v":{"$error":"#REF!"}},{"$f":"VLOOKUP(M36,#REF!,3,TRUE)*(BR36/1000000)","v":{"$error":"#REF!"}}]
["bond closing date",2025,"Active","Creekside Apartments 4%","1405 E Broadway St","Missoula",59802,46.862900000000003,-113.94172,"Missoula",0.04,"Non-Profit","Acq/Rehab","Family",120,10,10211750,8517295,26000000,11000000,4.4999999999999998E-2,15,null,null,null,null,null,null,"Homeword Inc","Heather McMillan","1535 Liberty Ln STE 116A","Missoula","MT",59808,"heather@homeword.org",4065324663,"Jordan Hess Mayor","City of Missoula","435 Ryman St","Missoula","MT",59802,"60%","mayorstaff@ci.missoula.mt.us",4065526001,1147,{"$f":"SUM(AV37:BE37)","v":120},null,8,36,60,16,null,null,null,null,null,"40/60",null,null,null,null,120,null,null,null,null,{"$f":"SUM(BH37:BO37)","v":120},{"$f":"((BH37*BH$1)+(BI37*BI$1)+(BJ37*BJ$1)+(BK37*BK$1)+(BL37*BL$1)+(BM37*BM$1))/SUM(BH37:BM37)","v":0.6},30770068,{"$f":"VLOOKUP(M37,#REF!,2,TRUE)*(BR37/1000000)","v":{"$error":"#REF!"}},{"$f":"VLOOKUP(M37,#REF!,3,TRUE)*(BR37/1000000)","v":{"$error":"#REF!"}}]
["2022-10-17",2023,"Active","Meadowlark Senior","4000 Corto Road","Butte",59701,45.957700000000003,-112.51326,"Silver Bow",0.09,"Non-Profit","New Const","Senior",26,1,6500000,5589439,null,null,null,null,null,null,null,null,null,null,"Northwest Real Estate Cap","Ben Casiano","210 W Mallard Dr Ste A","Boise","ID",83706,"bcasiano@nwrecc.org",2089477041,"J.P. Gallagher Chief Executive","Butte-Silver Bow","155 W Granite St Rm 106","Butte","MT",59701,"40% / 50% / 60%","jpgallagher@bsb.mt.gov",4064976222,652,26,null,null,13,13,null,null,null,null,null,null,"40/60",null,null,4,11,11,null,null,null,null,26,0.52692307692307694,8017355,{"$f":"VLOOKUP(M38,#REF!,2,TRUE)*(BR38/1000000)","v":{"$error":"#REF!"}},{"$f":"VLOOKUP(M38,#REF!,3,TRUE)*(BR38/1000000)","v":{"$error":"#REF!"}}]
["2022-07-02",2022,"Active","Bridger Peaks Village","1483 N 15th Ave","Bozeman",59715,45.694470000000003,-111.05779,"Gallatin",0.04,"For-profit","Acq/Rehab","Family/Elderly",60,1,5460890,4636086,null,null,null,null,null,null,{"$f":"IF(W39>X39,W39,X39)","v":"00:00:00"},{"$f":"DATE(YEAR(Y39)+14,MONTH(Y39),DAY(Y39))","v":{"$error":"#NUM!"}},36,{"$f":"DATE(YEAR(Z39)+AA39,MONTH(Z39),DAY(Z39))","v":{"$error":"#NUM!"}},"Bridger Peaks Apartments, LLC","Chase Huber","10900 NE 8th St STE 1200","Bellevue","WA",98004,"chase.huber@devcowa.com","(425) 736-0580","Cyndy Andrus","Bozeman,","121 N Rouse Avenue","Bozeman","MT",59715,"50%/60%",null,"(406)-582-2383",30,60,null,null,45,15,null,null,null,null,null,null,"40/60",null,null,null,null,60,null,null,null,null,{"$f":"SUM(BH39:BO39)","v":60},{"$f":"((BH39*BH$1)+(BI39*BI$1)+(BJ39*BJ$1)+(BK39*BK$1)+(BL39*BL$1)+(BM39*BM$1))/SUM(BH39:BM39)","v":0.6},14027890,{"$f":"VLOOKUP(M39,#REF!,2,TRUE)*(BR39/1000000)","v":{"$error":"#REF!"}},{"$f":"VLOOKUP(M39,#REF!,3,TRUE)*(BR39/1000000)","v":{"$error":"#REF!"}}]
["2022-04-07",2022,"Active","Spruce Grove-Laurel 4%","712 8th Ave","Laurel",59044,45.676029999999997,-108.78215,"Yellowstone",0.04,"For-Profit","Acq/Rehab","Senior",50,9,2867056,2164414,4805645,null,2.2499999999999999E-2,30,null,null,"00:00:00",{"$error":"#NUM!"},null,{"$error":"#NUM!"},"GL Development","Gene Leuwer","4799 Echo Dr","Helena","MT",59602,"gleuwer1139@msn.com",4064595332,"Mayor, Thomas Nelson ","Laurel ","115 West 1st St","Laurel ","MT",59044,null," citymayor@laurel.mt.gov","406-628-7431",65,{"$f":"SUM(AV40:BE40)","v":50},null,null,37,13,null,null,null,null,null,null,"AI",null,4,4,39,null,null,15,null,null,{"$f":"SUM(BH40:BO40)","v":62},{"$f":"((BH40*BH$1)+(BI40*BI$1)+(BJ40*BJ$1)+(BK40*BK$1)+(BL40*BL$1)+(BM40*BM$1))/SUM(BH40:BM40)","v":0.5532258064516129},9916143,{"$f":"VLOOKUP(M40,#REF!,2,TRUE)*(BR40/1000000)","v":{"$error":"#REF!"}},{"$f":"VLOOKUP(M40,#REF!,3,TRUE)*(BR40/1000000)","v":{"$error":"#REF!"}}]
["2022-04-07",2022,"Active","Spruce Grove_Joliet 4%","126 N Main","Joliet",59041,45.487160000000003,-108.94302,"Carbon",0.04,"For-Profit","Acq/Rehab","Senior",12,3,688094,519459,1153355,null,null,null,null,null,"00:00:00",{"$error":"#NUM!"},null,{"$error":"#NUM!"},"GL Development","Gene Leuwer","4800 Echo Dr","Helena","MT",59602,"gleuwer1139@msn.com","(406) 459-5332","Dakota Mitchem","Jolliet","116 S. Main St ","Joliet","MT",59041,"50%/60%","townofjoliet@gmail.com","406-459-5332",10,{"$f":"SUM(AV41:BE41)","v":12},null,null,11,1,null,null,null,null,null,null,"AI",null,null,null,null,null,null,null,null,null,{"$f":"SUM(BH41:BO41)","v":0},null,2379874,{"$f":"VLOOKUP(M41,#REF!,2,TRUE)*(BR41/1000000)","v":{"$error":"#REF!"}},{"$f":"VLOOKUP(M41,#REF!,3,TRUE)*(BR41/1000000)","v":{"$error":"#REF!"}}]
["2021-11-15",2022,"Active","Crowley Flats (add'l credits see orig below)","311 West Main St","Lewistown",59457,47.065069999999999,-109.42624000000001,"Fergus",0.09,"Non-profit","New Const","Family",16,1,220000,178182,null,null,null,null,null,null,"00:00:00",{"$error":"#NUM!"},31,{"$error":"#NUM!"},"Homeword","Heather McMilin","1535 Liberty Ln Suite 116A","Missoula","MT",59808,"heather@homeword.org","4065324663 ext. 36","City Commission Chairperson Gayle Doney","City of Lewistown","305 West Watson","Lewistown","MT",59457,"40% / 50% / 60%","gdoney@ci.lewistown.mt.us","406-535-1760",101,16,null,4,10,2,null,null,null,null,null,null,"AI",null,null,null,null,null,null,null,null,null,null,null,4390450]
["2021-11-15",2022,"Active","Riverview Apts","Lone Mountain Tr & Jeep Tr","Big Sky",59716,45.266240000000003,-111.29076000000001,"Gallatin",0.09,"For-Profit","New Const","Family",25,1,6491250,5646824,null,null,null,null,null,null,"00:00:00",{"$error":"#NUM!"},31,{"$error":"#NUM!"},"Blueline Development","Jason Boal","1004 South Ave W","Missoula","MT",59801,"jason@bluelinedevelopment.com",4069261401,"Scott MacFarlane","Gallatin County","311 W. Main St. Room 306","Bozeman ","MT",59715,"40% / 50% / 60%","pam.hamlin@gallatin.mt.gov","406-582-3000",49,{"$f":"SUM(AV43:BE43)","v":25},null,null,6,11,7,null,null,null,null,1,"40/60",null,1,null,9,7,4,3,null,1,{"$f":"SUM(BH43:BO43)","v":25},{"$f":"((BH43*BH$1)+(BI43*BI$1)+(BJ43*BJ$1)+(BK43*BK$1)+(BL43*BL$1)+(BM43*BM$1))/SUM(BH43:BM43)","v":0.59166666666666667},7656054,{"$f":"VLOOKUP(M43,#REF!,2,TRUE)*(BR43/1000000)","v":{"$error":"#REF!"}},{"$f":"VLOOKUP(M43,#REF!,3,TRUE)*(BR43/1000000)","v":{"$error":"#REF!"}}]
[null,2022,"Active","Junegrass Place 4%","1079 N Meridian Rd","Kalispell",59901,48.210099999999997,-114.33002999999999,"Flathead",0.04,"For-Profit","New Const","Family",114,7,15723498,14385562,22500000,13624144,4.1000000000000002E-2,35,null,null,"00:00:00",{"$error":"#NUM!"},31,{"$error":"#NUM!"},"GMD Dev/Homeword","Steve Dymoke","520 Pike St","Seattle","WA",98101,"steve@gmddevelopment.com",2067456464,"Mayor Mark Johnson","City of Kalispell","PO Box 1997","Kalispell","MT",59903,"40% / 50% / 60%","mjohnson@kalispell.com","406-758-7756",161,114,null,null,{"$f":"19*3","v":57},{"$f":"12+12+11","v":35},{"$f":"7+8+6","v":21},null,null,null,null,1,"40/60",null,null,null,null,113,null,null,null,1,114,0.6,32481106,{"$f":"VLOOKUP(M44,#REF!,2,TRUE)*(BR44/1000000)","v":{"$error":"#REF!"}},{"$f":"VLOOKUP(M44,#REF!,3,TRUE)*(BR44/1000000)","v":{"$error":"#REF!"}}]
["2021-10-19",2022,"Active","Junegrass Place 9%","1083 N Meridian Rd","Kalispell",59901,48.210450000000002,-114.32933,"Flathead",0.09,"For-Profit","New Const","Family",24,1,4780000,4062594,null,null,null,null,null,null,"00:00:00",{"$error":"#NUM!"},31,{"$error":"#NUM!"},"GMD Dev/Homeword","Steve Dymoke","520 Pike St","Seattle","WA",98101,"steve@gmddevelopment.com",2067456464,"Mayor Mark Johnson","City of Kalispell","PO Box 1997","Kalispell","MT",59903,"40% / 50% / 60%","mjohnson@kalispell.com","406-758-7756",null,24,null,null,11,6,6,null,null,null,null,1,"40/60",null,null,null,{"$f":"6+3+3","v":12},{"$f":"6+3+2","v":11},null,null,null,1,24,0.54782608695652169,5881688,{"$f":"VLOOKUP(M45,#REF!,2,TRUE)*(BR45/1000000)","v":{"$error":"#REF!"}},{"$f":"VLOOKUP(M45,#REF!,3,TRUE)*(BR45/1000000)","v":{"$error":"#REF!"}}]
["2021-10-19",2022,"Active","Bicentennial Apts","76 W Center St","Dillon",59725,45.219279999999998,-112.63773999999999,"Beaverhead",0.09,"For-Profit","Acq/Rehab","Senior",58,3,5590170,4527585,null,null,null,null,"2022-06-01","2022-01-01","2022-06-01","2036-06-01",31,"2067-06-01","Dawson Holdings, Inc","Tim Fluetsch","7250 Redwood Blvd STE 214","Novato","CA",94945,"tfluetsch@d-h-i.net",8012446658,"Mayor Dr. Michael Klakken","City of Dillon","125 N. Idaho St.","Dillon","MT",59725,"40%/50%60%","mayor@dillonmt.org","406-683-4245",54,58,null,{"$f":"1+4+2","v":7},47,{"$f":"1+2+1","v":4},null,null,null,null,null,null,"40/60",null,null,{"$f":"1+4+1","v":6},35,17,null,null,null,null,58,0.51896551724137929,8302660,{"$f":"VLOOKUP(M46,#REF!,2,TRUE)*(BR46/1000000)","v":{"$error":"#REF!"}},{"$f":"VLOOKUP(M46,#REF!,3,TRUE)*(BR46/1000000)","v":{"$error":"#REF!"}}]
["2021-10-19",2022,"Active","Baatz Perm Supp Apts","400 2nd Ave S","Great Falls",59405,47.503010000000003,-111.30055,"Cascade",0.09,"Non-profit","New Const","Family",25,1,6100000,5001500,null,null,null,null,null,null,"00:00:00",{"$error":"#NUM!"},31,{"$error":"#NUM!"},"Homeword / NWGF","Heather McMillan","1535 Liberty Ln STE 116A","Misosula","MT",59808,"heather@homeword.org",4065324663,"Bob Kelly Mayor","City of Great Falls","PO Box 5021","Great Falls","MT",59403,"40%/50%60%","bkelly@greatfallsmt.net","406-870-0212",1139,25,null,4,16,4,null,null,null,null,null,1,"40/60",null,null,3,16,5,null,null,null,1,25,{"$f":"((BH47*BH$1)+(BI47*BI$1)+(BJ47*BJ$1)+(BK47*BK$1)+(BL47*BL$1)+(BM47*BM$1))/SUM(BH47:BM47)","v":0.5083333333333333},8726447,{"$f":"VLOOKUP(M47,#REF!,2,TRUE)*(BR47/1000000)","v":{"$error":"#REF!"}},{"$f":"VLOOKUP(M47,#REF!,3,TRUE)*(BR47/1000000)","v":{"$error":"#REF!"}}]
["2021-10-19",2022,"Active","Tapestry Apts","115 S 30th St","Billings",59101,45.778410000000001,-108.50557000000001,"Yellowstone",0.09,"Non-profit","New Const","Family",26,1,6200000,5331467,null,null,null,null,null,null,"00:00:00",{"$error":"#NUM!"},31,{"$error":"#NUM!"},"CLDI Holdings","Eric Basye","PO Box 3381","Billings","MT",59103,"eric@cldibillings.org",4068611528,"Bill Cole","City of Billings","PO Box 1178","Billings","MT",59101,"40%/50%60%","coleb@ci.billings.mt.us","406-657-8296",1423,26,null,null,14,12,null,null,null,null,null,null,"40/60",null,null,3,16,7,null,null,null,null,26,0.51538461538461533,7262665,{"$f":"VLOOKUP(M48,#REF!,2,TRUE)*(BR48/1000000)","v":{"$error":"#REF!"}},{"$f":"VLOOKUP(M48,#REF!,3,TRUE)*(BR48/1000000)","v":{"$error":"#REF!"}}]
["2021-11-22",2021,"Active","Castlebar 4%","1201 N 25Th St","Bozeman",59715,45.692160000000001,-111.07161000000001,"Gallatin",0.04,"For-profit","Acq/Rehab","Family",72,13,5673470,5049388,13525000,10525000,4.1799999999999997E-2,40,"2023-07-25","1905-07-15","2023-07-25","2037-07-25",31,"2068-07-25","DevCo Preservation","Michael Volz","10900 NE 8th St STE 1200","Bellevue","WA",98004,"michael.volz@devcowa.com",4254587369,null,null,null,null,null,null,null,null,null,834,72,null,null,null,56,16,null,null,null,null,null,"40/60",null,null,null,null,72,null,null,null,null,72,0.6,18023105,{"$f":"VLOOKUP(M49,#REF!,2,TRUE)*(BR49/1000000)","v":{"$error":"#REF!"}},{"$f":"VLOOKUP(M49,#REF!,3,TRUE)*(BR49/1000000)","v":{"$error":"#REF!"}}]
["2021-07-01",2021,"Active","Bitterroot Valley Apts (old Mtn View (1 of 2, 4% of 4/9)**Resyd","300 Stonegate Dr","Hamilton",59840,46.256549999999997,-114.14425,"Ravalli",0.04,"For-Profit","Acq/Rehab","Family",36,8,2326327,1965549.5,3713195,2596154,0.04,40,null,null,"00:00:00",{"$error":"#NUM!"},31,{"$error":"#NUM!"},"Summitt Hsing Group","Paul Capp","283 West Front St #1","Missoula","MT",59802,"paul@summithousinggroup.com",4069604870,null,null,null,null,null,null,null,null,null,3,36,null,null,null,24,12,null,null,null,null,null,"40/60",null,null,null,22,14,null,null,null,null,36,0.53888888888888886,6588552,{"$f":"VLOOKUP(M50,#REF!,2,TRUE)*(BR50/1000000)","v":{"$error":"#REF!"}},{"$f":"VLOOKUP(M50,#REF!,3,TRUE)*(BR50/1000000)","v":{"$error":"#REF!"}}]
["2021-07-01",2021,"Active","Bitterroot Valley Apts (old Bitt Comm2 of 2, 4% of 4/9)**Resyd","501 Welcome Way","Darby",59829,46.024560000000001,-114.18437,"Ravalli",0.04,"For-Profit","Acq/Rehab","Family",16,4,1033923,873577.5,1650309,1153846,0.04,40,null,null,"00:00:00",{"$error":"#NUM!"},31,{"$error":"#NUM!"},"Summitt Hsing Group","Paul Capp","283 West Front St #1","Missoula","MT",59802,"paul@summithousinggroup.com",4069604870,null,null,null,null,null,null,null,null,null,3,16,null,null,null,16,null,null,null,null,null,null,"40/60",null,null,null,null,16,null,null,null,null,16,0.6,2928245,{"$f":"VLOOKUP(M51,#REF!,2,TRUE)*(BR51/1000000)","v":{"$error":"#REF!"}},{"$f":"VLOOKUP(M51,#REF!,3,TRUE)*(BR51/1000000)","v":{"$error":"#REF!"}}]
["2021-06-28",2021,"Active","Trinity 4%","1645 Cooley St., 1370 N. Burns St., 1660 Stoddard St., 1325 S. Cowper St., 2200, 2210, 2220 Mullan Rd. ","Missoula","59802/59808",46.885144031325503,-114.01455018832399,"Missoula",0.04,"Non-profit","New Const","Family",202,5,24425730,21738924,36000000,20775000,3.5400000000000001E-2,35,"2023-01-01","2023-01-01","2023-01-01","2037-01-01",31,"2068-01-01","Homeword / Missoula HA / Blueline","Andrea Davis / Nathan Richmond","1535 Liberty Ln","Missoula","MT",59808,"nate@bluelinedevelopment.com",4062148145,null,null,null,null,null,null,null,null,null,1168,202,null,null,100,60,23,6,null,12,null,1,"AI",null,30,null,11,130,30,null,null,1,202,0.56467661691542292,55181446,{"$f":"VLOOKUP(M52,#REF!,2,TRUE)*(BR52/1000000)","v":{"$error":"#REF!"}},{"$f":"VLOOKUP(M52,#REF!,3,TRUE)*(BR52/1000000)","v":{"$error":"#REF!"}}]
["2021-05-01",2021,"Active","Villagio 4%","1140 - 1180 Otis St","Missoula",59802,46.891664616781704,-114.006818857643,"Missoula",0.04,"Non-profit","New Const","Family",200,2,29254570,24863898,43000000,25175000,3.5400000000000001E-2,35,null,null,"00:00:00",{"$error":"#NUM!"},31,{"$error":"#NUM!"},"Missoula Housing Authority / Blueline","Lori Davidson / Nathan Richmond","1235 34th St","Missoula","MT",59801,"ldavidson@missoulahousing.org",4065494113,null,null,null,null,null,null,null,null,null,1351,200,null,null,null,93,100,6,null,null,null,1,"40/60",null,18,null,14,167,null,null,null,1,200,0.56582914572864318,61875619,{"$f":"VLOOKUP(M53,#REF!,2,TRUE)*(BR53/1000000)","v":{"$error":"#REF!"}},{"$f":"VLOOKUP(M53,#REF!,3,TRUE)*(BR53/1000000)","v":{"$error":"#REF!"}}]
["2021-03-02",2021,"Active","Boulevards Apts 4%","6 W Babcock","Bozeman",59715,45.678226866439601,-111.03745104417899,"Gallatin",0.04,"Non-profit","Acq/Rehab","Family",41,1,4837810,4918069,7000000,4165000,null,null,"2022-10-21","2022-11-01","2022-11-01","2036-11-01",40,"2076-11-01","Good Housing Ptrship / HRDC IX","Geoff Anderson","104 East Main St STE 104","Bozeman","MT",59715,"geoffanderson@goodhousingpartnership.com",4064146500,null,null,null,null,null,null,null,null,null,1761,41,null,2,33,6,null,null,null,null,null,null,"40/60",null,null,null,null,41,null,null,null,null,41,0.6,11478894,{"$f":"VLOOKUP(M54,#REF!,2,TRUE)*(BR54/1000000)","v":{"$error":"#REF!"}},{"$f":"VLOOKUP(M54,#REF!,3,TRUE)*(BR54/1000000)","v":{"$error":"#REF!"}}]
["2021-03-02",2021,"Active","Darlinton Manor Apts 4%","605 N 5th St","Bozeman",59047,45.686318559786599,-111.043527488354,"Gallatin",0.04,"Non-profit","Acq/Rehab","Senior",100,1,8165290,4579251,16137567,12930000,null,null,"2022-10-04","2022-11-01","2022-11-01","2036-11-01",40,"2076-11-01","Good Housing Ptrship / HRDC IX","Geoff Anderson","104 East Main St STE 104","Bozeman","MT",59715,"geoffanderson@goodhousingpartnership.com",4064146500,null,null,null,null,null,null,null,null,null,72,100,null,{"$f":"27+5","v":32},{"$f":"61+7","v":68},null,null,null,null,null,null,null,"40/60",null,null,null,null,100,null,null,null,null,100,0.6,19979566,{"$f":"VLOOKUP(M55,#REF!,2,TRUE)*(BR55/1000000)","v":{"$error":"#REF!"}},{"$f":"VLOOKUP(M55,#REF!,3,TRUE)*(BR55/1000000)","v":{"$error":"#REF!"}}]
["2021-03-02",2021,"Active","Miles Building 4%","107 South 2nd St","Livingston",59047,45.660622643914799,-110.560580973014,"Park",0.04,"Non-profit","Acq/Rehab","Senior",40,1,3488140,3209477,6455026,2920000,null,null,"2022-06-03","2022-07-01","2022-07-01","2036-07-01",40,"2076-07-01","Good Housing Ptrship / HRDC IX","Geoff Anderson","104 East Main St STE 104","Bozeman","MT",59715,"geoffanderson@goodhousingpartnership.com",4064146500,null,null,null,null,null,null,null,null,null,12,40,null,5,34,1,null,null,null,null,null,null,"40/60",null,null,null,null,40,null,null,null,null,40,0.6,8535299,{"$f":"VLOOKUP(M56,#REF!,2,TRUE)*(BR56/1000000)","v":{"$error":"#REF!"}},{"$f":"VLOOKUP(M56,#REF!,3,TRUE)*(BR56/1000000)","v":{"$error":"#REF!"}}]
["2021-03-02",2021,"Active","Sherwood Apts 4%","325 S Main St","Livingston",59047,45.659043343559503,-110.556579915344,"Park",0.04,"Non-profit","Acq/Rehab","Senior",49,1,3828730,3955611,7907407,4080000,null,null,"2022-09-08","2022-10-01","2022-10-01","2036-10-01",40,"2076-10-01","Good Housing Ptrship / HRDC IX","Geoff Anderson","104 East Main St STE 104","Bozeman","MT",59715,"geoffanderson@goodhousingpartnership.com",4064146500,null,null,null,null,null,null,null,null,null,12,49,null,null,40,9,null,null,null,null,null,null,"40/60",null,null,null,null,49,null,null,null,null,49,0.6,9295941,{"$f":"VLOOKUP(M57,#REF!,2,TRUE)*(BR57/1000000)","v":{"$error":"#REF!"}},{"$f":"VLOOKUP(M57,#REF!,3,TRUE)*(BR57/1000000)","v":{"$error":"#REF!"}}]
["2020-10-19",2021,"Active","Crowley Flats( orig credits see add'l credits above)","311 West Main St","Lewistown",59457,47.065069999999999,-109.42624000000001,"Fergus",0.09,"Non-profit","New Const","Family",16,1,3100000,2510749,null,null,null,null,null,null,"00:00:00",{"$error":"#NUM!"},31,{"$error":"#NUM!"},"Homeword","Heather McMilin","1535 Liberty Ln","Missoula","MT",59808,"heather@homeword.org",4065324663,null,null,null,null,null,null,null,null,null,101,16,null,4,10,2,null,null,null,null,null,null,"40/60",null,null,3,10,3,null,null,null,null,16,0.5,4390450,{"$f":"VLOOKUP(M58,#REF!,2,TRUE)*(BR58/1000000)","v":{"$error":"#REF!"}},{"$f":"VLOOKUP(M58,#REF!,3,TRUE)*(BR58/1000000)","v":{"$error":"#REF!"}}]
["2020-10-19",2021,"Active","Jackson Court 9%","510 Jackson St","Billings",59101,45.762560000000001,-108.51561,"Yellowstone",0.09,"For-Profit","New Const","Family",38,5,6435000,5340516,null,null,null,null,"2024-01-09","2024-02-01","2024-02-01","2038-02-01",31,"2069-02-01","GL Development","Anderson Consulting","4799 Echo Dr","Helena","MT",59602,"gleuwer1139 @msn.com / lr.anderson@outlook.com",4063903754,null,null,null,null,null,null,null,null,null,750,38,null,null,20,12,6,null,null,null,null,null,"40/60",null,null,null,8,30,null,null,null,null,38,0.57894736842105265,8794015,{"$f":"VLOOKUP(M59,#REF!,2,TRUE)*(BR59/1000000)","v":{"$error":"#REF!"}},{"$f":"VLOOKUP(M59,#REF!,3,TRUE)*(BR59/1000000)","v":{"$error":"#REF!"}}]
["2020-10-19",2021,"Active","Creekside Commons","76 Glenwood Dr","Kalispell",59901,48.203530000000001,-114.33396,"Flathead",0.09,"For-Profit","New Const","Senior",31,1,6435000,5501375,null,null,3.1289999999999998E-2,40,"2024-01-30","2024-02-01","2024-02-01","2038-02-01",31,"2069-02-01","Housing Solutions",null,"PO Box 2099","Missoula","MT",59806,"alex@housing-solutions.org",4062031558,null,null,null,null,null,null,null,null,null,170,31,null,null,{"$f":"3+19+2","v":24},6,null,null,null,null,null,1,"40/60",null,null,4,23,4,null,null,null,null,31,0.5,7392628,{"$f":"VLOOKUP(M60,#REF!,2,TRUE)*(BR60/1000000)","v":{"$error":"#REF!"}},{"$f":"VLOOKUP(M60,#REF!,3,TRUE)*(BR60/1000000)","v":{"$error":"#REF!"}}]
["2020-10-19",2021,"Active","MRM Unified Campus","2822 Minnesota","Billings",59101,45.77984,-108.50484,"Yellowstone",0.09,"Non-profit","Rehab","Family",29,1,6435000,5597890,null,null,null,null,null,null,"00:00:00",{"$error":"#NUM!"},31,{"$error":"#NUM!"},"Montana Rescue Mission",null,"PO Box 3232","Billings","MT",59103,"mattl@billingslf.org",4062470140,null,null,null,null,null,null,null,null,null,1131,30,null,6,18,5,null,null,null,null,null,1,"40/60",null,null,3,18,8,null,null,null,null,29,0.51724137931034486,11925149,{"$f":"VLOOKUP(M61,#REF!,2,TRUE)*(BR61/1000000)","v":{"$error":"#REF!"}},{"$f":"VLOOKUP(M61,#REF!,3,TRUE)*(BR61/1000000)","v":{"$error":"#REF!"}}]
["2020-10-19",2021,"Active","Apsaalooke HA Homes I","1 Circle Ln (scattered sites)","Crow Agency",59022,45.609479999999998,-107.47302000000001,"Big Horn",0.09,"Tribal","Acq/Rehab","Family",43,43,6435000,5464953,null,null,null,null,"2015-07-31","2015-01-01","2015-07-31","2029-07-31",31,"2060-07-31","Apsaalooke National Housing Authority",null,"PO Box 99","Crow Agency","MT",59022,"m.smith@a-resource.com",7202736697,null,null,null,null,null,null,null,null,null,120,43,null,null,8,10,12,13,null,null,null,null,"40/60",null,3,3,27,10,null,null,null,null,43,0.50232558139534889,7767696.4500000002,{"$f":"VLOOKUP(M62,#REF!,2,TRUE)*(BR62/1000000)","v":{"$error":"#REF!"}},{"$f":"VLOOKUP(M62,#REF!,3,TRUE)*(BR62/1000000)","v":{"$error":"#REF!"}}]
["2020-10-19",2021,"Active","Laurel Depot","202 8th Ave","Laurel",59044,45.670659999999998,-108.78221000000001,"Yellowstone",0.09,"For-Profit","New Const","Family",19,4,3812010,3316117,null,null,null,null,null,null,"00:00:00",{"$error":"#NUM!"},31,{"$error":"#NUM!"},"GL Development","North Fork Developers","4799 Echo Dr","Helena","MT",59602,"gleuwer1139 @msn.com / andrew@northforkdevelopment.com",4064595332,null,null,null,null,null,null,null,null,null,136,19,null,null,5,9,5,null,null,null,null,null,"40/60",null,null,null,12,7,null,null,null,null,19,0.5368421052631579,4527718,{"$f":"VLOOKUP(M63,#REF!,2,TRUE)*(BR63/1000000)","v":{"$error":"#REF!"}},{"$f":"VLOOKUP(M63,#REF!,3,TRUE)*(BR63/1000000)","v":{"$error":"#REF!"}}]
["2020-11-24",2020,"Active","Arrowleaf Park Apartments 4%","1619 Tschache Ln","Bozeman",59715,45.696647599999999,-111.0591596,"Gallatin",0.04,"Non-profit","New Const","Family",136,9,14977720,13403718,26000000,20567881,3.6499999999999998E-2,35,"2021-11-19","2022-01-01","2022-01-01","2036-01-01",31,"2067-01-01","GMD Development LLC","HRDC IX","520 Pike St STE 1010","Seattle","WA",98101,"steve@gmddevelopment.com and tmenuez@thehrdc.org",2067456464,null,null,null,null,null,null,null,null,null,965,136,null,null,60,36,{"$f":"24+15","v":39},null,null,null,null,1,"40/60",null,null,null,null,135,null,null,null,1,136,0.6,41444674,{"$f":"VLOOKUP(M64,#REF!,2,TRUE)*(BR64/1000000)","v":{"$error":"#REF!"}},{"$f":"VLOOKUP(M64,#REF!,3,TRUE)*(BR64/1000000)","v":{"$error":"#REF!"}}]
["2020-11-24",2020,"Active","Perennial Park Apartments 4%","1683 Tschache Ln","Bozeman",59715,45.696647599999999,-111.0591596,"Gallatin",0.04,"Non-profit","New Const","Elderly",96,1,10049430,8842616,19000000,12808779,3.5000000000000003E-2,35,"2022-02-16","2022-03-01","2022-03-01","2036-03-01",31,"2067-03-01","GMD Development LLC","HRDC IX","520 Pike St STE 1010","Seattle","WA",98101,"steve@gmddevelopment.com and tmenuez@thehrdc.org",2067456464,null,null,null,null,null,null,null,null,null,965,96,null,null,85,10,null,null,null,null,null,1,"40/60",null,null,null,null,95,null,null,null,1,96,0.6,28774961,{"$f":"VLOOKUP(M65,#REF!,2,TRUE)*(BR65/1000000)","v":{"$error":"#REF!"}},{"$f":"VLOOKUP(M65,#REF!,3,TRUE)*(BR65/1000000)","v":{"$error":"#REF!"}}]
["2020-03-01",2020,"Active","Emporda 4%- Resyd Courtyard I & II","306 Courtyard Circle","Corvallis",59828,46.312133099999997,-114.1188034,"Ravalli",0.04,"For-Profit","Acq/Rehab","Family",36,6,1185620,1085749,3600000,3184045,3.7999999999999999E-2,40,"2020-04-07","2020-12-18","2020-12-18","2034-12-18",31,"2065-12-18","Thomas Development","Northwest Integrity Housing","413 W Idaho ST Ste 200 ","Boise","ID",83702,"tmannschreck@thomasdevelopment.com",2083438877,null,null,null,null,null,null,null,null,null,71,36,null,null,null,20,16,null,null,null,null,null,"40/60",null,null,null,23,12,null,null,null,null,35,0.53428571428571425,4324186,{"$f":"VLOOKUP(M66,#REF!,2,TRUE)*(BR66/1000000)","v":{"$error":"#REF!"}},{"$f":"VLOOKUP(M66,#REF!,3,TRUE)*(BR66/1000000)","v":{"$error":"#REF!"}}]
["2020-07-23",2020,"Active","Ponderosa Acres 4%","1301 Industrial Ave","Billings",59101,45.766390199999996,-108.5485034,"Yellowstone",0.04,"For-Profit","Acq/Rehab","Family",120,16,8510040,7829237,20915000,16550000,4.0500000000000001E-2,40,"2020-02-13","2020-12-31","2020-12-31","2034-12-31",31,"2065-12-31","Hampstead","Community Preservation Partners","7514 Wisconsin Ave STE 350","Bethesda","MD",20814,"jeff@hampstead.com",6195434200,null,null,null,null,null,null,null,null,null,3853,120,null,14,26,34,46,null,null,null,null,null,"40/60",null,null,null,60,60,null,null,null,null,120,0.55000000000000004,26041184,{"$f":"VLOOKUP(M67,#REF!,2,TRUE)*(BR67/1000000)","v":{"$error":"#REF!"}},{"$f":"VLOOKUP(M67,#REF!,3,TRUE)*(BR67/1000000)","v":{"$error":"#REF!"}}]
["2020-07-23",2020,"Active","Silver Bow 4%","220 Curtis St","Butte",59701,46.010779999999997,-112.53077999999999,"Silver Bow",0.04,"Non-profit","Acq/Rehab","Family",212,18,15900110,13871494,29300000,19950000,4.2000000000000003E-2,40,"2021-05-31","2021-06-01","2021-06-01","2035-06-01",35,"2070-06-01","Butte Affordable Housing",null,null,null,null,null,"rstordahl@buttehousing.org",4067826464,null,null,null,null,null,null,null,null,null,324,212,null,null,89,88,35,null,null,null,null,null,"40/60",null,null,null,null,212,null,null,null,null,212,0.6,47339448,{"$f":"VLOOKUP(M68,#REF!,2,TRUE)*(BR68/1000000)","v":{"$error":"#REF!"}},{"$f":"VLOOKUP(M68,#REF!,3,TRUE)*(BR68/1000000)","v":{"$error":"#REF!"}}]
["2020-07-23",2020,"Active","Rosalie Manor 4%","50 W Broadway","Butte",59701,46.013660000000002,-112.53725,"Silver Bow",0.04,"Non-profit","Acq/Rehab","Family",65,1,3348700,{"$f":"5850950*0.5","v":2925475},{"$f":"13200000*0.5","v":6600000},{"$f":"6535000*0.5","v":3267500},4.2999999999999997E-2,40,"2021-03-10","2021-04-01","2021-04-01","2035-04-01",31,"2066-04-01","Butte Affordable Housing",null,null,null,null,null,"rstordahl@buttehousing.org",4067826464,null,null,null,null,null,null,null,null,null,324,66,null,null,62,4,null,null,null,null,null,null,"40/60",null,null,null,null,65,null,null,null,null,65,{"$f":"((BH69*BH$1)+(BI69*BI$1)+(BJ69*BJ$1)+(BK69*BK$1)+(BL69*BL$1)+(BM69*BM$1))/SUM(BH69:BM69)","v":0.6},14514453,{"$f":"VLOOKUP(M69,#REF!,2,TRUE)*(BR69/1000000)","v":{"$error":"#REF!"}},{"$f":"VLOOKUP(M69,#REF!,3,TRUE)*(BR69/1000000)","v":{"$error":"#REF!"}}]
["2020-07-23",2020,"Active","Leggat 4%","1125 S Main St","Butte",59701,45.998860000000001,-112.53507,"Silver Bow",0.04,"Non-profit","Acq/Rehab","Family",30,1,1757460,{"$f":"5850950*0.23","v":1345718.5},{"$f":"13200000*0.23","v":3036000},{"$f":"6535000*0.23","v":1503050},4.2999999999999997E-2,40,"2021-04-19","2021-05-01","2021-05-01","2035-05-01",31,"2066-05-01","Butte Affordable Housing",null,null,null,null,null,"rstordahl@buttehousing.org",4067826464,null,null,null,null,null,null,null,null,null,324,30,null,null,25,5,null,null,null,null,null,null,"40/60",null,null,null,null,30,null,null,null,null,30,0.6,6698979,{"$f":"VLOOKUP(M70,#REF!,2,TRUE)*(BR70/1000000)","v":{"$error":"#REF!"}},{"$f":"VLOOKUP(M70,#REF!,3,TRUE)*(BR70/1000000)","v":{"$error":"#REF!"}}]
["2020-07-23",2020,"Active","Elm Street 4%","1500 Elm St","Butte",59701,46.001069999999999,-112.51832,"Silver Bow",0.04,"Non-profit","Acq/Rehab","Family",35,15,1600480,{"$f":"5850950*0.274","v":1603160.3},{"$f":"13200000*0.27","v":3564000.0000000005},{"$f":"6535000*0.27","v":1764450},4.2999999999999997E-2,40,"2020-12-04","2021-01-01","2021-01-01","2035-01-01",31,{"$f":"DATE(YEAR(Z71)+AA71,MONTH(Z71),DAY(Z71))","v":"2066-01-01"},"Butte Affordable Housing","Good Housing Partnership","2020 Curtis St","Butte","MT",59701,"rstordahl@buttehousing.org",4067826464,null,null,null,null,null,null,null,null,null,324,35,null,null,24,5,6,null,null,null,null,null,"40/60",null,null,null,null,35,null,null,null,null,35,0.6,7815475,{"$f":"VLOOKUP(M71,#REF!,2,TRUE)*(BR71/1000000)","v":{"$error":"#REF!"}},{"$f":"VLOOKUP(M71,#REF!,3,TRUE)*(BR71/1000000)","v":{"$error":"#REF!"}}]
["2019-10-28",2020,"Active","Burnt Fork Place","67 Box Bird Lane","Stevensville",59870,47.168689999999998,-111.8877,"Ravalli",0.09,"Non-profit","New Const","Family",16,5,3600000,3113689,null,null,null,0,"2021-06-07","2021-01-01","2021-06-07","2035-06-07",31,"2066-06-07","HRC - Missoula","Jim Morton","1801 South Higgins Ave","Missoula","MT",59801,"jpm@hrcxi.org",4067283710,null,null,null,null,null,null,null,null,null,69,16,null,null,null,12,4,null,null,null,null,null,"40/60",null,null,2,10,4,null,null,null,null,16,0.51249999999999996,3832000,{"$f":"VLOOKUP(M72,#REF!,2,TRUE)*(BR72/1000000)","v":{"$error":"#REF!"}},{"$f":"VLOOKUP(M72,#REF!,3,TRUE)*(BR72/1000000)","v":{"$error":"#REF!"}}]
["2019-10-28",2020,"Active","Homestead Lodge","121 S Weast Ave","Absarokee",59001,45.516682000000003,-109.44182600000001,"Stillwater",0.09,"Non-profit","Acq/Rehab","Senior",32,1,3845340,3306663,null,null,null,null,"2021-01-29","2021-01-29","2021-01-29","2035-01-29",31,"2066-01-29","Syringa Housing ","Dianne Hunt","1277 Shoreline Lane","Boise","ID",83702,"dianne@syringaproperties.com",2083877817,null,null,null,null,null,null,null,null,null,10,32,null,null,28,4,null,null,null,null,null,null,"40/60",null,null,4,19,8,null,null,null,null,31,0.51290322580645153,4285456,{"$f":"VLOOKUP(M73,#REF!,2,TRUE)*(BR73/1000000)","v":{"$error":"#REF!"}},{"$f":"VLOOKUP(M73,#REF!,3,TRUE)*(BR73/1000000)","v":{"$error":"#REF!"}}]
["2019-10-28",2020,"Active","Skyview","2400 S 9th ST W","Missoula",59801,46.861459000000004,-114.04061299999999,"Missoula",0.09,"For-Profit","New Const","Senior",36,1,5900000,5102990,null,null,null,null,"2021-12-28","2022-01-01","2021-12-28","2035-12-28",31,"2066-12-28","Housing Solutions","Alex Burkhalter","PO Box 2099","Missoula","MT",59806,"alex@housing-solutions.org",4062031558,null,null,null,null,null,null,null,null,null,266,36,null,null,23,12,null,null,null,null,null,1,"40/60",null,null,4,27,4,null,null,null,null,35,0.5,6624254,{"$f":"VLOOKUP(M74,#REF!,2,TRUE)*(BR74/1000000)","v":{"$error":"#REF!"}},{"$f":"VLOOKUP(M74,#REF!,3,TRUE)*(BR74/1000000)","v":{"$error":"#REF!"}}]
["2019-10-28",2020,"Active","Pioneer Meadows","725 North Walnut Street","Dillon",59725,45.21743,-112.62681000000001,"Beaverhead",0.09,"Non-profit","New Const","Family",28,5,6203630,5396626,null,null,null,0,"2021-05-31","2021-01-01","2021-05-31","2035-05-31",31,"2066-05-31","The Housing Company","Blake Jumper","PO Box 6943","Boise","ID",83707,"blakej@ihfa.org",2083314765,null,null,null,null,null,null,null,null,null,111,29,null,null,4,16,8,null,null,null,null,1,"40/60",null,null,null,23,4,null,null,null,null,27,0.51481481481481484,6385318,{"$f":"VLOOKUP(M75,#REF!,2,TRUE)*(BR75/1000000)","v":{"$error":"#REF!"}},{"$f":"VLOOKUP(M75,#REF!,3,TRUE)*(BR75/1000000)","v":{"$error":"#REF!"}}]
["2019-10-28",2020,"Active","Fire Tower Apts","6 S Park Ave","Helena",59601,46.587560000000003,-112.04116999999999,"Lewis and Clark",0.09,"For-Profit","Acq/Rehab","Family",44,2,6333750,5446480,null,null,null,null,"2021-01-01","2021-01-01","2021-01-01","2035-01-01",31,"2066-01-01","Wishcamper Dev Ptnrs","Tyson O'Connell","131 S Higgins Ave STE P-1","Missoula","MT",59802,"tyson.oconnell@wishrockgroup.com",4067283040,null,null,null,null,null,null,null,null,null,323,44,null,null,24,20,null,null,null,null,null,null,"AI",null,null,5,26,6,null,7,null,null,44,0.55000000000000004,7203715,{"$f":"VLOOKUP(M76,#REF!,2,TRUE)*(BR76/1000000)","v":{"$error":"#REF!"}},{"$f":"VLOOKUP(M76,#REF!,3,TRUE)*(BR76/1000000)","v":{"$error":"#REF!"}}]
["2019-10-28",2020,"Active","Timber Ridge Apts (9% of 4/9)","2769 Tschache Ln","Bozeman",59718,45.697589999999998,-111.07331499999999,"Gallatin",0.09,"For-Profit","New Const","Senior",30,1,6333750,5446480,null,null,null,null,"2023-06-02","2023-01-01","2023-06-02","2037-06-02",31,"2068-06-02","Summitt Hsing Group","Austin Richardson","2525 Palmer St STE 1","Missoula","MT",59808,"austinr@summithousinggroup.com",4068024487,"Andrea David","City of Missoula",null,"Missoula","MT",59801,"40%/50%60%",null,"406-552-6001",113,30,null,null,20,10,null,null,null,null,null,null,"40/60",null,null,3,23,4,null,null,null,null,30,0.5033333333333333,7203715,{"$f":"VLOOKUP(M77,#REF!,2,TRUE)*(BR77/1000000)","v":{"$error":"#REF!"}},{"$f":"VLOOKUP(M77,#REF!,3,TRUE)*(BR77/1000000)","v":{"$error":"#REF!"}}]
["2018-11-19",2019,"Active","Cottonwood Creek (see orig credits 2018)","787 Buckskin Dr","Deer Lodge",59722,46.408918999999997,-112.72872099999999,"Powell",0.09,"General","New Const","Family","see orig credits below",null,617770,null,null,null,null,null,"2020-09-24",null,"2020-09-24","2034-09-24",31,"2065-09-24"]
["2018-11-19",2019,"Active","Alpenglow","524 Edgewood Pl","Whitefish",59937,48.415672999999998,-114.34268899999999,"Flathead",0.09,"Non-profit","New Const","Family",38,3,6750000,6075000,null,null,null,null,"2020-10-30","2021-01-01","2021-01-01","2035-01-01",31,"2066-01-01","Homeword, Inc.","Heather McMilan","1535 Liberty Ln","Missoula","MT",59808,"heather@homeword.org",4065324663,null,null,null,null,null,null,null,null,null,null,{"$f":"SUM(AV79:BE79)","v":38},null,null,12,20,6,null,null,null,null,null,"40/60",null,null,4,24,10,null,null,null,1,{"$f":"SUM(BH79:BO79)","v":39},{"$f":"((BH79*BH$1)+(BI79*BI$1)+(BJ79*BJ$1)+(BK79*BK$1)+(BL79*BL$1)+(BM79*BM$1))/SUM(BH79:BM79)","v":0.51578947368421058},8708814,{"$f":"VLOOKUP(M79,#REF!,2,TRUE)*(BR79/1000000)","v":{"$error":"#REF!"}},{"$f":"VLOOKUP(M79,#REF!,3,TRUE)*(BR79/1000000)","v":{"$error":"#REF!"}}]
["2019-10-22",2019,"Active","Red Alder 4%","2200 Henderson","Helena",59601,46.612290000000002,-112.05502,"Lewis and Clark",0.04,"Non-profit","New Const","Family",48,14,3150940,3402674,6000000,3900000,4.7500000000000001E-2,35,"2020-12-02","2021-01-01","2021-01-01","2035-01-01",31,"2066-01-01","GL Development/RMDC",null,null,null,null,null,"lmogstad@rmdc.net",null,null,null,null,null,null,null,null,null,null,null,null,null,null,null,null,null,null,null,null,null,null,null,null,null,null,null,null,null,null,null,null,null,null,11521105,{"$f":"VLOOKUP(M80,#REF!,2,TRUE)*(BR80/1000000)","v":{"$error":"#REF!"}},{"$f":"VLOOKUP(M80,#REF!,3,TRUE)*(BR80/1000000)","v":{"$error":"#REF!"}}]
["2017-11-20",2019,"Active","Bluebunch Flats (see original credits 2018)","504 S 13Th Street","Livingston",59047,45.649383027712503,-110.569253440834,"Park",0.09,"Non-profit","Acq/Rehab","Family",34,1,5800000,5219478,null,null,null,null,"2020-08-31",null,"2020-08-31","2034-08-31",31,"2065-08-31","Bluebunch Flats LLLP","Andrea Davis","1535 Liberty Lane Ste 116A","Missoula MT 59808",null,null,null,null,null,null,null,null,null,null,null,null,null,null,null,null,null,null,null,null,null,null,null,null,null,null,null,null,null,null,null,null,null,null,null,null,null,null,{"$f":"VLOOKUP(M81,#REF!,2,TRUE)*(BR81/1000000)","v":{"$error":"#REF!"}},{"$f":"VLOOKUP(M81,#REF!,3,TRUE)*(BR81/1000000)","v":{"$error":"#REF!"}}]
["2018-11-19",2019,"Active","Red Alder 9%","2200 Henderson","Helena",59601,46.612290000000002,-112.05502,"Lewis and Clark",0.09,"Non-profit","New Const","Family",37,11,7790000,6075592,null,null,null,null,"2020-10-26","2021-01-01","2021-01-01","2035-01-01",31,"2066-01-01","RMDC & GLD","Liz Mogstad","PO Box 1717","Helena","MT",59624,"lmogstad@rmdc.net",4064577473,null,null,null,null,null,null,null,null,null,null,null,null,null,null,null,null,null,null,null,null,null,null,null,null,null,null,null,null,null,null,null,null,null,8268072,{"$f":"VLOOKUP(M82,#REF!,2,TRUE)*(BR82/1000000)","v":{"$error":"#REF!"}},{"$f":"VLOOKUP(M82,#REF!,3,TRUE)*(BR82/1000000)","v":{"$error":"#REF!"}}]
["2018-11-19",2019,"Active","Chapel Court","3940 Rimrock Rd","Billings",59102,45.797939999999997,-108.61602999999999,"Yellowstone",0.09,"Non-profit","New Const","Senior",54,1,8023110,7099742,null,null,null,null,"2021-01-01","2021-01-01","2021-01-01","2035-01-01",31,"2066-01-01","St John's Luth / CR Bldrs ","David Trost","2429 Mission Way","Billings","MT",59102,"dtrost@sjlm.org",4066555623,null,null,null,null,null,null,null,null,null,null,{"$f":"SUM(AV83:BE83)","v":54},null,null,54,null,null,null,null,null,null,null,"40/60",null,8,null,34,12,null,null,2,null,{"$f":"SUM(BH83:BO83)","v":56},{"$f":"((BH83*BH$1)+(BI83*BI$1)+(BJ83*BJ$1)+(BK83*BK$1)+(BL83*BL$1)+(BM83*BM$1))/SUM(BH83:BM83)","v":0.49259259259259253},10360579,{"$f":"VLOOKUP(M83,#REF!,2,TRUE)*(BR83/1000000)","v":{"$error":"#REF!"}},{"$f":"VLOOKUP(M83,#REF!,3,TRUE)*(BR83/1000000)","v":{"$error":"#REF!"}}]
["2018-11-19",2019,"Active","Meadowlark Vista","311 11Th Ave Nw","Ronan",59864,47.532310000000003,-114.11508000000001,"Lake",0.09,"Non-profit","New Const","Family",24,2,4493320,3886722,null,null,null,null,"2021-08-31",null,"2021-08-31","2035-08-31",31,"2066-08-31","Lake Co CHDO and RCAC","Jodie Paxton","PO Box 146","Ronan","MT",59864,"Housing@ronan.net",4066765900,null,null,null,null,null,null,null,null,null,null,24,null,null,4,12,8,null,null,null,null,null,"40/60",null,null,4,12,8,null,null,null,null,{"$f":"SUM(BH84:BO84)","v":24},{"$f":"((BH84*BH$1)+(BI84*BI$1)+(BJ84*BJ$1)+(BK84*BK$1)+(BL84*BL$1)+(BM84*BM$1))/SUM(BH84:BM84)","v":0.51666666666666661},5594894,{"$f":"VLOOKUP(M84,#REF!,2,TRUE)*(BR84/1000000)","v":{"$error":"#REF!"}},{"$f":"VLOOKUP(M84,#REF!,3,TRUE)*(BR84/1000000)","v":{"$error":"#REF!"}}]
["2018-11-19",2019,"Active","Oakwood Village ","1915 1St St Ne","Havre",59501,48.554369999999999,-109.65433,"Hill",0.09,"Non-profit","Acq/Rehab","Family",60,4,3881250,3221115,null,null,null,null,"2021-08-16",null,"2021-08-16","2035-08-16",31,"2066-08-16","Affiliated Developers","Kirk Bruce","PO Box 725378","Berkley","MI",48072,"kirk@a-developers.com",2485252516,null,null,null,null,null,null,null,null,null,null,60,null,null,null,{"$f":"23+12+1","v":36},{"$f":"16+7+1","v":24},null,null,null,null,null,"40/60",null,39,19,2,null,null,null,null,null,60,0.33833333333333332,7716755,{"$f":"VLOOKUP(M85,#REF!,2,TRUE)*(BR85/1000000)","v":{"$error":"#REF!"}},{"$f":"VLOOKUP(M85,#REF!,3,TRUE)*(BR85/1000000)","v":{"$error":"#REF!"}}]
["2017-01-23",2018,"Active","Roosevelt Villas (see orig credits 2017)","123 & 127 Edgar St Wp/22 & 24 W 2Nd St Culbertson","Wolf Point/Culbertson",59218,48.145356,-104.518564,"Roosevelt ",0.09,"General ","Acq/Rehab","Family",16,2,330000,{"$f":"2594345-2372000","v":222345},null,null,null,null,"2019-05-01",null,"2019-05-01","2033-05-01",31,"2064-05-01","Roosevelt Villas LLLP","Gene Leuwer","4799 Echo Dr","Helena MT 59602",null,null,null,null,null,null,null,null,null,null,null,null,null,null,16,null,null,8,8,null,null,null,null,null,null,null,null,null,null,null,null,null,null,null,null,null,null,3759345,{"$f":"VLOOKUP(M86,#REF!,2,TRUE)*(BR86/1000000)","v":{"$error":"#REF!"}},{"$f":"VLOOKUP(M86,#REF!,3,TRUE)*(BR86/1000000)","v":{"$error":"#REF!"}}]
["2016-01-19",2018,"Active","North Star (see orig credits 2016)","1225 4Th Ave North","Wolf Point",59201,48.102020000000003,-105.64167999999999,"Roosevelt",0.09,"General","New Const","Family",28,1,550000,429000,null,null,null,null,"2017-11-22",null,"2017-11-22","2031-11-22",31,"2062-11-22","North Star Apartments LLLP","Gene Leuwer","4799 Echo Dr","Helena MT 59602",null,null,null,null,null,null,null,null,null,null,null,null,null,null,28,null,null,8,12,8,null,null,null,null,null,null,null,null,null,null,null,null,null,null,null,null,null,6814207,{"$f":"VLOOKUP(M87,#REF!,2,TRUE)*(BR87/1000000)","v":{"$error":"#REF!"}},{"$f":"VLOOKUP(M87,#REF!,3,TRUE)*(BR87/1000000)","v":{"$error":"#REF!"}}]
["2018-12-01",2018,"Active","Starner Gardens 4%","230 Starner Ln","Billings",59105,45.822589999999998,-108.47787,"Yellowstone",0.04,"General","New Const","Senior",101,8,8045480,8855984,15000000,7875200,4.7500000000000001E-2,35,"2019-12-12",null,"2019-12-12","2033-12-12",31,"2064-12-12","GMD Development / Homeword","Greg Dunfield","520 Pike Street Ste 1010","Seattle WA 98110",null,null,null,null,null,null,null,null,null,null,null,null,null,null,null,null,null,null,null,null,null,null,null,null,null,null,null,null,null,null,null,null,null,null,null,null,null,19778632,{"$f":"VLOOKUP(M88,#REF!,2,TRUE)*(BR88/1000000)","v":{"$error":"#REF!"}},{"$f":"VLOOKUP(M88,#REF!,3,TRUE)*(BR88/1000000)","v":{"$error":"#REF!"}}]
[null,2018,"Active","Cottonwood Creek (see add'l credits 2019)","787 Buckskin Dr","Deer Lodge",59722,46.408931000000003,-112.72872,"Powell",0.09,"General","New Const","Family",21,6,{"$f":"3990000+348970","v":4338970},4212808,null,null,null,null,"2020-09-24",null,"2020-09-24","2034-09-24",31,"2065-09-24",null,null,null,null,null,null,null,null,null,null,null,null,null,null,null,null,null,null,null,null,null,null,null,null,null,null,null,null,null,null,null,null,null,null,null,null,null,null,null,null,null,4872807,{"$f":"VLOOKUP(M89,#REF!,2,TRUE)*(BR89/1000000)","v":{"$error":"#REF!"}},{"$f":"VLOOKUP(M89,#REF!,3,TRUE)*(BR89/1000000)","v":{"$error":"#REF!"}}]
["2018-10-01",2018,"Active","Copper Ridge 4%","101 Elderberry Ln","Butte",59701,45.969140000000003,-112.47703,"Silver Bow",0.04,"Non-profit","New Const","Family",32,4,1485560,1485411,3584712,2833504,4.2500000000000003E-2,35,"2020-02-20",null,"2020-02-20","2034-02-20",31,"2065-02-20","Thomas Development/Butte HA","Tom Mannschreck/Revonda Strodahl","413 W Idaho ST Ste 200 ","Boise","ID",83702,"tmannschreck@thomasdevelopment.com","208-343-8877 x202",null,null,null,null,null,null,null,null,null,219,32,null,null,null,16,16,null,null,null,null,null,"40/60",null,null,null,6,26,null,null,null,null,null,null,5280548,{"$f":"VLOOKUP(M90,#REF!,2,TRUE)*(BR90/1000000)","v":{"$error":"#REF!"}},{"$f":"VLOOKUP(M90,#REF!,3,TRUE)*(BR90/1000000)","v":{"$error":"#REF!"}}]
["2017-11-20",2018,"Active","Meadows Senior","603 Brassey Street","Lewistown",55317,47.059778999999999,-109.424194,"Fergus",0.09,"Non-profit","Rehab","Senior",35,9,3200000,2814437,null,null,null,null,"2019-01-01",null,"2019-01-01","2033-01-01",31,"2064-01-01","Meadows LLC","Ken Talle","470 West 78th St Ste 260","Chanhassen MN 55317",null,null,null,null,null,null,null,null,null,null,null,null,null,null,null,null,null,null,null,null,null,null,null,null,null,null,null,null,null,null,null,null,null,null,null,null,null,4225371,{"$f":"VLOOKUP(M91,#REF!,2,TRUE)*(BR91/1000000)","v":{"$error":"#REF!"}},{"$f":"VLOOKUP(M91,#REF!,3,TRUE)*(BR91/1000000)","v":{"$error":"#REF!"}}]
["2017-11-20",2018,"Active","Starner Gardens 9%","230 Starner Ln","Billings",59105,45.823442999999997,-108.479421,"Yellowstone",0.09,"General","New Const","Senior",40,3,6775000,5215707,null,null,null,null,"2019-12-12",null,"2019-12-12","2033-12-12",31,"2064-12-12","Heights Senior 9% LLLP","Greg Dunfield","520 Pike Street Ste 1010","Seattle WA 98110",null,null,null,null,null,null,null,null,null,null,null,null,null,null,null,null,null,null,null,null,null,null,null,null,null,null,null,null,null,null,null,null,null,null,null,null,null,6938233,{"$f":"VLOOKUP(M92,#REF!,2,TRUE)*(BR92/1000000)","v":{"$error":"#REF!"}},{"$f":"VLOOKUP(M92,#REF!,3,TRUE)*(BR92/1000000)","v":{"$error":"#REF!"}}]
["2017-11-20",2018,"Active","Courtyard Apartments","1842 Airport Road","Kalispell",59904,48.180807000000001,-114.309713,"Flathead",0.09,"Non-profit","Acq/Rehab","Family",32,4,4490000,3950805,null,null,null,null,"2018-07-19",null,"2018-07-19","2032-07-19",31,"2063-07-19","Courtyard Associates MT LP","Marney McCleary","PO Box 8300","Kalispell MT 59904",null,null,null,null,null,null,null,null,null,null,null,null,null,null,null,null,null,null,null,null,null,null,null,null,null,null,null,null,null,null,null,null,null,null,null,null,null,4892963,{"$f":"VLOOKUP(M93,#REF!,2,TRUE)*(BR93/1000000)","v":{"$error":"#REF!"}},{"$f":"VLOOKUP(M93,#REF!,3,TRUE)*(BR93/1000000)","v":{"$error":"#REF!"}}]
["2017-11-20",2018,"Active","Copper Ridge 9% (includes orig + add'L credit)","119 Elderberry Lane","Butte",59701,45.970108000000003,-112.476641,"Silver Bow",0.09,"Non-profit","New Const","Family",32,5,{"$f":"5239540+472820","v":5712360},5083027,null,null,null,null,"2020-05-05",null,"2020-05-05","2034-05-05",31,"2065-05-05","Copper Ridge 9% LLC","Tom Mannschreck/Revonda Strodahl","413 W Idaho ST Ste 200 ","Boise","ID",83702,"tmannschreck@thomasdevelopment.com","208-343-8877 x202",null,null,null,null,null,null,null,null,null,219,32,null,null,null,16,16,null,null,null,null,null,"40/60",null,null,6,20,6,null,null,null,null,null,null,7410996,{"$f":"VLOOKUP(M94,#REF!,2,TRUE)*(BR94/1000000)","v":{"$error":"#REF!"}},{"$f":"VLOOKUP(M94,#REF!,3,TRUE)*(BR94/1000000)","v":{"$error":"#REF!"}}]
["2017-11-20",2018,"Active","Bluebunch Flats (see add'l credits 2019)","504 S 13Th Street","Livingston",59047,48.187339000000001,-114.301374,"Park",0.09,"Non-profit","Acq/Rehab","Family",37,2,5874690,5404714,null,null,null,null,"2020-08-31","2020-01-01","2020-08-31","2034-08-31",31,"2065-08-31","Bluebunch Flats LLLP","Andrea Davis","1535 Liberty Lane Ste 116A","Missoula MT 59808",null,null,null,null,null,null,null,null,null,null,null,null,null,null,null,null,null,null,null,null,null,null,null,null,null,null,null,null,null,null,null,null,null,null,null,null,null,8593552,{"$f":"VLOOKUP(M95,#REF!,2,TRUE)*(BR95/1000000)","v":{"$error":"#REF!"}},{"$f":"VLOOKUP(M95,#REF!,3,TRUE)*(BR95/1000000)","v":{"$error":"#REF!"}}]
["2016-01-19",2018,"Active","Freedoms Path (refreshed credits fr 2016)","3687 Veterans Dr","Ft Harrison (Helena)",59636,46.618734000000003,-112.10198,"Lewis and Clark",0.09,"General","Acq/Rehab","Family",42,12,6704660,5832471,null,null,null,null,"2019-03-28",null,"2019-03-28","2033-03-28",35,"2068-03-28","Ft. harrison Veterans Residences LP","Donald Paxton","3550 S. Tamiami Trail Suite 300","Sarasota FL 34239",null,null,null,null,null,null,null,null,null,null,null,null,null,null,42,null,1,22,13,4,2,null,null,null,null,null,null,null,null,null,null,null,null,null,null,null,null,12406829,{"$f":"VLOOKUP(M96,#REF!,2,TRUE)*(BR96/1000000)","v":{"$error":"#REF!"}},{"$f":"VLOOKUP(M96,#REF!,3,TRUE)*(BR96/1000000)","v":{"$error":"#REF!"}}]
["2017-10-25",2017,"Active","Big Sky Manor resynd 4%","110 2Nd Ave","Kalispell",59901,48.196959999999997,-114.31666,"Flathead",0.04,"General ","Acq/Rehab","Senior",60,1,2443870,2394758,4500000,3966844,3.85E-2,30,"2017-10-22",null,"2017-10-22","2031-10-22",31,"2062-10-22","Big Sky Preservation LP","Monfic Inc",null,null,null,null,null,null,null,null,null,null,null,null,null,null,null,null,null,null,null,null,null,null,null,null,null,null,null,null,null,null,null,null,null,null,null,null,null,null,null,7380051,{"$f":"VLOOKUP(M97,#REF!,2,TRUE)*(BR97/1000000)","v":{"$error":"#REF!"}},{"$f":"VLOOKUP(M97,#REF!,3,TRUE)*(BR97/1000000)","v":{"$error":"#REF!"}}]
["2017-01-16",2017,"Active","Rockcress 4%","2108 23Rd St S (23 Rd St S & 24Th Ave S)","Great Falls",59401,47.480629999999998,-111.26969,"Cascade ",0.04,"General ","New Const","Family",92,4,7863410,7639363,15000000,7896451,4.4999999999999998E-2,35,"2020-04-17","2020-01-01","2020-04-17","2034-04-17",31,"2065-04-17","GMD Development LLC/NWGF",null,null,null,null,null,null,null,null,null,null,null,null,null,null,null,null,null,null,null,null,null,null,null,null,null,null,null,null,null,null,null,null,null,null,null,null,null,null,null,null,17924755,{"$f":"VLOOKUP(M98,#REF!,2,TRUE)*(BR98/1000000)","v":{"$error":"#REF!"}},{"$f":"VLOOKUP(M98,#REF!,3,TRUE)*(BR98/1000000)","v":{"$error":"#REF!"}}]
["2017-01-23",2017,"Active","Rockcress 9%","2108 23Rd St S (23 Rd St S & 24Th Ave S)","Great Falls",59401,47.480629999999998,-111.26969,"Cascade ",0.09,"General ","New Const","Family",32,3,6775000,5536092,null,null,null,null,"2019-12-31","2020-01-01","2020-01-01","2034-01-01",31,"2065-01-01","MT Rockcress 9% LLLP","Steve Dymoke/Neil Fortier ","520 Pike St, Suite 1010","Seattle WA 98110",null,null,null,null,null,null,null,null,null,null,null,null,null,null,124,null,null,60,38,26,null,null,null,null,null,null,null,null,null,null,null,null,null,null,null,null,null,7061263,{"$f":"VLOOKUP(M99,#REF!,2,TRUE)*(BR99/1000000)","v":{"$error":"#REF!"}},{"$f":"VLOOKUP(M99,#REF!,3,TRUE)*(BR99/1000000)","v":{"$error":"#REF!"}}]
["2017-01-23",2017,"Active","Blackfeet VI","63 Heart Butte Rd","Browning",59417,48.536234999999998,-113.012406,"Glacier",0.09,"Tribal","New Const","Family",30,30,6775000,5727690,null,null,null,null,"2019-02-01",null,"2019-02-01","2033-02-01",31,"2064-02-01","Blackfeet Housing Limited Partnership #6","Chancy Kittson ","1200 SW Boundary, PO Box 449","Browning MT 59417",null,null,null,null,null,null,null,null,null,null,null,null,null,null,30,null,null,null,null,20,10,null,null,null,null,null,null,null,null,null,null,null,null,null,null,null,null,6895539,{"$f":"VLOOKUP(M100,#REF!,2,TRUE)*(BR100/1000000)","v":{"$error":"#REF!"}},{"$f":"VLOOKUP(M100,#REF!,3,TRUE)*(BR100/1000000)","v":{"$error":"#REF!"}}]
["2017-01-23",2017,"Active","Polson Landing","402 Ridgewater Dr","Polson",59860,47.684306999999997,-114.13052399999999,"Lake ",0.09,"General ","New Const","Family",35,3,6765000,6020248,null,null,null,null,"2017-12-15",null,"2017-12-15","2031-12-15",31,"2062-12-15","Polson Landing LLLP","Alex Burkhalter ","PO Box 2099","Missoula MT 59806",null,null,null,null,null,null,null,null,null,null,null,null,null,null,35,null,null,3,19,13,null,null,null,null,null,null,null,null,null,null,null,null,null,null,null,null,null,6944325,{"$f":"VLOOKUP(M101,#REF!,2,TRUE)*(BR101/1000000)","v":{"$error":"#REF!"}},{"$f":"VLOOKUP(M101,#REF!,3,TRUE)*(BR101/1000000)","v":{"$error":"#REF!"}}]
["2017-01-23",2017,"Active","Gateway Vista","945 Wyoming Avenue","Billings",59101,45.778612000000003,-108.53908199999999,"Yellowstone",0.09,"Non-profit","New Const","Family",24,1,4176140,3549364,null,null,null,null,"2018-07-13",null,"2018-07-13","2032-07-13",31,"2063-07-13","YWCA Billings","Merry Lee Olson","909 Wyoming Ave","Billings MT 59101",null,null,null,null,null,null,null,null,null,null,null,null,null,null,24,null,null,11,13,null,null,null,null,null,null,null,null,null,null,null,null,null,null,null,null,null,null,4647521,{"$f":"VLOOKUP(M102,#REF!,2,TRUE)*(BR102/1000000)","v":{"$error":"#REF!"}},{"$f":"VLOOKUP(M102,#REF!,3,TRUE)*(BR102/1000000)","v":{"$error":"#REF!"}}]
["2017-01-23",2017,"Active","Roosevelt Villas (see add'L credits 2018)","123 & 127 Edgar St Wp/22 & 24 W 2Nd St Culbertson","Wolf Point/Culbertson",59218,48.145935000000001,-104.51875699999999,"Roosevelt ",0.09,"General ","Acq/Rehab","Family","same",null,2722170,2372000,null,null,null,null,"2019-05-01",null,{"$f":"IF(W103>X103,W103,X103)","v":"2019-05-01"},{"$f":"DATE(YEAR(Y103)+14,MONTH(Y103),DAY(Y103))","v":"2033-05-01"},31,{"$f":"DATE(YEAR(Z103)+AA103,MONTH(Z103),DAY(Z103))","v":"2064-05-01"},"Roosevelt Villas LLLP","Gene Leuwer","4799 Echo Dr","Helena MT 59602",null,null,null,null,null,null,null,null,null,null,null,null,null,null,16,null,null,8,8,null,null,null,null,null,null,null,null,null,null,null,null,null,null,null,null,null,null,null,{"$f":"VLOOKUP(M103,#REF!,2,TRUE)*(BR103/1000000)","v":{"$error":"#REF!"}},{"$f":"VLOOKUP(M103,#REF!,3,TRUE)*(BR103/1000000)","v":{"$error":"#REF!"}}]
["2016-12-01",2016,"Active","River Run Apartments 4%","3416/3200 11Th Ave S; 429 56Th St S; 701 3Rd Ave Nw","Great Falls",59401,47.492609999999999,-111.25169,"Cascade",0.04,"General","Acq/Rehab","Family",96,8,4453030,4355494,7500000,8353000,3.5000000000000003E-2,40,"2017-12-31",null,"2017-12-31","2031-12-31",15,"2046-12-31","Wishcamper Dev Ptnrs/NWGF",null,null,null,null,null,null,null,null,null,null,null,null,null,null,null,null,null,null,null,null,null,null,null,null,null,null,null,null,null,null,null,null,null,null,null,null,null,null,null,null,14109697,{"$f":"VLOOKUP(M104,#REF!,2,TRUE)*(BR104/1000000)","v":{"$error":"#REF!"}},{"$f":"VLOOKUP(M104,#REF!,3,TRUE)*(BR104/1000000)","v":{"$error":"#REF!"}}]
["2016-01-19",2016,"Active","Valley Villas","404, 410, 414 N 10Th Street","Hamilton",59840,46.249890000000001,-114.16888,"Ravalli",0.09,"General","Acq/Rehab","Family",34,3,5603920,5211124,null,null,null,null,"2016-12-12",null,"2016-12-12","2030-12-12",31,"2061-12-12","Echo Enterprises LLC","Beki Glyde Brandborg","4835 Echo Dr","Helena MT 59602",null,null,null,null,null,null,null,null,null,null,null,null,null,null,34,null,null,8,26,null,null,null,null,null,null,null,null,null,null,null,null,null,null,null,null,null,null,6652867,{"$f":"VLOOKUP(M105,#REF!,2,TRUE)*(BR105/1000000)","v":{"$error":"#REF!"}},{"$f":"VLOOKUP(M105,#REF!,3,TRUE)*(BR105/1000000)","v":{"$error":"#REF!"}}]
["2016-01-19",2016,"Active","Red Fox","344 Sioux Lane","Billings",59101,45.824007000000002,-108.477512,"Yellowstone",0.09,"General","New Const","Family",30,8,3395880,3497407,null,null,null,null,"2018-06-19",null,"2018-06-19","2032-06-19",32,"2064-06-19","Red Fox Apartments LLLP","Lucy Brown","2415 First Ave N","Billings MT 59101",null,null,null,null,null,null,null,null,null,null,null,null,null,null,30,null,null,15,15,null,null,null,null,null,null,null,null,null,null,null,null,null,null,null,null,null,null,6026028,{"$f":"VLOOKUP(M106,#REF!,2,TRUE)*(BR106/1000000)","v":{"$error":"#REF!"}},{"$f":"VLOOKUP(M106,#REF!,3,TRUE)*(BR106/1000000)","v":{"$error":"#REF!"}}]
["2016-01-19",2016,"Active","North Star (see add'L credits 2018)","1225 4Th Ave North","Wolf Point",59201,48.102020000000003,-105.64167999999999,"Roosevelt",0.09,"General","New Const","Family","same",null,{"$f":"5570420","v":5570420},5012877,null,null,null,null,"2017-11-22",null,"2017-11-22","2031-11-22",31,"2062-11-22","North Star Apartments LLLP","Gene Leuwer","4799 Echo Dr","Helena MT 59602",null,null,null,null,null,null,null,null,null,null,null,null,null,null,28,null,null,8,12,8,null,null,null,null,null,null,null,null,null,null,null,null,null,null,null,null,null,6385217,{"$f":"VLOOKUP(M107,#REF!,2,TRUE)*(BR107/1000000)","v":{"$error":"#REF!"}},{"$f":"VLOOKUP(M107,#REF!,3,TRUE)*(BR107/1000000)","v":{"$error":"#REF!"}}]
["2016-01-19",2016,"Active","Little Jon Rehab (resyndicated)","1150 Grand Drive","Big Fork",59911,48.067506999999999,-114.077213,"Flathead",0.09,"Non-profit","Acq/Rehab","Family",31,3,2625390,2573396,null,null,null,null,"2017-02-16",null,"2017-02-16","2031-02-16",31,"2062-02-16","TBD","Gregory Dunfield","520 Pike St Suite 1010","Seattle WA 98101",null,null,null,null,null,null,null,null,null,null,null,null,null,null,31,null,null,8,20,3,null,null,null,null,null,null,null,null,null,null,null,null,null,null,null,null,null,4082561,{"$f":"VLOOKUP(M108,#REF!,2,TRUE)*(BR108/1000000)","v":{"$error":"#REF!"}},{"$f":"VLOOKUP(M108,#REF!,3,TRUE)*(BR108/1000000)","v":{"$error":"#REF!"}}]
["2016-01-19",2016,"Refreshed","Freedoms Path (returned see 2018 refreshed credits)","3687 Veterans Dr","Ft Harrison (Helena)",59636,46.618734000000003,-112.10198,"Lewis and Clark",0.09,"General","Acq/Rehab","Family",42,12,6704660,5843724,null,null,null,null,"1905-07-11",null,"1905-07-11","1919-07-11",15,"1934-07-11","Ft. harrison Veterans Residences LP","Donald Paxton","3550 S. Tamiami Trail Suite 300","Sarasota FL 34239",null,null,null,null,null,null,null,null,null,null,null,null,null,null,42,null,1,22,13,4,2,null,null,null,null,null,null,null,null,null,null,null,null,null,null,null,null,11960772,{"$f":"VLOOKUP(M109,#REF!,2,TRUE)*(BR109/1000000)","v":{"$error":"#REF!"}},{"$f":"VLOOKUP(M109,#REF!,3,TRUE)*(BR109/1000000)","v":{"$error":"#REF!"}}]
["2016-01-19",2016,"Active","Cascade Ridge II - Additional Allocation See 2015 Orig","3001 15Th Ave S","Great Falls",59405,47.489989999999999,-111.25415,"Cascade",0.09,"Non-profit","New Const","Eldery",null,1,319730,290925,null,null,null,null,"2016-07-26",null,"2016-07-26","2030-07-26",31,"2061-07-26","Cascade Ridge Phase II LLC","Peter Gray","2621 15th Ave S","Great Falls 59405",null,null,null,null,null,null,null,null,null,null,null,null,null,null,16,null,null,8,8,null,null,null,null,null,null,null,null,null,null,null,null,null,null,null,null,null,null,null,{"$f":"VLOOKUP(M110,#REF!,2,TRUE)*(BR110/1000000)","v":{"$error":"#REF!"}},{"$f":"VLOOKUP(M110,#REF!,3,TRUE)*(BR110/1000000)","v":{"$error":"#REF!"}}]
["2016-01-19",2016,"Active","Big Sky Villas       ","204 West Jefferson","Belgrade",59718,45.771362000000003,-111.183746,"Gallatin",0.09,"Non-profit","Acq/Rehab","Family",24,2,2680000,2492151,null,null,null,null,"2017-10-02",null,"2017-10-02","2031-10-02",31,"2062-10-02","West Jefferson partners LLLP","Heather Grenier","32 S Tracy St","Bozeman MT 59715",null,null,null,null,null,null,null,null,null,null,null,null,null,null,24,null,null,6,12,6,null,null,null,null,null,null,null,null,null,null,null,null,null,null,null,null,null,3649711,{"$f":"VLOOKUP(M111,#REF!,2,TRUE)*(BR111/1000000)","v":{"$error":"#REF!"}},{"$f":"VLOOKUP(M111,#REF!,3,TRUE)*(BR111/1000000)","v":{"$error":"#REF!"}}]
["2018-07-07",2015,"Active","Larkspur Commons 4%","1241 North 12th Ave","Bozeman",59715,45.692030000000003,-111.05271,"Gallatin",0.04,"Non-profit","New Const","Family",136,8,7502520,10046842,15500000,11700000,4.6800000000000001E-2,35,"2016-10-31",null,"2016-10-31","2030-10-31",31,"2061-10-31","GMD Development LLC",null,null,null,null,null,null,null,null,null,null,null,null,null,null,null,null,null,136,null,null,null,null,null,null,null,null,null,null,null,null,null,null,null,null,null,null,null,null,null,null,24562466,{"$f":"VLOOKUP(M112,#REF!,2,TRUE)*(BR112/1000000)","v":{"$error":"#REF!"}},{"$f":"VLOOKUP(M112,#REF!,3,TRUE)*(BR112/1000000)","v":{"$error":"#REF!"}}]
["2014-11-17",2015,"Active","River Ridge","2840 Santa Fe Court","Missoula",59808,46.886139999999997,-114.032695,"Missoula",0.09,"General","Acq/Rehab","Elderly +55",70,1,5017230,4096530,null,null,null,null,"2016-10-31",null,"2016-10-31","2030-10-31",31,"2061-10-31","River Ridge Apartments LP","Lori Davidson","1235 34th St","Missoula MT 59801",null,null,null,null,null,null,null,null,null,null,null,null,null,null,71,null,null,56,14,null,null,null,null,null,null,null,null,null,null,null,null,null,null,null,null,null,null,6248773,{"$f":"VLOOKUP(M113,#REF!,2,TRUE)*(BR113/1000000)","v":{"$error":"#REF!"}},{"$f":"VLOOKUP(M113,#REF!,3,TRUE)*(BR113/1000000)","v":{"$error":"#REF!"}}]
["2014-11-17",2015,"Active","Sweet Grass Commons","1137 Montana St","Missoula",59801,46.872593000000002,-114.013695,"Missoula",0.09,"General","New Const","Family",27,1,3968990,4127753,null,null,null,null,"2016-12-29",null,"2016-12-29","2030-12-29",31,"2061-12-29","Homeword, Inc","Heather McMilin","1535 Liberty Lane, Suite 116a","Missoula MT 59808",null,null,null,null,null,null,null,null,null,null,null,null,null,null,26,null,6,11,3,6,null,null,null,null,null,null,null,null,null,null,null,null,null,null,null,null,null,6096845,{"$f":"VLOOKUP(M114,#REF!,2,TRUE)*(BR114/1000000)","v":{"$error":"#REF!"}},{"$f":"VLOOKUP(M114,#REF!,3,TRUE)*(BR114/1000000)","v":{"$error":"#REF!"}}]
["2014-11-17",2015,"Active","Stoneridge Apartments","2716 Turbulance Ln","Bozeman",59718,45.697287000000003,-111.07328699999999,"Gallatin",0.09,"General","New Const","Family",47,2,6587500,5763486,null,null,null,null,"2016-09-30",null,"2016-09-30","2030-09-30",31,"2061-09-30","Stoneride Apartments LP","Rusty Snow ","283 W. Front St Suite 1 ","Missoula MT 59802",null,null,null,null,null,null,null,null,null,null,null,null,null,null,48,null,null,null,30,18,null,null,null,null,null,null,null,null,null,null,null,null,null,null,null,null,null,8180561,{"$f":"VLOOKUP(M115,#REF!,2,TRUE)*(BR115/1000000)","v":{"$error":"#REF!"}},{"$f":"VLOOKUP(M115,#REF!,3,TRUE)*(BR115/1000000)","v":{"$error":"#REF!"}}]
["2014-11-17",2015,"Active","Guardian Apartments","520 Logan St","Helena",59601,46.591687,-112.03530600000001,"Lewis and Clark",0.09,"General","Acq/Rehab","Elderly +55",118,1,10103668,5664683,null,null,null,null,"2016-12-16",null,"2016-12-16","2030-12-16",31,"2061-12-16","TBD","Kirk Bruce","PO Box 725378","Berkley MI 48072",null,null,null,null,null,null,null,null,null,null,null,null,null,null,142,null,75,67,null,null,null,null,null,null,null,null,null,null,null,null,null,null,null,null,null,null,null,9665250,{"$f":"VLOOKUP(M116,#REF!,2,TRUE)*(BR116/1000000)","v":{"$error":"#REF!"}},{"$f":"VLOOKUP(M116,#REF!,3,TRUE)*(BR116/1000000)","v":{"$error":"#REF!"}}]
["2014-11-17",2015,"Active","Gallatin Forks","402 W Main St","Manhattan",59741,45.858100999999998,-111.336899,"Gallatin",0.09,"Non-profit","Acq/Rehab","Family",16,3,1534940,1381308,null,null,null,null,"2016-05-23",null,"2016-05-23","2030-05-23",31,"2061-05-23","Gallatin Forks LP","Taylor Hunt","1277 Shoreline Lane ","Boise ID 83702",null,null,null,null,null,null,null,null,null,null,null,null,null,null,16,null,null,8,8,null,null,null,null,null,null,null,null,null,null,null,null,null,null,null,null,null,null,2086154,{"$f":"VLOOKUP(M117,#REF!,2,TRUE)*(BR117/1000000)","v":{"$error":"#REF!"}},{"$f":"VLOOKUP(M117,#REF!,3,TRUE)*(BR117/1000000)","v":{"$error":"#REF!"}}]
["2014-11-17",2015,"Active","Cascade Ridge Ii (See Add'L Credits In 2016)","3001 15th Ave S","Great Falls",59405,47.489989999999999,-111.25415,"Cascade",0.09,"Non-profit","New Const","Elderly +55",16,1,2451830,2230942,null,null,null,null,"2016-07-26",null,"2016-07-26","2030-07-26",31,"2061-07-26","Cascade Ridge Phase II, LLC","Peter gray","2621 15th Ave S","Great Falls MT 59405",null,null,null,null,null,null,null,null,null,null,null,null,null,null,16,null,null,8,8,null,null,null,null,null,null,null,null,null,null,null,null,null,null,null,null,null,null,2926967,{"$f":"VLOOKUP(M118,#REF!,2,TRUE)*(BR118/1000000)","v":{"$error":"#REF!"}},{"$f":"VLOOKUP(M118,#REF!,3,TRUE)*(BR118/1000000)","v":{"$error":"#REF!"}}]
["2014-11-17",2015,"Active","Antelope Court","2465 5Th Ave","Havre",59501,48.529654999999998,-109.679755,"HIll",0.09,"Non-profit","New Const","Family",30,7,5687500,5118238,null,null,null,null,"2017-01-28",null,"2017-01-28","2031-01-28",31,"2062-01-28","Antelope Court LP","Karen Thomas","4799 Echo Drive","Helena MT 59602",null,null,null,null,null,null,null,null,null,null,null,null,null,null,30,null,null,20,10,null,null,null,null,null,null,null,null,null,null,null,null,null,null,null,null,null,null,6838948,{"$f":"VLOOKUP(M119,#REF!,2,TRUE)*(BR119/1000000)","v":{"$error":"#REF!"}},{"$f":"VLOOKUP(M119,#REF!,3,TRUE)*(BR119/1000000)","v":{"$error":"#REF!"}}]
["2014-01-29",2014,"Active","Chippewa Cree Homes","21 Bunty Blvd (Agency & Box Elder Scattered Site)","Box Elder",59521,48.300483,-109.800667,"Hill",0.09,"Tribal","Acq/Rehab","Family",33,33,4889660,4165573,null,null,null,null,"2014-11-21",null,"2014-11-21","2028-11-21",31,"2059-11-21","Chippewa Cree Housing LP 1","Jason Belcourt","RR 1 Box 544","Box Elder","MT",59521,null,"406-395-4370",null,null,null,null,null,null,null,null,null,null,{"$f":"SUM(AV120:BB120)","v":33},null,null,null,null,12,16,5,null,null,null,"40/60",null,null,4,21,8,null,null,null,null,{"$f":"SUM(BH120:BO120)","v":33},null,6584680,{"$f":"VLOOKUP(M120,#REF!,2,TRUE)*(BR120/1000000)","v":{"$error":"#REF!"}},{"$f":"VLOOKUP(M120,#REF!,3,TRUE)*(BR120/1000000)","v":{"$error":"#REF!"}}]
["2014-01-29",2014,"Active","Cedar View","543 S 3rd Ave W","Malta",59538,48.354694000000002,-107.879105,"Phillips",0.09,"Non-profit","Acq/Rehab","Family",32,33,2533900,2052456,null,null,null,null,"2014-12-17",null,"2014-12-17","2028-12-17",31,"2059-12-17","MT Preservation Cedar LLLp","Greg Dunfield","1601 Second Ave Suite 1080","Seattle","WA",98101,null,"206-745-3699",null,null,null,null,null,null,null,null,null,null,31,null,null,null,20,11,null,null,null,null,null,null,null,null,null,null,null,null,null,null,null,null,null,3790997,{"$f":"VLOOKUP(M121,#REF!,2,TRUE)*(BR121/1000000)","v":{"$error":"#REF!"}},{"$f":"VLOOKUP(M121,#REF!,3,TRUE)*(BR121/1000000)","v":{"$error":"#REF!"}}]
["2013-12-09",2014,"Active","Voyageur Apartments","1630 Division Road","Great Falls",59404,47.521982000000001,-111.311188,"Cascade",0.09,"General","New Const","Elderly +62",38,1,6475000,6344866,null,null,null,null,"2016-06-21",null,"2016-06-21","2030-06-21",31,"2061-06-21","Voyageur Apartments LP","Dan Billmark","2550 University Ave Ste 330N","St. Paul","MN",55114,null,"651-645-7271",null,null,null,null,null,null,null,null,null,null,38,null,null,24,14,null,null,null,null,null,null,null,null,null,null,null,null,null,null,null,null,null,null,8225300,{"$f":"VLOOKUP(M122,#REF!,2,TRUE)*(BR122/1000000)","v":{"$error":"#REF!"}},{"$f":"VLOOKUP(M122,#REF!,3,TRUE)*(BR122/1000000)","v":{"$error":"#REF!"}}]
["2013-12-09",2014,"Active","Sunset Village","1019 6th Street SW","Sidney",59270,47.712127000000002,-104.16939000000001,"Richland",0.09,"General","New Const","Family",36,3,5407410,4809711,null,null,null,null,"2016-04-22",null,"2016-04-22","2030-04-22",45,"2075-04-22","Sunset Village LLLP","Paul Groshart","1032 6th Street SW","Sidney ","MT",59270,null,"406-433-1978",null,null,null,null,null,null,null,null,null,null,36,null,null,6,15,12,3,null,null,null,null,null,null,null,null,null,null,null,null,null,null,null,null,6913024,{"$f":"VLOOKUP(M123,#REF!,2,TRUE)*(BR123/1000000)","v":{"$error":"#REF!"}},{"$f":"VLOOKUP(M123,#REF!,3,TRUE)*(BR123/1000000)","v":{"$error":"#REF!"}}]
["2013-12-09",2014,"Active","Yellowstone Commons (Pearson Place)","1917A North Merrill Avenue","Glendive",59330,47.127434999999998,-104.692582,"Dawson",0.09,"General","New Const","Family",28,3,5000000,4599080,null,null,null,null,"2015-05-28",null,"2015-05-28","2029-05-28",46,"2075-05-28","Pearson Place LP","Alex Burkhalter","5014 Elk Hills Ct","Missoula ","MT",59803,null,"406-203-1558",null,null,null,null,null,null,null,null,null,null,27,null,null,null,18,9,null,null,null,null,null,null,null,null,null,null,null,null,null,null,null,null,null,5633554,{"$f":"VLOOKUP(M124,#REF!,2,TRUE)*(BR124/1000000)","v":{"$error":"#REF!"}},{"$f":"VLOOKUP(M124,#REF!,3,TRUE)*(BR124/1000000)","v":{"$error":"#REF!"}}]
["2013-12-09",2014,"Active","Apsaalooke Warrior","1 Pretty Eagle Ave","Crow Agency",59022,45.610370000000003,-107.46866,"Big Horn",0.09,"Tribal","New Const","Family",15,1,2590000,2046100,null,null,null,null,"2015-07-31",null,"2015-07-31","2029-07-31",31,"2060-07-31","Apsaalooke Warrior Apartments, LLLP","Karl Little Owl","Po Box 99","Crow Agency","MT",59022,null,"406-638-3715",null,null,null,null,null,null,null,null,null,null,15,null,null,15,null,null,null,null,null,null,null,null,null,null,null,null,null,null,null,null,null,null,null,3226911,{"$f":"VLOOKUP(M125,#REF!,2,TRUE)*(BR125/1000000)","v":{"$error":"#REF!"}},{"$f":"VLOOKUP(M125,#REF!,3,TRUE)*(BR125/1000000)","v":{"$error":"#REF!"}}]
["2013-04-23",2013,"Active","Aspen Place-Msla","2500 Great Northern Ave","Missoula",59801,null,null,"Missoula",0.09,"General","New Const","Elderly +55",36,1,5750000,4800770,null,null,null,null,"2014-10-21",null,"2014-10-21","2028-10-21",15,"2043-10-21","Apsen Place LP","Alex Burkhalter","1801 S Higgins Ave","Missoula","MT",59801,null,"406-728-3710",null,null,null,null,null,null,null,null,null,null,36,null,null,24,12,null,null,null,null,null,null,null,null,null,null,null,null,null,null,null,null,null,null,5740436,{"$f":"VLOOKUP(M126,#REF!,2,TRUE)*(BR126/1000000)","v":{"$error":"#REF!"}},{"$f":"VLOOKUP(M126,#REF!,3,TRUE)*(BR126/1000000)","v":{"$error":"#REF!"}}]
["2011-12-10",2013,"Active","River Rock Residences","810 Flat Rock Loop","Helena",59601,null,null,"Lewis and Clark",0.09,"Non-Profit","New Const","Elderly +62",32,11,6162500,4964327,null,null,null,null,"2013-08-08",null,"2013-08-08","2027-08-08",31,"2058-08-08","ROCK MOUNTAIN DEVELOPMENT COUNCIL","GENE LEUWER","PO Box 1717","HELENA","MT",59623,null,"406-447-1680",null,null,null,null,null,null,null,null,null,null,32,null,null,27,5,null,null,null,null,null,null,null,null,null,null,null,null,null,null,null,null,null,null,6126608,{"$f":"VLOOKUP(M127,#REF!,2,TRUE)*(BR127/1000000)","v":{"$error":"#REF!"}},{"$f":"VLOOKUP(M127,#REF!,3,TRUE)*(BR127/1000000)","v":{"$error":"#REF!"}}]
["2012-04-19",2013,"Active","Soroptimist Village","2400 13Th Ave. South","Great Falls",59405,null,null,"Cascade",0.09,"General","Acq/Rehab","Elderly +55",50,3,5380000,4914096,null,null,null,null,"2014-01-01",null,"2014-01-01","2028-01-01",31,"2059-01-01","Soroptimist Village Inc","Christi Fisher","PO Box 498","Great Falls","MT",59403,null,"406-868-7514",null,null,null,null,null,null,null,null,null,null,56,null,null,null,null,null,null,null,null,null,null,null,null,null,null,null,null,null,null,null,null,null,null,6869041,{"$f":"VLOOKUP(M128,#REF!,2,TRUE)*(BR128/1000000)","v":{"$error":"#REF!"}},{"$f":"VLOOKUP(M128,#REF!,3,TRUE)*(BR128/1000000)","v":{"$error":"#REF!"}}]
["2012-04-19",2013,"Active","Blackfeet Homes V","6000 John Rd","Browning",59417,null,null,"Glacier",0.09,"Tribal","New Const","Family",24,24,6312250,5023534,null,null,null,null,"2014-03-01",null,"2014-03-01","2028-03-01",31,"2059-03-01","Blackfeet Housing LP #5","Chancy Kittson","1200 SW Boundary PO box 449","Browning","MT",59417,null,"406-338-5031",null,null,null,null,null,null,null,null,null,null,24,null,null,null,null,null,null,null,null,null,null,null,null,null,null,null,null,null,null,null,null,null,null,5395068,{"$f":"VLOOKUP(M129,#REF!,2,TRUE)*(BR129/1000000)","v":{"$error":"#REF!"}},{"$f":"VLOOKUP(M129,#REF!,3,TRUE)*(BR129/1000000)","v":{"$error":"#REF!"}}]
["2013-04-22",2013,"Returned","Wolf Point Village  returned credits","Tbd Btwn 3Rd & 5Th Streets","Wolf Point",59201,null,null,"Roosevelt ",0.09,"General","New Const","Family",null," ",4035990,null,null,null,null,null,null,null,"00:00:00",null,null,null,"Wolf Point Village LLP","Jonathan Reed","636 Echo Lake","Colorado Springs","CO",80904,null,"505-250-7570",null,null,null,null,null,null,null,null,null,null,null,null,null,null,null,null,null,null,null,null,null,null,null,null,null,null,null,null,null,null,null,null,null,4254810,{"$f":"VLOOKUP(M130,#REF!,2,TRUE)*(BR130/1000000)","v":{"$error":"#REF!"}},{"$f":"VLOOKUP(M130,#REF!,3,TRUE)*(BR130/1000000)","v":{"$error":"#REF!"}}]
["2013-04-22",2013,"Active","Fort Peck Sustainable Village","1005 Park Ave (Near Here Scattered Site)","Poplar",59255,null,null,"Roosevelt ",0.09,"Tribal","New Const","Family",19,19,6031304,5040283,null,null,null,null,"2015-09-30",null,"2015-09-30","2029-09-30",31,{"$f":"DATE(YEAR(Z131)+AA131,MONTH(Z131),DAY(Z131))","v":"2060-09-30"},"Interated Solutions LP #1","Thomas J. Anketell III","PO Box 1582","Poplar ","MT",59255,null,"406-768-2335",null,null,null,null,null,null,null,null,null,null,20,null,null,null,null,null,null,null,null,null,null,null,null,null,null,null,null,null,null,null,null,null,null,6031304,{"$f":"VLOOKUP(M131,#REF!,2,TRUE)*(BR131/1000000)","v":{"$error":"#REF!"}},{"$f":"VLOOKUP(M131,#REF!,3,TRUE)*(BR131/1000000)","v":{"$error":"#REF!"}}]
["2013-04-22",2013,"Active","Hillview Apartments","1280 10Th Street West","Havre",59501,null,null,"Hill",0.09,"General","Acq/Rehab","Family",52,8,6250000,5218228,null,null,null,null,"2013-12-18",null,"2013-12-18","2027-12-18",31,"2058-12-18","MT Preservation HV, LLLP","Greg Dunfield","1601 Second Ave Ste 1080","Seattle","WA",98112,null,"206-745-3699",null,null,null,null,null,null,null,null,null,null,52,null,null,8,8,24,12,null,null,null,null,null,null,null,null,null,null,null,null,null,null,null,null,7209088,{"$f":"VLOOKUP(M132,#REF!,2,TRUE)*(BR132/1000000)","v":{"$error":"#REF!"}},{"$f":"VLOOKUP(M132,#REF!,3,TRUE)*(BR132/1000000)","v":{"$error":"#REF!"}}]
["2013-04-22",2013,"Active","Buffalo Grass","201 2nd Street NE","Cut Bank",59427,48.638330000000003,-112.32511,"Glacier",0.09,"Non-profit","New Const","Family",14,2,2590000,2097900,null,null,null,null,"2014-05-27",null,"2014-05-27","2028-05-27",31,"2059-05-27","Buffalo Grass Apts, LLLP","Brad Elg","210 W Mallard Dr, Ste A","Boise","ID",83706,null,"208-947-7050",null,null,null,null,null,null,null,null,null,null,14,null,null,null,9,5,null,null,null,null,null,null,null,null,null,null,null,null,null,null,null,null,null,2459531,{"$f":"VLOOKUP(M133,#REF!,2,TRUE)*(BR133/1000000)","v":{"$error":"#REF!"}},{"$f":"VLOOKUP(M133,#REF!,3,TRUE)*(BR133/1000000)","v":{"$error":"#REF!"}}]
["2012-04-19",2012,"Active","Depot Place","219 Center Street","Kalispell",59901,null,null,"Flathead",0.09,"General","New Const","Elderly +55",40,1,6080000,null,null,null,null,null,"2013-04-26",null,"2013-04-26","2027-04-26",31,"2058-04-26","Center Street LP","Alex Burhalter","619 SW Higgins Ave Ste E","Missoula","MT",59803,null,"406-251-5076",null,null,null,null,null,null,null,null,null,null,40,null,null,null,null,null,null,null,null,null,null,null,null,null,null,null,null,null,null,null,null,null,null,5320936,{"$f":"VLOOKUP(M134,#REF!,2,TRUE)*(BR134/1000000)","v":{"$error":"#REF!"}},{"$f":"VLOOKUP(M134,#REF!,3,TRUE)*(BR134/1000000)","v":{"$error":"#REF!"}}]
["2012-04-19",2012,"Active","Parkview Village","221 5Th Street","Sidney",59270,null,null,"Richland",0.09,"Non-profit","New Const","Family",20,1,4030130,null,null,null,null,null,"2013-09-30",null,"2013-09-30","2027-09-30",31,"2058-09-30","Parview Village LLLP","Paul Groshart","1032 6th St SW","Sidney","Mt",59270,null,"406-433-1978 X3",null,null,null,null,null,null,null,null,null,null,20,null,null,null,null,null,null,null,null,null,null,null,null,null,null,null,null,null,null,null,null,null,null,3444557,{"$f":"VLOOKUP(M135,#REF!,2,TRUE)*(BR135/1000000)","v":{"$error":"#REF!"}},{"$f":"VLOOKUP(M135,#REF!,3,TRUE)*(BR135/1000000)","v":{"$error":"#REF!"}}]
["2012-04-19",2012,"Active","Sweet Grass Apartments","724 St. Mary Ave.","Shelby",59474,null,null,"Toole",0.09,"Small","New Const","Family",12,2,2000000,null,null,null,null,null,"2013-06-03",null,"2013-06-03","2027-06-03",31,"2058-06-03","Sweet grass Apts LP","Brad Elg","210 W Mallard Dr Ste A","Boise","ID",83706,null,"208-947-7050",null,null,null,null,null,null,null,null,null,null,12,null,null,null,null,null,null,null,null,null,null,null,null,null,null,null,null,null,null,null,null,null,null,1758655,{"$f":"VLOOKUP(M136,#REF!,2,TRUE)*(BR136/1000000)","v":{"$error":"#REF!"}},{"$f":"VLOOKUP(M136,#REF!,3,TRUE)*(BR136/1000000)","v":{"$error":"#REF!"}}]
["2012-04-19",2012,"Active","Haggerty Lane Apartments","1992 Cottage","Bozeman",59715,null,null,"Gallatin",0.09,"Small","New Const","Family",11,3,2000000,null,null,null,null,null,"2013-11-01",null,"2013-11-01","2027-11-01",40,"2067-11-01","Farmhouse Partners- Haggerty LP","Dab Dabney","2555 W. College Suite B","Bozeman","MT",59718,null,"406-586-1166",null,null,null,null,null,null,null,null,null,null,11,null,null,null,null,null,null,null,null,null,null,null,null,null,null,null,null,null,null,null,null,null,null,2186497,{"$f":"VLOOKUP(M137,#REF!,2,TRUE)*(BR137/1000000)","v":{"$error":"#REF!"}},{"$f":"VLOOKUP(M137,#REF!,3,TRUE)*(BR137/1000000)","v":{"$error":"#REF!"}}]
["2012-04-19",2012,"Active","Silver Bow Village 4%","910 Evans Ave","Butte",59701,45.984650000000002,-112.52417,"Silver Bow ",0.04,"General","Acq/Rehab","Family",60,8,1707950,null,{"$f":"(857000+4032000+850713)*0.6","v":3443827.8},null,null,null,"2012-09-15",null,"2012-09-15","2026-09-15",31,"2057-09-15","GMD Development LLC","Greg Dunfield","1601 Second Ave Ste 1080","Seattle","WA",98112,null,"206-745-3699",null,null,null,null,null,null,null,null,null,null,60,null,null,null,null,null,null,null,null,null,null,null,null,null,null,null,null,null,null,null,null,null,null,5316022,{"$f":"VLOOKUP(M138,#REF!,2,TRUE)*(BR138/1000000)","v":{"$error":"#REF!"}},{"$f":"VLOOKUP(M138,#REF!,3,TRUE)*(BR138/1000000)","v":{"$error":"#REF!"}}]
["2012-04-19",2012,"Active","Rainbow House 4%","626 13Th Ave","Great Falls",59405,47.490549999999999,-111.29602,"Cascade",0.04,"General","Acq/Rehab","Elderly +62",40,1,709480,null,{"$f":"(857000+4032000+850713)*0.4","v":2295885.2000000002},null,null,null,"2013-01-01",null,"2013-01-01","2027-01-01",31,"2058-01-01","GMD Development LLC","Greg Dunfield","1601 Second Ave Ste 1080","Seattle","WA",98112,null,"206-745-3699",null,null,null,null,null,null,null,null,null,null,40,null,null,null,null,null,null,null,null,null,null,null,null,null,null,null,null,null,null,null,null,null,null,2391300,{"$f":"VLOOKUP(M139,#REF!,2,TRUE)*(BR139/1000000)","v":{"$error":"#REF!"}},{"$f":"VLOOKUP(M139,#REF!,3,TRUE)*(BR139/1000000)","v":{"$error":"#REF!"}}]
["2011-12-10",2011,"Active","Two Rivers Place","343 Mt Hwy 135","St Regis",59866,null,null,"Mineral",0.09,"General","New Const","Family",8,1,1189130,null,null,null,null,null,"2012-11-28",null,"2012-11-28","2026-11-28",31,"2057-11-28","TWO RIVERS PLACE LP","JIM MORTON","1801 S HIGGINS","MISSOULA","MT",59801,null,"406-728-3710",null,null,null,null,null,null,null,null,null,null,8,null,null,2,2,4,null,null,null,null,null,null,null,null,null,null,null,null,null,null,null,null,null,114058,{"$f":"VLOOKUP(M140,#REF!,2,TRUE)*(BR140/1000000)","v":{"$error":"#REF!"}},{"$f":"VLOOKUP(M140,#REF!,3,TRUE)*(BR140/1000000)","v":{"$error":"#REF!"}}]
["2011-12-10",2011,"Active","Cascade Ridge Senior Living","3001 15Th Ave S","Great Falls",59401,null,null,"Cascade",0.09,"General","New Const","Elderly +62",40,1,6045270,null,null,null,null,null,"2012-09-28",null,"2012-09-28","2026-09-28",31,"2057-09-28","BENEFIS HEALTH SYSTEM/MOUNTAIN PLAINS EQUITY","DOUGLAS DAVENPORT","1101 26TH ST S","GREAT FALLS ","MT",59401,null,"406-455-4732",null,null,null,null,null,null,null,null,null,null,40,null,null,20,19,null,null,null,null,null,1,null,null,null,null,null,null,null,null,null,null,null,null,5502169,{"$f":"VLOOKUP(M141,#REF!,2,TRUE)*(BR141/1000000)","v":{"$error":"#REF!"}},{"$f":"VLOOKUP(M141,#REF!,3,TRUE)*(BR141/1000000)","v":{"$error":"#REF!"}}]
["2011-12-10",2011,"Active","The Palace Apartments","149 W. Broadway","Missoula",59801,null,null,"Missoula",0.09,"General","Acq/Rehab","Family",60,1,6162500,null,null,null,null,null,"2013-01-01",null,"2013-01-01","2027-01-01",31,"2058-01-01","MISSOULA HOUSING AUTHORITY","LORI DAVIDSON","1235 34TH ST ","MISSOULA","MT",59801,null,"406-549-4113 X105",null,null,null,null,null,null,null,null,null,null,60,null,5,47,8,null,null,null,null,null,null,null,null,null,null,null,null,null,null,null,null,null,null,7338509,{"$f":"VLOOKUP(M142,#REF!,2,TRUE)*(BR142/1000000)","v":{"$error":"#REF!"}},{"$f":"VLOOKUP(M142,#REF!,3,TRUE)*(BR142/1000000)","v":{"$error":"#REF!"}}]
["2011-12-10",2011,"Active","Fort Peck Homes II","Poplar/Wolf Point","Poplar/Wolf Point",59225,null,null,"Roosevelt ",0.09,"Tribal","New Const","Family",24,24,6144010,4730426,null,null,null,null,"2013-02-01",null,"2013-02-01","2027-02-01",31,"2058-02-01","FORT PECK HOMES 1","IVA GRAINGER","503 6th Ave E, PO Box 667","POPLAR","MT",59225,null,"406-768-5176",null,null,null,null,null,null,null,null,null,null,24,null,null,null,null,15,9,null,null,null,null,null,null,null,null,null,null,null,null,null,null,null,null,6160527,{"$f":"VLOOKUP(M143,#REF!,2,TRUE)*(BR143/1000000)","v":{"$error":"#REF!"}},{"$f":"VLOOKUP(M143,#REF!,3,TRUE)*(BR143/1000000)","v":{"$error":"#REF!"}}]
["2010-12-08",2010,"Active","Cottage Park (Sentinal Village Apartments)","1111 Mcdonald Ave","Missoula",59801,null,null,"Missoula",0.09,"Acq Rehab","Acq/Rehab","Family",60,5,5848280,null,null,null,null,null,"2010-12-23",null,"2010-12-23","2024-12-23",35,"2059-12-23","Morena Development","John Grady","1915 Morena Blvd","San Diego","CA",95110,null,"619-276-6271",null,null,null,null,null,null,null,null,null,null,60,null,null,12,36,12," ",null,null," ",null,null,null,null,null,null,null,null,null,null,null,null,null,5789502,{"$f":"VLOOKUP(M144,#REF!,2,TRUE)*(BR144/1000000)","v":{"$error":"#REF!"}},{"$f":"VLOOKUP(M144,#REF!,3,TRUE)*(BR144/1000000)","v":{"$error":"#REF!"}}]
["2010-12-08",2010,"Returned","Aspen Place-return credits","2500 Great Northern Ave","Missoula",59801,null,null,"Missoula",0.09,"General","New Const","Elderly +55"," ",null," ",null,null,null,null,null,null,null,"00:00:00",null,null,null,"Sparrow Development","Tim German","619 SW Higgins Ave Suite E","Missoula","MT",59803,null,"406-251-5076",null,null,null,null,null,null,null,null,null,null,36,null,null,25,10," ",null,null,null,null,1,null,null,null,null,null,null,null,null,null,null,null,null," ",{"$f":"VLOOKUP(M145,#REF!,2,TRUE)*(BR145/1000000)","v":{"$error":"#REF!"}},{"$f":"VLOOKUP(M145,#REF!,3,TRUE)*(BR145/1000000)","v":{"$error":"#REF!"}}]
["2010-12-08",2010,"Active","Solstice","1513 Liberty Lane","Missoula",59801,null,null,"Missoula",0.09,"Non-Profit","New Const","Family"," "," ",5000000,null,null,null,null,null,"2011-10-31",null,"2011-10-31","2025-10-31",31,{"$f":"DATE(YEAR(Z146)+AA146,MONTH(Z146),DAY(Z146))","v":"2056-10-31"},"homeWORD Inc","Heather McMilan","127 N. Higgins #307","Missoula","MT",59802,null,"406-532-4663",null,null,null,null,null,null,null,null,null,null," ",null," "," "," "," "," "," ",null," ",null,null,null,null,null,null,null,null,null,null,null,null,null,8200589,{"$f":"VLOOKUP(M146,#REF!,2,TRUE)*(BR146/1000000)","v":{"$error":"#REF!"}},{"$f":"VLOOKUP(M146,#REF!,3,TRUE)*(BR146/1000000)","v":{"$error":"#REF!"}}]
["2010-12-08",2010,"Active","Meadowlands Apartments","4034 Elizabeth Warren","Butte",59701,null,null,"Silver Bow ",0.09,"General","New Const","Elderly +62",48,1,6069250,null,null,null,null,null,"2011-09-28",null,"2011-09-28","2025-09-28",31,"2056-09-28","City & Co of Butte-Silver Bow","Karen Byrnes","155 W Granite St","Butte","MT",59701,null,"406-497-6220",null,null,null,null,null,null,null,null,null,null,48,null,null,32,15," "," ",null,null,null,1,null,null,null,null,null,null,null,null,null,null,null,null,6714311,{"$f":"VLOOKUP(M147,#REF!,2,TRUE)*(BR147/1000000)","v":{"$error":"#REF!"}},{"$f":"VLOOKUP(M147,#REF!,3,TRUE)*(BR147/1000000)","v":{"$error":"#REF!"}}]
["2010-12-08",2010,"Active","Buffalo Court","2231 5Th Ave","Havre",59501,null,null,"Hill",0.09,"Non-Profit","New Const","Elderly +55",20,4,4850000,null,null,null,null,null,"2012-08-14",null,"2012-08-14","2026-08-14",31,"2057-08-14","Dist IV HRDC","Karen Thomas","2229 5th ","Havre","MT",59501,null,"406-265-6743",null,null,null,null,null,null,null,null,null,null,20,null,null,16,4," ",null,null,null,null,null,null,null,null,null,null,null,null,null,null,null,null,null,2872069,{"$f":"VLOOKUP(M148,#REF!,2,TRUE)*(BR148/1000000)","v":{"$error":"#REF!"}},{"$f":"VLOOKUP(M148,#REF!,3,TRUE)*(BR148/1000000)","v":{"$error":"#REF!"}}]
["2010-12-08",2010,"Active","Lolo Vista Apartments","11851 Lolo Vista Dr","Lolo",59847,null,null,"Missoula",0.09,"General","New Const","Family",40,2,6075000,null,null,null,null,null,"2011-07-28",null,"2011-07-28","2025-07-28",31,"2056-07-28","Summit Housing Group","Nate Richmond","283 W Front St Suite 1","Missoula","MT",59802,null,"406-541-0999",null,null,null,null,null,null,null,null,null,null,40,null,null," ",20,20,null,null,null,null,null,null,null,null,null,null,null,null,null,null,null,null,null,6222845,{"$f":"VLOOKUP(M149,#REF!,2,TRUE)*(BR149/1000000)","v":{"$error":"#REF!"}},{"$f":"VLOOKUP(M149,#REF!,3,TRUE)*(BR149/1000000)","v":{"$error":"#REF!"}}]
[null,2009,"Active","Big Boulder","501 E 4Th Avenue","Boulder",59632,null,null,"Jefferson","TCAP/Exchanage","Non-Profit","New Const","Family",36,2,10000,null,null,null,null,null,"2011-03-30",null,"2011-03-30","2025-03-30",31,"2056-03-30","Meagher County Senior Center","Beth Hunt","101 1st Ave SE","WHT SULPHUR SPRNG","MT",59645,null,"406-547-3651",null,null,null,null,null,null,null,null,null,null,10,null,null,null,8,2,null,null,null,null,null,null,null,null,null,null,null,null,null,null,null,null,null,2872069,{"$f":"VLOOKUP(M150,#REF!,2,TRUE)*(BR150/1000000)","v":{"$error":"#REF!"}},{"$f":"VLOOKUP(M150,#REF!,3,TRUE)*(BR150/1000000)","v":{"$error":"#REF!"}}]
["2009-12-10",2009,"Active","Solstice","1535 Liberty Lane","Missoula",59808,null,null,"Missoula","Exchange","non-profit","New Const","Family",34,1,0,null,null,null,null,null,"2011-10-31",null,"2011-10-31","2025-10-31",31,"2056-10-31","ROCK MOUNTAIN DEVELOPMENT COUNCIL","GENE LEUWER","Box 1717","HELENA","MT","59624-1717",null,"406-447-1680",null,null,null,null,null,null,null,null,null,null,36,null,null,18,18,null,null,null,null,null,null,null,null,null,null,null,null,null,null,null,null,null,null,7691408,{"$f":"VLOOKUP(M151,#REF!,2,TRUE)*(BR151/1000000)","v":{"$error":"#REF!"}},{"$f":"VLOOKUP(M151,#REF!,3,TRUE)*(BR151/1000000)","v":{"$error":"#REF!"}}]
["2009-12-10",2009,"Active","Ouellette Place","405 St Joseph Dr","Lewistown",59457,47.069209999999998,-109.41952999999999,"Fergus","Exchange","Non-Profit","New Const","Family",24,3,0,null,null,null,null,null,"2010-09-15",null,"2010-09-15","2024-09-15",31,"2055-09-15","SOLSTICE DEVELOPMENT LP","ANDREA DAVIS","127 North Higgins Ave Ste 307","MISSOULA","MT",59802,null,"406-532-5663",null,null,null,null,null,null,null,null,null,null,34,null,4,19,11,null,null,null,null,null,null,null,null,null,null,null,null,null,null,null,null,null,null,8200558,{"$f":"VLOOKUP(M152,#REF!,2,TRUE)*(BR152/1000000)","v":{"$error":"#REF!"}},{"$f":"VLOOKUP(M152,#REF!,3,TRUE)*(BR152/1000000)","v":{"$error":"#REF!"}}]
["2009-12-10",2009,"Active","Franklin School","820 First Avenue Sw","Great Falls",59401,null,null,"Cascade","Exchange","Acq/Rehab","Acq/Rehab","Family",40,2,0,null,null,null,null,null,"2010-12-31","2010-12-10","2010-12-31","2024-12-31",31,"2055-12-31","OUELLETTE PLACE LP","ANDREA DAVIS","127 North Higgins Ave Ste 307","MISSOULA","MT",59802,null,"406-532-4663 ",null,null,null,null,null,null,null,null,null,null,24,null,null,4,14,6,null,null,null,null,null,null,null,null,null,null,null,null,null,null,null,null,null,5432616,{"$f":"VLOOKUP(M153,#REF!,2,TRUE)*(BR153/1000000)","v":{"$error":"#REF!"}},{"$f":"VLOOKUP(M153,#REF!,3,TRUE)*(BR153/1000000)","v":{"$error":"#REF!"}}]
["2009-12-10",2009,"Active","Mountain View Apartments - Butte","202 Ohio; 241 Curtis","Butte",59701,null,null,"Silver Bow","Exchange","Small","New Const","Family",11,4,0,null,null,null,null,null,"2010-12-02",null,"2010-12-02","2024-12-02",31,"2055-12-02","Affiliated Developers & Tamarack Property Mgmt Co","Matthew C Wick","20245 W 12 Mile Rd Ste 120","Southfield","MI",48076,null,"248-721-2195",null,null,null,null,null,null,null,null,null,null,40,null,null,null,null,40,null,null,null,null,null,null,null,null,null,null,null,null,null,null,null,null,null,3976200,{"$f":"VLOOKUP(M154,#REF!,2,TRUE)*(BR154/1000000)","v":{"$error":"#REF!"}},{"$f":"VLOOKUP(M154,#REF!,3,TRUE)*(BR154/1000000)","v":{"$error":"#REF!"}}]
["2009-12-10",2009,"Active","Whitetail Run Apartments","335 Sioux Lane","Billings",59101,null,null,"Yellowstone ","TCAP","General","New Const","Family",32,8,10000,null,null,null,null,null,"2011-05-27",null,"2011-05-27","2025-05-27",31,"2056-05-27","Butte Addordable Housing nc","Revonda Stordahl","220 Curtis Street","Butte","MT",59701,null,"406-782-6461",null,null,null,null,null,null,null,null,null,null,11,null,null,null,9,2,null,null,null,null,null,null,null,null,null,null,null,null,null,null,null,null,null,2012267,{"$f":"VLOOKUP(M155,#REF!,2,TRUE)*(BR155/1000000)","v":{"$error":"#REF!"}},{"$f":"VLOOKUP(M155,#REF!,3,TRUE)*(BR155/1000000)","v":{"$error":"#REF!"}}]
["2009-12-10",2009,"Active","Spring Creek Apartments 2","10 Apple Way Drive","Kalispell",59901,null,null,"Flathead","Exchange Partial","General","New Const","Family",33,4,6617500,null,null,null,null,null,"2011-03-11",null,"2011-03-11","2025-03-11",15,"2040-03-11","Spring Creek Apts 2 LP","TIM GERMAN","619 SW Higgins, Suite E","MISSOULA","MT",59803,null,"406-245-6391",null,null,null,null,null,null,null,null,null,null,33,null,null,null,20,10,2,null,null,null,1,null,null,null,null,null,null,null,null,null,null,null,null,7277918,{"$f":"VLOOKUP(M156,#REF!,2,TRUE)*(BR156/1000000)","v":{"$error":"#REF!"}},{"$f":"VLOOKUP(M156,#REF!,3,TRUE)*(BR156/1000000)","v":{"$error":"#REF!"}}]
["2009-12-10",2009,"Active","Superior Commons","310 Second Ave E","Superior",59872,null,null,"Mineral","Exchange Partial","Non-Profit","New Const","Family",24,4,4662500,null,null,null,null,null,"2011-03-04",null,"2011-03-04","2025-03-04",35,"2060-03-04","Sparrow Development Group","Tim German","619 SW Higgins, Ave Ste E","Missoula ","MT",59803,null,"406-251-5076",null,null,null,null,null,null,null,null,null,null,24,null,null,null,12,12,null,null,null,null,null,null,null,null,null,null,null,null,null,null,null,null,null,6528589,{"$f":"VLOOKUP(M157,#REF!,2,TRUE)*(BR157/1000000)","v":{"$error":"#REF!"}},{"$f":"VLOOKUP(M157,#REF!,3,TRUE)*(BR157/1000000)","v":{"$error":"#REF!"}}]
["2009-12-10",2008,"Active","Treasure State Plaza Apartments 4%","600 Liberty Street","Kalispell",59901,null,null,"Flathead",0.04,"General","Acq/Rehab","Elderly",38,1,1179190,null,null,null,null,null,"2009-01-01",null,"2009-01-01","2023-01-01",25,"2048-01-01","Dist XI Human Resource Council, Inc","Jim Morton","1801 South Higgins","Missoula ","MT",59801,null,"406-728-3710",null,null,null,null,null,null,null,null,null,null,24,null,null,null,12,12," ",null,null,null,null,null,null,null,null,null,null,null,null,null,null,null,null,4729827,{"$f":"VLOOKUP(M158,#REF!,2,TRUE)*(BR158/1000000)","v":{"$error":"#REF!"}},{"$f":"VLOOKUP(M158,#REF!,3,TRUE)*(BR158/1000000)","v":{"$error":"#REF!"}}]
[null,2008,"Active","Glacier Manor Apartments 4%","506 1St Ave W","Kalispell",59901,null,null,"Flathead",0.04,"General","Acq/Rehab","Elderly",61,1,1830000,null,null,null,null,null,"2009-01-01",null,"2009-01-01","2023-01-01",25,"2048-01-01","MONFRIC MANAGEMENT COMPANY","JOHN GRADY","1915 MORENA BOULEVARD","SAN DIEGO","CA",92110,null,"619-941-2054",null,null,null,null,null,null,null,null,null,null,null,null,null,null,null,null,null,null,null,null,null,null,null,null,null,null,null,null,null,null,null,null,null,3165057,{"$f":"VLOOKUP(M159,#REF!,2,TRUE)*(BR159/1000000)","v":{"$error":"#REF!"}},{"$f":"VLOOKUP(M159,#REF!,3,TRUE)*(BR159/1000000)","v":{"$error":"#REF!"}}]
[null,2008,"Terminated","Makoshika Estates (see orig credits 2007) (out of program)","660 Grant","Glendive",59330,null,null,"Dawson",0.09,"Non-Profit","New Const","Elderly",18,1,165500,null,null,null,null,null,"2009-01-01",null,"2009-01-01",null,null,null,"MONFRIC MANAGEMENT COMPANY","JOHN GRADY","1915 MORENA BOULEVARD","SAN DIEGO","CA",92110,null,null,null,null,null,null,null,null,null,null,null,null,null,null,null,null,null,null,null,null,null,null,null,null,null,null,null,null,null,null,null,null,null,null,null,4737933,{"$f":"VLOOKUP(M160,#REF!,2,TRUE)*(BR160/1000000)","v":{"$error":"#REF!"}},{"$f":"VLOOKUP(M160,#REF!,3,TRUE)*(BR160/1000000)","v":{"$error":"#REF!"}}]
[null,2008,"Active","Garden District","119 S. Russell St","Missoula",59801,null,null,"Missoula",0.09,"General","New Const","Family",37,3,4740710,null,null,null,null,null,"2009-12-13",null,"2009-12-13","2023-12-13",31,{"$f":"DATE(YEAR(Z161)+AA161,MONTH(Z161),DAY(Z161))","v":"2054-12-13"},"Dawson Co Econimic Development Council","Gene Buxel","313 W. Valentine, PO Box 173","GLENDIVE","MT",59330,null,"406-377-7792 FAX406-377-3762",null,null,null,null,null,null,null,null,null,null," ",null,null," "," ",null,null,null,null,null,null,null,null,null,null,null,null,null,null,null,null,null,null,2287195,{"$f":"VLOOKUP(M161,#REF!,2,TRUE)*(BR161/1000000)","v":{"$error":"#REF!"}},{"$f":"VLOOKUP(M161,#REF!,3,TRUE)*(BR161/1000000)","v":{"$error":"#REF!"}}]
[null,2008,"Active","Mountain View Apartments III","251 Stonegate Dr","Hamilton",59840,null,null,"Ravalli",0.09,"General","New Const","Family",46,3,5812500,null,null,null,null,null,"2009-06-29",null,"2009-06-29","2023-06-29",31,{"$f":"DATE(YEAR(Z162)+AA162,MONTH(Z162),DAY(Z162))","v":"2054-06-29"},"Missoula Housing Authority","Andrea Davis","1235 34th St","MISSOULA","MT",59801,null,"406-549-4113 FAX 406-549-6406",null,null,null,null,null,null,null,null,null,null,37,null,null,14,17,5,null,null,null,null,1,null,null,null,null,null,null,null,null,null,null,null,null,6222845,{"$f":"VLOOKUP(M162,#REF!,2,TRUE)*(BR162/1000000)","v":{"$error":"#REF!"}},{"$f":"VLOOKUP(M162,#REF!,3,TRUE)*(BR162/1000000)","v":{"$error":"#REF!"}}]
[null,2008,"Active","Spring Creek Apartments","10 Apple Way Drive","Kalispell",59901,null,null,"Flathead",0.09,"General","New Const","Family",34,3,5800000,null,null,null,null,null,"2009-07-24",null,"2009-07-24","2023-07-24",31,{"$f":"DATE(YEAR(Z163)+AA163,MONTH(Z163),DAY(Z163))","v":"2054-07-24"},"MOUNTAIN VIEW III LP","NATE RICHMOND","238 W FRONT ST STE 1","MISSOULA","MT",59802,null,"406-541-0999 FAX 406-541-0997",null,null,null,null,null,null,null,null,null,null,46,null,null,null,29,17,null,null,null,null,null,null,null,null,null,null,null,null,null,null,null,null,null,6114912,{"$f":"VLOOKUP(M163,#REF!,2,TRUE)*(BR163/1000000)","v":{"$error":"#REF!"}},{"$f":"VLOOKUP(M163,#REF!,3,TRUE)*(BR163/1000000)","v":{"$error":"#REF!"}}]
[null,2008,"Active","Shoulderblade Complex","St Rte 39 N. Of Lame Deer","Lame Deer",59043,null,null,"Rosebud",0.09,"Tribal","Acq/Rehab","Elderly",35,1,3948120,null,null,null,null,null,"2010-01-19",null,"2010-01-19","2024-01-19",31,{"$f":"DATE(YEAR(Z164)+AA164,MONTH(Z164),DAY(Z164))","v":"2055-01-19"},"SPRING CREEK I LP","TIM GERMAN","619 SW Higgins, Suite E","MISSOULA","MT",59803,null,"406-251-5076 FAX 406-541-4944",null,null,null,null,null,null,null,null,null,null,34,null,null,null,9,24,null,null,null,null,1,null,null,null,null,null,null,null,null,null,null,null,null,6350661,{"$f":"VLOOKUP(M164,#REF!,2,TRUE)*(BR164/1000000)","v":{"$error":"#REF!"}},{"$f":"VLOOKUP(M164,#REF!,3,TRUE)*(BR164/1000000)","v":{"$error":"#REF!"}}]
[null,2009,"Active","Castle Mountain Apartments","4Th Ave South","White Sulphur Springs",59645,null,null,"Meagher",0.09,"Non-Profit","New Const","Elderly",10,2,237317,null,null,null,null,null,"2010-11-03",null,"2010-11-03","2024-11-03",31,{"$f":"DATE(YEAR(Z165)+AA165,MONTH(Z165),DAY(Z165))","v":"2055-11-03"},"N CHEYENNE SHOULDERBLADE LP #1","Lafe Haugen","Hwy 39, PO Box 327","LAME DEER","MT",59043,null,"406-477-6419 FAX 406-477-6229",null,null,null,null,null,null,null,null,null,null,35,null,null,20,14,null,null,null,null,null,1,null,null,null,null,null,null,null,null,null,null,null,null,4668552,{"$f":"VLOOKUP(M165,#REF!,2,TRUE)*(BR165/1000000)","v":{"$error":"#REF!"}},{"$f":"VLOOKUP(M165,#REF!,3,TRUE)*(BR165/1000000)","v":{"$error":"#REF!"}}]
[" ",2008,"Returned","Ouellette Place returned credits","Tba Fountain Terrace Subdivision","Lewistown",59457,null,null,"Fergus",0.09,"Non-Profit","New/Acq/Rehab","Family",null,null," ",null,null,null,null,null," ",null,"00:00:00",null,null,null,"Lewistown Community Development Corp","Duane Ferdinand","PO Box 716","LEWISTOWN","MT",59457,null,"406-535-1775 FAX 406-538-3323",null,null,null,null,null,null,null,null,null,null,null,null,null,null,null,null,null,null,null,null,null,null,null,null,null,null,null,null,null,null,null,null,null,null,{"$f":"VLOOKUP(M166,#REF!,2,TRUE)*(BR166/1000000)","v":{"$error":"#REF!"}},{"$f":"VLOOKUP(M166,#REF!,3,TRUE)*(BR166/1000000)","v":{"$error":"#REF!"}}]
["2009-04-22",2007,"resynd 2023","South Forty Apartments 4%","769 Fallow Lane","Billings",59101,null,null,"Yellowstone ",0.04,"General","Acq/Rehab","Elderly",101,1,2646400,null,null,null,null,null,"2007-09-12",null,{"$f":"IF(W167>X167,W167,X167)","v":"2007-09-12"},{"$f":"DATE(YEAR(Y167)+14,MONTH(Y167),DAY(Y167))","v":"2021-09-12"},31,{"$f":"DATE(YEAR(Z167)+AA167,MONTH(Z167),DAY(Z167))","v":"2052-09-12"},"South Forty Partners LP","GREG DUNFIELD","1700 7TH AVE STE 2075","SEATTLE","WA",98101,null,"206-832-1308",null,null,null,null,null,null,null,null,null,null,101,null,null,100,null,null,null,null,null,null,1,null,null,null,null,null,null,null,null,null,null,null,null,7390267,{"$f":"VLOOKUP(M167,#REF!,2,TRUE)*(BR167/1000000)","v":{"$error":"#REF!"}},{"$f":"VLOOKUP(M167,#REF!,3,TRUE)*(BR167/1000000)","v":{"$error":"#REF!"}}]
[null,2007,"Active","Fort Peck I","Poplar, Brocton, Wolfpoint","Poplar",59255,null,null,"Roosevelt",0.09,"Tribal","Acq/Rehab","Family",23,23,2657390,null,null,null,null,null,"2008-10-01",null,"2008-10-01","2022-10-01",16,{"$f":"DATE(YEAR(Z168)+AA168,MONTH(Z168),DAY(Z168))","v":"2038-10-01"},"FORT PECK HOMES 1","IVA GRAINGER","PO BOX 667/503 6TH AVE EAST","POPLAR","MT",59255,null,"406-768-5176",null,null,null,null,null,null,null,null,null,null,23,null,null,3,5,8,7,null,null,null,null,null,null,null,null,null,null,null,null,null,null,null,null,3480839,{"$f":"VLOOKUP(M168,#REF!,2,TRUE)*(BR168/1000000)","v":{"$error":"#REF!"}},{"$f":"VLOOKUP(M168,#REF!,3,TRUE)*(BR168/1000000)","v":{"$error":"#REF!"}}]
[" ",2007,"Returned","Polson Meadows returned credits","Hiway 53","Polson",59860,null,null,"Lake",0.09,"General","New Const","Family"," ",null," ",null,null,null,null,null," ",null,"00:00:00",null,null,null,"Cherry Landlake Properties, LLP","Gehrand J. Bechard","136 Tarrs Lane","POLSON","MT",59860,null,"406-887-2303 Cell 406-471-5961",null,null,null,null,null,null,null,null,null,null,0,null,null,28,12,null,null,null,null,null,null,null,null,null,null,null,null,null,null,null,null,null,null," ",{"$f":"VLOOKUP(M169,#REF!,2,TRUE)*(BR169/1000000)","v":{"$error":"#REF!"}},{"$f":"VLOOKUP(M169,#REF!,3,TRUE)*(BR169/1000000)","v":{"$error":"#REF!"}}]
[null,2007,"Active","Equinox","601 N Russell","Missoula",59802,null,null,"Missoula",0.09,"General","New Const","Family",35,1,5450000,null,null,null,null,null,"2009-07-17",null,"2009-07-17","2023-07-17",31,{"$f":"DATE(YEAR(Z170)+AA170,MONTH(Z170),DAY(Z170))","v":"2054-07-17"},"HOMEWORD INC","HEATHER MCMILIN","127 N HIGGINS STE 307","MISSOULA","MT",59802,null,"406-532-4663",null,null,null,null,null,null,null,null,null,null,35,null,5,20,10,null,null,null,null,null,null,null,null,null,null,null,null,null,null,null,null,null,null,8489538,{"$f":"VLOOKUP(M170,#REF!,2,TRUE)*(BR170/1000000)","v":{"$error":"#REF!"}},{"$f":"VLOOKUP(M170,#REF!,3,TRUE)*(BR170/1000000)","v":{"$error":"#REF!"}}]
[" ",2007,"Returned","Oullette Place returned credits","Tba Fountain Terrace Subdivision","Lewistown",59457,null,null,"Fergus",0.09,"Non-Profit","New/Acq/Rehab","Family"," ",null," ",null,null,null,null,null," ",null,"00:00:00",null,null,null,"Lewistown Community Development Corp","Duane Ferdinand","PO Box 716","LEWISTOWN","MT",59457,null,"406-535-1775 FAX 406-538-3323",null,null,null,null,null,null,null,null,null,null,0,null,null,3,15,6,null,null,null,null,null,null,null,null,null,null,null,null,null,null,null,null,null," ",{"$f":"VLOOKUP(M171,#REF!,2,TRUE)*(BR171/1000000)","v":{"$error":"#REF!"}},{"$f":"VLOOKUP(M171,#REF!,3,TRUE)*(BR171/1000000)","v":{"$error":"#REF!"}}]
[null,2007,"Active","Eagles Manor II","720 Washington St","Helena",59624,null,null,"Lewis and Clark",0.09,"Non-Profit","Rehab","Elderly",43,1,5687500,null,null,null,null,null,"2009-01-05",null,"2009-01-05","2023-01-05",31,{"$f":"DATE(YEAR(Z172)+AA172,MONTH(Z172),DAY(Z172))","v":"2054-01-05"},"ROCKY MOUNTAIN DEVELOPMENT COUNCIL","GENE LEUWER","PO Box 1717","HELENA","MT","59624-1717",null,"406-447-1680",null,null,null,null,null,null,null,null,null,null,43,null,null,40,null,null,null,null,null,null,null,null,null,null,null,null,null,null,null,null,null,null,null,6531171,{"$f":"VLOOKUP(M172,#REF!,2,TRUE)*(BR172/1000000)","v":{"$error":"#REF!"}},{"$f":"VLOOKUP(M172,#REF!,3,TRUE)*(BR172/1000000)","v":{"$error":"#REF!"}}]
[null,2007,"Terminated","Makoshika Estates (see add'l credits 2008) (out of program)","660 Grant","Glendive",59330,null,null,"Dawson",0.09,"Non-Profit","New Const","Elderly",null,null,1778350,null,null,null,null,null,null,null,"00:00:00",null,null,null,"Dawson Co Econimic Development Council","Gene Buxel","313 W. Valentine, PO Box 173","GLENDIVE","MT",59330,null,"406-377-7792 FAX406-377-3762",null,null,null,null,null,null,null,null,null,null,18,null,null,9,9,null,null,null,null,null,null,null,null,null,null,null,null,null,null,null,null,null,null,2278045,{"$f":"VLOOKUP(M173,#REF!,2,TRUE)*(BR173/1000000)","v":{"$error":"#REF!"}},{"$f":"VLOOKUP(M173,#REF!,3,TRUE)*(BR173/1000000)","v":{"$error":"#REF!"}}]
[null,2006,"Active","Sage Tower 4%","115 North 24Th Street","Billings",59101,null,null,"Yellowstone ",0.04,"Non-Profit","Acq/Rehab","Elderly",88,1,1655110,null,null,null,null,null,"2009-04-23",null,"2009-04-23","2023-04-23",31,{"$f":"DATE(YEAR(Z174)+AA174,MONTH(Z174),DAY(Z174))","v":"2054-04-23"},"SAGE TOWER PARTNERS RLLP","CHRIS DOWNS","1732 WAZEE ST, SUITE 450","DENVER","CO",80202,null,"303-832-4400",null,null,null,null,null,null,null,null,null,null,88,null,60,33,null,null,null,null,null,5,null,null,null,null,null,null,null,null,null,null,null,null,null,3185329,{"$f":"VLOOKUP(M174,#REF!,2,TRUE)*(BR174/1000000)","v":{"$error":"#REF!"}},{"$f":"VLOOKUP(M174,#REF!,3,TRUE)*(BR174/1000000)","v":{"$error":"#REF!"}}]
["2006-12-13",2006,"Active","Crestview Apts (resyn 2023)","103 Crestview Drive","Big Fork",59911,null,null,"Flathead",0.09,"General","Acq/Rehab","Family",24,4,2268600,null,null,null,null,null,"2008-02-12",null,"2008-02-12","2022-02-12",35,"2057-02-12","AMERICAN COVENANT SENIOR HOUSING","PETER WASSERMAN","4206 ZERMATT DRIVE","SMYRNA","GA",30080,null,"404-924-6482",null,null,null,null,null,null,null,null,null,null,24,null,null,16,8,null,null,null,null,null,null,null,null,null,null,null,null,null,null,null,null,null,null,2727095,{"$f":"VLOOKUP(M175,#REF!,2,TRUE)*(BR175/1000000)","v":{"$error":"#REF!"}},{"$f":"VLOOKUP(M175,#REF!,3,TRUE)*(BR175/1000000)","v":{"$error":"#REF!"}}]
["2006-12-13",2006,"Active","Union Place II","2500 Great Northern Ave","Missoula",59808,null,null,"Missoula",0.09,"General","New Const","Family",33,3,4925550,null,null,null,null,null,"2007-06-01",null,"2007-06-01","2021-06-01",31,"2052-06-01","Sparrow Development","Tim German","5014 ELK HILLS","MISSOULA","MT",59803,null,"406-251-5076",null,null,null,null,null,null,null,null,null,null,33,null,null,null,24,9,null,null,null,null,null,null,null,null,null,null,null,null,null,null,null,null,null,5671021,{"$f":"VLOOKUP(M176,#REF!,2,TRUE)*(BR176/1000000)","v":{"$error":"#REF!"}},{"$f":"VLOOKUP(M176,#REF!,3,TRUE)*(BR176/1000000)","v":{"$error":"#REF!"}}]
[null,2006,"Active","Eagles Manor III","716 Washington Street","Helena",59601,null,null,"Lewis and Clark",0.09,"Non-Profit","Acq/Rehab","Elderly",30,1,5075000,null,null,null,null,null,"2008-10-30",null,"2008-10-30","2022-10-30",16,"2038-10-30","ROCKY MOUNTAIN DEVELOPMENT COUNCIL","GENE LEUWER","PO BOX 1717","HELENA","MT","59624-1717",null,"406-447-1680",null,null,null,null,null,null,null,null,null,null,30,null,null,30,null,null,null,null,null,null,null,null,null,null,null,null,null,null,null,null,null,null,null,5820571,{"$f":"VLOOKUP(M177,#REF!,2,TRUE)*(BR177/1000000)","v":{"$error":"#REF!"}},{"$f":"VLOOKUP(M177,#REF!,3,TRUE)*(BR177/1000000)","v":{"$error":"#REF!"}}]
[null,2006,"Active","Irvin Tract Rehab Project","Scattered Site, Browning","Browning",59417,null,null,"Glacier",0.09,"Tribal","New Const","Family",50,30,5475000,null,null,null,null,null,"2008-07-23",null,"2008-07-23","2022-07-23",31,"2053-07-23","BLACKFEET HOUSING","RAY WILSON","PO BOX 449","BROWNIG","MT",59417,null,"406-338-7942",null,null,null,null,null,null,null,null,null,null,50,null,null,6,10,24,10,null,null,null,null,null,null,null,null,null,null,null,null,null,null,null,null,5956768,{"$f":"VLOOKUP(M178,#REF!,2,TRUE)*(BR178/1000000)","v":{"$error":"#REF!"}},{"$f":"VLOOKUP(M178,#REF!,3,TRUE)*(BR178/1000000)","v":{"$error":"#REF!"}}]
[null,2006,"Active","Fort Belknap Housing III","Scattered Harlem 59526","Fort Belknap",59526,null,null,"Blaine",0.09,"Tribal","New Const","Family",24,24,4428220,null,null,null,null,null,"2007-08-03",null,"2007-08-03","2021-08-03",15,"2036-08-03","FORT BELKNAP INDIAN COMMUNITY","TRACEY KING, PRESIDENT","RR1, BOX 66","HARLEM","MT",59526,null,"406-353-2265",null,null,null,null,null,null,null,null,null,null,24,null,null,null,null,24,null,null,null,null,null,null,null,null,null,null,null,null,null,null,null,null,null,4442243,{"$f":"VLOOKUP(M179,#REF!,2,TRUE)*(BR179/1000000)","v":{"$error":"#REF!"}},{"$f":"VLOOKUP(M179,#REF!,3,TRUE)*(BR179/1000000)","v":{"$error":"#REF!"}}]
["2006-12-13",2006,"Active","Cornerstone Apartments","310 North Jordon","Miles City",59301,null,null,"Custer",0.09,"Non-Profit","Acq/Rehab","Family",21,1,2293280,null,null,null,null,null,"2007-10-31",null,"2007-10-31","2021-10-31",31,"2052-10-31","Miles City Housing Authority","Melissa Hartman","310 NORTH JORDAN","MILES CITY","MT",59301,null,"406-234-3433",null,null,null,null,null,null,null,null,null,null,21,null,null,3,6,12,null,null,null,null,null,null,null,null,null,null,null,null,null,null,null,null,null,4001476,{"$f":"VLOOKUP(M180,#REF!,2,TRUE)*(BR180/1000000)","v":{"$error":"#REF!"}},{"$f":"VLOOKUP(M180,#REF!,3,TRUE)*(BR180/1000000)","v":{"$error":"#REF!"}}]
["2006-12-13",2006,"Active","Southern Lights","801 South 28Th Street","Billings",59101,45.773490000000002,-108.49686,"Yellowstone ",0.09,"Non-Profit","New Const","Family",20,2,4500000,null,null,null,null,null,"2007-10-01",null,"2007-10-01","2021-10-01",31,"2052-10-01","homeWORD","ANDREA DAVIS","127 N. HIGGINS, #307","MISSOULA","MT",59802,null,"406-532-4663",null,null,null,null,null,null,null,null,null,null,20,null,null," "," "," ",null,null,null,null,null,null,null,null,null,null,null,null,null,null,null,null,null,4691000,{"$f":"VLOOKUP(M181,#REF!,2,TRUE)*(BR181/1000000)","v":{"$error":"#REF!"}},{"$f":"VLOOKUP(M181,#REF!,3,TRUE)*(BR181/1000000)","v":{"$error":"#REF!"}}]
[null,2006,"Active","Fraser Tower 4%","715 South 28Th Street","Billings",59101,null,null,"Yellowstone ",0.04,"Non-Profit","Acq/Rehab","Elderly",64,1,1105400,null,null,null,null,null,"2006-02-08",null,"2006-02-08","2020-02-08",15,"2035-02-08","FRASER TOWER PARTNERS RLLP","CHRIS DOWNS","1743 WAZEE ST, SUITE 450","DENVER","CO",80202,null,"303-832-4400",null,null,null,null,null,null,null,null,null,null,64,null,null,58,6,null,null,null,null,null,null,null,null,null,null,null,null,null,null,null,null,null,null,3558624,{"$f":"VLOOKUP(M182,#REF!,2,TRUE)*(BR182/1000000)","v":{"$error":"#REF!"}},{"$f":"VLOOKUP(M182,#REF!,3,TRUE)*(BR182/1000000)","v":{"$error":"#REF!"}}]
["2005-12-23",2005,"Active","Baxter Apartments","2635 Tradewind Lane ","Bozeman",59718,null,null,"Gallatin",0.09,"General","New Const","Family",48,5,5185000,null,null,null,null,null,"2006-06-13",null,"2006-06-13","2020-06-13",16,"2036-06-13","FARMHOUSE PARTNERS-BAXTER LP","WILLIAM C DABNEY","2555 W COLLEGE STE B","BOZEMAN","MT",59718,null,"406-585-9808",null,null,null,null,null,null,null,null,null,null,48,null,null,18,29,null,null,null,null,null,1,null,null,null,null,null,null,null,null,null,null,null,null,5969176,{"$f":"VLOOKUP(M183,#REF!,2,TRUE)*(BR183/1000000)","v":{"$error":"#REF!"}},{"$f":"VLOOKUP(M183,#REF!,3,TRUE)*(BR183/1000000)","v":{"$error":"#REF!"}}]
["2005-11-28",2005,"Active","Mountain View Apartments II","Stonegate Drive","Hamilton",59840,null,null,"Ravalli",0.09,"General","New Const","Family",28,3,3136250,null,null,null,null,null,"2006-05-31",null,"2006-05-31","2020-05-31",16,"2036-05-31","MOUNTAIN VIEW ASSOCIATES II LP","Patrick Klier","283 W FRONT ST STE 1","MISSOULA","MT",59802,null,"406-541-0999",null,null,null,null,null,null,null,null,null,null,28,null,null,null,12,16,null,null,null,null,null,null,null,null,null,null,null,null,null,null,null,null,null,3459738,{"$f":"VLOOKUP(M184,#REF!,2,TRUE)*(BR184/1000000)","v":{"$error":"#REF!"}},{"$f":"VLOOKUP(M184,#REF!,3,TRUE)*(BR184/1000000)","v":{"$error":"#REF!"}}]
[" ",2005,"Returned","Lincoln Springs - returned credits","Lincoln Lane","Billings",59101,null,null,"Yellowstone ",0.09,"Non-Profit","New Const","Family"," ",null," ",null,null,null,null,null," ",null,"00:00:00",null,null,null,"Community Development, Inc.","Fred Free","4110 EATON AVE #A","CALDWELL","ID","83607-1780",null,"208-459-8522",null,null,null,null,null,null,null,null,null,null,0,null,null,null,28,18,2,null,null,null,1,null,null,null,null,null,null,null,null,null,null,null,null," ",{"$f":"VLOOKUP(M185,#REF!,2,TRUE)*(BR185/1000000)","v":{"$error":"#REF!"}},{"$f":"VLOOKUP(M185,#REF!,3,TRUE)*(BR185/1000000)","v":{"$error":"#REF!"}}]
[" ",2005,"Returned","Old Holy Rosary Hospital Apartments - returned credits","2101 Clark St","Miles City",59301,null,null,"Custer",0.09,"Non-Profit","Acq/Rehab","Family"," ",null," ",null,null,null,null,null," ",null,"00:00:00",null,null,null,"Miles City Housing Authority","Melissa Hartman","210 SOUTH WINCHESTER","MILES CITY","MT",59301,null,"406-234-3433",null,null,null,null,null,null,null,null,null,null,0,null,null,3,7,11,null,null,null,null,null,null,null,null,null,null,null,null,null,null,null,null,null," ",{"$f":"VLOOKUP(M186,#REF!,2,TRUE)*(BR186/1000000)","v":{"$error":"#REF!"}},{"$f":"VLOOKUP(M186,#REF!,3,TRUE)*(BR186/1000000)","v":{"$error":"#REF!"}}]
[null,2005,"Active","Fort Belknap II Renovation Project","Scattered, Harlem 59526","Fort Belknap",59526,null,null,"Blaine",0.09,"Tribal","New Const","Family",52,49,4515620,null,null,null,null,null,"2006-08-01",null,"2006-08-01","2020-08-01",31,{"$f":"DATE(YEAR(Z187)+AA187,MONTH(Z187),DAY(Z187))","v":"2051-08-01"},"FORT BELKNAP INDIAN COMMUNITY","TRACEY KING, PRESIDENT","RR 1 BOX 66","HARLEM","MT",59526,null,"406-353-2601",null,null,null,null,null,null,null,null,null,null,52,null,null,null,4,40,4,4,null," ",null,null,null,null,null,null,null,null,null,null,null,null,null,5956768,{"$f":"VLOOKUP(M187,#REF!,2,TRUE)*(BR187/1000000)","v":{"$error":"#REF!"}},{"$f":"VLOOKUP(M187,#REF!,3,TRUE)*(BR187/1000000)","v":{"$error":"#REF!"}}]
["2004-12-23",2005,"Active","North Country Estates","Browing/Heart Butte","Browning",59417,null,null,"Glacier",0.09,"Tribal","New Const","Family",25,25,3059280,null,null,null,null,null,"2007-05-09",null,"2007-05-09","2021-05-09",31,"2052-05-09","Blackfeet Housing","Ray Wilson","PO BOX 449","BROWNING","MT",59417,null,"406-338-7942",null,null,null,null,null,null,null,null,null,null,23,null,null," "," ",8,15,null,null," ",null,null,null,null,null,null,null,null,null,null,null,null,null,4066005,{"$f":"VLOOKUP(M188,#REF!,2,TRUE)*(BR188/1000000)","v":{"$error":"#REF!"}},{"$f":"VLOOKUP(M188,#REF!,3,TRUE)*(BR188/1000000)","v":{"$error":"#REF!"}}]
["2004-11-22",2004,"Active","Rose Park Plaza 4%","2325 Avenue C","Billings",59102,null,null,"Yellowstone ",0.04,null,"Acq/Rehab","Family",112,12,2314310,null,null,null,null,null,"2005-03-07",null,"2005-03-07","2019-03-07",5,"2024-03-07","ROSE PARK PLAZA PARTNERS, LTD, RLLLP","CHRISTOPHER F. DOWNS, PRESIDENT","1743 WAZEE ST STE 450","DENVER","CO",80202,null,"303-832-4400",null,null,null,null,null,null,null,null,null,null,null,null,null,null,null,null,null,null,null,null,null,null,null,null,null,null,null,null,null,null,null,null,null,6542294,{"$f":"VLOOKUP(M189,#REF!,2,TRUE)*(BR189/1000000)","v":{"$error":"#REF!"}},{"$f":"VLOOKUP(M189,#REF!,3,TRUE)*(BR189/1000000)","v":{"$error":"#REF!"}}]
["2004-12-23",2004,"Active","Wilder Apartments","1600 Block Wilder","Helena",59601,null,null,"Lewis and Clark",0.09,"non-profit","New Const","Family",31,5,2345000,null,null,null,null,null,"2005-06-01",null,"2005-06-01","2019-06-01",16,"2035-06-01","HELENA HOUSING AUTHORITY","COLLEEN MCCARTHY","812 ABBEY ST","HELENA","MT",59601,null,"406.442.7970  FAX.406-442-0574",null,null,null,null,null,null,null,null,null,null,31,null,null,23,8,null,null,null,null,null,null,null,null,null,null,null,null,null,null,null,null,null,null,2921650,{"$f":"VLOOKUP(M190,#REF!,2,TRUE)*(BR190/1000000)","v":{"$error":"#REF!"}},{"$f":"VLOOKUP(M190,#REF!,3,TRUE)*(BR190/1000000)","v":{"$error":"#REF!"}}]
["2004-12-23",2004,"Active","Union Place","2500 Great Northern Avenue","Missoula",59808,null,null,"Missoula",0.09,null,"New Const","Family",30,3,4639000,null,null,null,null,null,"2005-08-01",null,"2005-08-01","2019-08-01",16,"2035-08-01","GNA ASSOCIATES, LP","TIM GERMAN","619 SW Higgins Ste D","MISSOULA","MT",59803,null,"406-251-5076",null,null,null,null,null,null,null,null,null,null,31,null,null,null,16,15,null,null,null,null,null,null,null,null,null,null,null,null,null,null,null,null,null,5098539,{"$f":"VLOOKUP(M191,#REF!,2,TRUE)*(BR191/1000000)","v":{"$error":"#REF!"}},{"$f":"VLOOKUP(M191,#REF!,3,TRUE)*(BR191/1000000)","v":{"$error":"#REF!"}}]
["2004-12-23",2004,"Active","Maclay Commons","Lots 1,2,3 Orchard Promenade","Missoula",59801,null,null,"Missoula",0.09,"non-profit","New Const","Family",16,8,2150000,null,null,null,null,null,"2006-01-19",null,"2006-01-19","2020-01-19",16,"2036-01-19","MACLAY COMMONS ASSOCIATES LP","LORI DAVIDSON","1235 34TH ST","MISSOULA","MT",59801,null,"406-549-4113 X105",null,null,null,null,null,null,null,null,null,null,16,null,null,null,8,8,null,null,null,null,null,null,null,null,null,null,null,null,null,null,null,null,null,3461654,{"$f":"VLOOKUP(M192,#REF!,2,TRUE)*(BR192/1000000)","v":{"$error":"#REF!"}},{"$f":"VLOOKUP(M192,#REF!,3,TRUE)*(BR192/1000000)","v":{"$error":"#REF!"}}]
[" ",2004,"Returned","Bridger Court Apts - returned credits","Oak St & Future 15Th","Bozeman",59715,null,null,"Gallatin",0.09,"non-profit","New Const","Elderly"," ",null," ",null,null,null,null,null," ",null,"00:00:00",null,null,null,null,null,null,null,null,null,null,null,null,null,null,null,null,null,null,null,null,null,null,null,null,null,null,null,null,null,null,null,null,null,null,null,null,null,null,null,null,null,null,null,null," ",{"$f":"VLOOKUP(M193,#REF!,2,TRUE)*(BR193/1000000)","v":{"$error":"#REF!"}},{"$f":"VLOOKUP(M193,#REF!,3,TRUE)*(BR193/1000000)","v":{"$error":"#REF!"}}]
[" ",2004,"Returned","Pattee Street - returned credits","315 N Pattee Street","Missoula",59801,null,null,"Missoula",0.09,"small","Acq/Rehab","Family"," ",null," ",null,null,null,null,null," ",null,"00:00:00",null,null,null,null,null,null,null,null,null,null,null,null,null,null,null,null,null,null,null,null,null,null,null,null,null,null,null,null,null,null,null,null,null,null,null,null,null,null,null,null,null,null,null,null," ",{"$f":"VLOOKUP(M194,#REF!,2,TRUE)*(BR194/1000000)","v":{"$error":"#REF!"}},{"$f":"VLOOKUP(M194,#REF!,3,TRUE)*(BR194/1000000)","v":{"$error":"#REF!"}}]
["2004-12-23",2004,"Active","Felsman North & East","Old Hwy 93 & Joe Dog Drive","Pablo",59855,null,null,"Lake ",0.09,"Tribal","New Const","Family",12,6,775360,null,null,null,null,null,"2006-08-08",null,"2006-08-08","2020-08-08",16,{"$f":"DATE(YEAR(Z195)+AA195,MONTH(Z195),DAY(Z195))","v":"2036-08-08"},"SALISH & KOOTENAI HOUSING AUTHORITY","JASON ADAMS","PO BOX 38","PABLO","MT",59855,null,"406-675-4495",null,null,null,null,null,null,null,null,null,null,12,null,null,null,12,null,null,null,null,null,null,null,null,null,null,null,null,null,null,null,null,null,null,1444506,{"$f":"VLOOKUP(M195,#REF!,2,TRUE)*(BR195/1000000)","v":{"$error":"#REF!"}},{"$f":"VLOOKUP(M195,#REF!,3,TRUE)*(BR195/1000000)","v":{"$error":"#REF!"}}]
["2004-12-23",2004,"Active","Orchard Garden","218 S Grove","Missoula",59801,null,null,"Missoula",0.09,"non-profit","New Const","Family",35,4,4777960,null,null,null,null,null,"2005-12-01",null,"2005-12-01","2019-12-01",20,{"$f":"DATE(YEAR(Z196)+AA196,MONTH(Z196),DAY(Z196))","v":"2039-12-01"},"ORCHARD GARDENS LP","ANDREA DAVIS","127 N HIGGINS # 307","MISSOULA","MT",59802,null,"406-532-4663",null,null,null,null,null,null,null,null,null,null,35,null,null,18,12,5,null,null,null,null,null,null,null,null,null,null,null,null,null,null,null,null,null,6757322,{"$f":"VLOOKUP(M196,#REF!,2,TRUE)*(BR196/1000000)","v":{"$error":"#REF!"}},{"$f":"VLOOKUP(M196,#REF!,3,TRUE)*(BR196/1000000)","v":{"$error":"#REF!"}}]
["2004-12-23",2004,"Active","Bridger Apartments II","2500 Block West College","Bozeman",59715,null,null,"Gallatin",0.09,null,"New Const","Family",46,3,5187500,null,null,null,null,null,"2005-06-01",null,"2005-06-01","2019-06-01",16,{"$f":"DATE(YEAR(Z197)+AA197,MONTH(Z197),DAY(Z197))","v":"2035-06-01"},"FARMHOUSE PARTNERS","WILLIAM C DABNEY III","2555 W COLLEGE STE B","BOZEMAN","MT",59718,null,"406-585-9808",null,null,null,null,null,null,null,null,null,null,46,null,null,18,28,null,null,null,null,null,null,null,null,null,null,null,null,null,null,null,null,null,null,5238586,{"$f":"VLOOKUP(M197,#REF!,2,TRUE)*(BR197/1000000)","v":{"$error":"#REF!"}},{"$f":"VLOOKUP(M197,#REF!,3,TRUE)*(BR197/1000000)","v":{"$error":"#REF!"}}]
["2004-12-23",2004,"Active","Georgetown Commons","215 E. Pennsylvania Ave","Anaconda",null,null,null,"Deer Lodge",0.09,"small","New Const","Family",10,1,1122130,null,null,null,null,null,"2006-12-31",null,"2006-12-31","2020-12-31",16,{"$f":"DATE(YEAR(Z198)+AA198,MONTH(Z198),DAY(Z198))","v":"2036-12-31"},"COMMUNITY DEVELOPMENT INC","FRED CORNFORTH","4110 EATON AVENUE, STE A","CALDWELL","ID",83607,null,"208-459-8522",null,null,null,null,null,null,null,null,null,null,10,null,null,null,4,6,null,null,null,null,null,null,null,null,null,null,null,null,null,null,null,null,null,1024463,{"$f":"VLOOKUP(M198,#REF!,2,TRUE)*(BR198/1000000)","v":{"$error":"#REF!"}},{"$f":"VLOOKUP(M198,#REF!,3,TRUE)*(BR198/1000000)","v":{"$error":"#REF!"}}]
[" ",2004,"Returned","Nicole Court - retuned credits","Gov Lot1 , Parcel B, Cos 466881-Tfr","Stevensville",null,null,null,"Ravalli",0.09,"small","New Const","Family"," ",null," ",null,null,null,null,null," ",null,"00:00:00",null,null,null,"ALEX BURKHALTER",null,"PO BOX 1030","MISSOULA","MT","59806-1030",null,"406-548-8988",null,null,null,null,null,null,null,null,null,null,0,null,null,null,null,8,null,null,null,null,null,null,null,null,null,null,null,null,null,null,null,null,null," ",{"$f":"VLOOKUP(M199,#REF!,2,TRUE)*(BR199/1000000)","v":{"$error":"#REF!"}},{"$f":"VLOOKUP(M199,#REF!,3,TRUE)*(BR199/1000000)","v":{"$error":"#REF!"}}]
["2003-12-19",2003,"Active","Snowcrest Apartments","124 Skihi Street","Dillon",59725,null,null,"Beaverhead",0.09,"non-profit","New Const","Family",24,4,1905390,null,null,null,null,null,"2005-11-04",null,"2005-11-04","2019-11-04",16,{"$f":"DATE(YEAR(Z200)+AA200,MONTH(Z200),DAY(Z200))","v":"2035-11-04"},"SNOWCREST LIMITED PARTNERSHIP","FRED CORNFORTH","4110 EATON AVE #A","CALDWELL","ID","83607-1780",null,"208-459-8522 FAX 208-459-9692",null,null,null,null,null,null,null,null,null,null,24,null," ",null,15,9,null,null,null,null,null,null,null,null,null,null,null,null,null,null,null,null,null,2087831,{"$f":"VLOOKUP(M200,#REF!,2,TRUE)*(BR200/1000000)","v":{"$error":"#REF!"}},{"$f":"VLOOKUP(M200,#REF!,3,TRUE)*(BR200/1000000)","v":{"$error":"#REF!"}}]
["1219/2003",2003,"Active","Acme (see orig 2002 credits)","109 N Broadway","Billings",59101,null,null,"Yellowstone ",0.09,"non-profit","Acq/Rehab","Family"," ",null,1106860,null,null,null,null,null,"2004-10-18",null,"2004-10-18","2018-10-18",16,"2034-10-18","HOMEWORD","HEATHER MCMILAN/ ANDREA DAVIS","127 N HIGGINS, STE 307","MISSOULA","MT",59802,null,"406-532-4663",null,null,null,null,null,null,null,null,null,null,19,null,4,12,3,null,null,null,null,null,null,null,null,null,null,null,null,null,null,null,null,null,null,3466959,{"$f":"VLOOKUP(M201,#REF!,2,TRUE)*(BR201/1000000)","v":{"$error":"#REF!"}},{"$f":"VLOOKUP(M201,#REF!,3,TRUE)*(BR201/1000000)","v":{"$error":"#REF!"}}]
["2003-12-19",2003,"Active","Country Estates","Scattered","Browning & Heart Butte",null,null,null,"Glacier",0.09,"tribal","New Const","Family",35,35,5026770,null,null,null,null,null,"2004-10-29",null,"2004-10-29","2018-10-29",31,"2049-10-29","BLACKFEET HOUSING","RAY WILSON","PO BOX 449","BROWNING","MT",59417,null,"406-338-7942 FAX 406-338-3873",null,null,null,null,null,null,null,null,null,null,35,null,null,null,null,35,null,null,null,null,null,null,null,null,null,null,null,null,null,null,null,null,null,4340257,{"$f":"VLOOKUP(M202,#REF!,2,TRUE)*(BR202/1000000)","v":{"$error":"#REF!"}},{"$f":"VLOOKUP(M202,#REF!,3,TRUE)*(BR202/1000000)","v":{"$error":"#REF!"}}]
["2003-12-19",2003,"Active","Bridger Peaks Village","1483 North 15Th Avenue","Bozeman",59715,null,null,"Gallatin",0.09,"non-prof/gen","New Const","Elderly",61,1,5000000,null,null,null,null,null,"2004-12-15",null,"2004-12-15","2018-12-15",31,"2049-12-15","BRIDGER PEAKS VILLAGE ASSOC, LLP","ALEX BURKHALTER","619 SW HIGGINS STE E","MISSOULA","MT",59803,null,"406-251-5076 FAX 406-251-4941",null,null,null,null,null,null,null,null,null,null,60,null,null,46,14,null,null,null,null,null,null,null,null,null,null,null,null,null,null,null,null,null,null,5753233,{"$f":"VLOOKUP(M203,#REF!,2,TRUE)*(BR203/1000000)","v":{"$error":"#REF!"}},{"$f":"VLOOKUP(M203,#REF!,3,TRUE)*(BR203/1000000)","v":{"$error":"#REF!"}}]
["2003-12-31",2003,"Active","Eagles Manor I Penkay","715 N. Fee Street","Helena",59601,null,null,"Lewis and Clark",0.09,"non-profit","Acq/Rehab","Elderly",66,1,3913030,null,null,null,null,null,"2005-12-29",null,"2005-12-29","2019-12-29",16,"2035-12-29","EAGLE ROCK RESIDENCE, LP","GENE LEUWER","PO BOX 1717","HELENA","MT","59624-1717",null,"406-447-1680 FAX 406-447-1629",null,null,null,null,null,null,null,null,null,null,66,null,52,14,null,null,null,null,null,null,null,null,null,null,null,null,null,null,null,null,null,null,null,5132772,{"$f":"VLOOKUP(M204,#REF!,2,TRUE)*(BR204/1000000)","v":{"$error":"#REF!"}},{"$f":"VLOOKUP(M204,#REF!,3,TRUE)*(BR204/1000000)","v":{"$error":"#REF!"}}]
["2003-12-19",2003,"resynd 2021","Bitterroot Commons II (resyndicated 2021)","601 & 603 Welcome Way","Darby",59829,null,null,"Ravalli",0.09,"small","New Const","Family",8,2,825000,null,null,null,null,null,"2004-03-12",null,"2004-03-12","2018-03-12",15,"2033-03-12","BITTERROOT COMMONS LP","PATRICK KLIER","283 W FRONT ST STE 1","MISSOULA","MT",59802,null,"406-541-0999 FAX 406-541-0997",null,null,null,null,null,null,null,null,null,null,8,null,null,null,8,null,null,null,null,null,null,null,null,null,null,null,null,null,null,null,null,null,null,880432,{"$f":"VLOOKUP(M205,#REF!,2,TRUE)*(BR205/1000000)","v":{"$error":"#REF!"}},{"$f":"VLOOKUP(M205,#REF!,3,TRUE)*(BR205/1000000)","v":{"$error":"#REF!"}}]
["2002-12-20",2002,"Active","Acme Hotel (see add'l 2003 credits)","109 N Broadway","Billings",59101,null,null,"Yellowstone ",0.09,"small proj","Acq/Rehab","Family",19,1,1124660,null,null,null,null,null,"2004-10-18",null,"2004-10-18","2018-10-18",16,"2034-10-18","HOMEWORD","HEATHER MCMILAN/ANDREA DAVIS","127 N HIGGINS, STE 307","MISSOULA","MT",59802,null,"406-532-4663 ",null,null,null,null,null,null,null,null,null,null,20,null,null,14,5,null,null,null,null,null,1,null,null,null,null,null,null,null,null,null,null,null,null,2595299,{"$f":"VLOOKUP(M206,#REF!,2,TRUE)*(BR206/1000000)","v":{"$error":"#REF!"}},{"$f":"VLOOKUP(M206,#REF!,3,TRUE)*(BR206/1000000)","v":{"$error":"#REF!"}}]
["2002-12-20",2002,"Active","Teakettle Vista Apartments II","12Th Ave W At 12Th St W","Columbia Falls",59912,null,null,"Flathead",0.09,"small proj","New Const","Elderly",24,7,624790,null,null,null,null,null,"2004-12-17",null,"2004-12-17","2018-12-17",35,"2053-12-17","TEAKETTLE VISTA II ASSOCIATES","DOUGLAS RAUTHE","PO BOX 8300","KALISPELL","MT",59904,null,"406-752-6565 FAX 406-752-6582",null,null,null,null,null,null,null,null,null,null,24,null,null,20,3,null,null,null,null,null,1,null,null,null,null,null,null,null,null,null,null,null,null,1716146,{"$f":"VLOOKUP(M207,#REF!,2,TRUE)*(BR207/1000000)","v":{"$error":"#REF!"}},{"$f":"VLOOKUP(M207,#REF!,3,TRUE)*(BR207/1000000)","v":{"$error":"#REF!"}}]
[null,2002,"Active","Hailey Apartments","3602 Winter Lane","Whitefish",59937,null,null,"Flathead",0.09,"small proj","New Const","Family",10,1,700150,null,null,null,null,null,"2004-11-17",null,"2004-11-17","2018-11-17",16,"2034-11-17","WHITEFISH MOUNTAIN ASSOCIATES","TODD & MARY ANN PRESCOTT","8585 WOODVINE DR #200","HAYDEN","ID",83835,null,"208-772-0108 FAX 208-772-0178",null,null,null,null,null,null,null,null,null,null,10,null,null,2,6,2,null,null,null,null,null,null,null,null,null,null,null,null,null,null,null,null,null,904795,{"$f":"VLOOKUP(M208,#REF!,2,TRUE)*(BR208/1000000)","v":{"$error":"#REF!"}},{"$f":"VLOOKUP(M208,#REF!,3,TRUE)*(BR208/1000000)","v":{"$error":"#REF!"}}]
["2002-12-20",2002,"Active","Pheasant Glen","Ptarmigan Lane","Helena",59601,null,null,"Lewis and Clark",0.09,"non profit","New Const","Family",32,5,2507240,null,null,null,null,null,"2003-08-01",null,"2003-08-01","2017-08-01",16,"2033-08-01","PHEASANT GLEN LP","GENE LEUWER","PO BOX 1717","HELENA","MT","59624-1717",null,"406-447-1680 FAX 406-447-1629",null,null,null,null,null,null,null,null,null,null,32,null,null,32,null,null,null,null,null,null,null,null,null,null,null,null,null,null,null,null,null,null,null,3250511,{"$f":"VLOOKUP(M209,#REF!,2,TRUE)*(BR209/1000000)","v":{"$error":"#REF!"}},{"$f":"VLOOKUP(M209,#REF!,3,TRUE)*(BR209/1000000)","v":{"$error":"#REF!"}}]
["2002-07-17",2002,"Active","Meadowood Apartments","315 E Maryland Lane","Laurel",59044,null,null,"Yellowstone ",0.09,"general","New Const","Family",32,3,1673290,null,null,null,null,null,"2003-07-18",null,"2003-07-18","2017-07-18",16,"2033-07-18","MEADOWOOD APARTMENTS LP","VICKI WESTRICK","PO BOX 1529","RED LODGE","MT",59068,null,"406-446-2380 FAX 406-446-3860",null,null,null,null,null,null,null,null,null,null,32,null,null,16,15,null,null,null,null,null,1,null,null,null,null,null,null,null,null,null,null,null,null,1999923,{"$f":"VLOOKUP(M210,#REF!,2,TRUE)*(BR210/1000000)","v":{"$error":"#REF!"}},{"$f":"VLOOKUP(M210,#REF!,3,TRUE)*(BR210/1000000)","v":{"$error":"#REF!"}}]
["2002-12-20",2002,"Active","Mountain Senior Apartments","River Ranch Drive","Whitefish",59937,null,null,"Flathead",0.09,"general","New Const","Elderly",30,5,1590960,null,null,null,null,null,"2004-06-18",null,"2004-06-18","2018-06-18",16,"2034-06-18","MOUNTAIN SENIORS LP","TODD & MARYANN PRESCOTT","8585 WOODVINE DR #200","HAYDEN","ID",83835,null,"208-772-0108 FAX 208-772-0178",null,null,null,null,null,null,null,null,null,null,30,null,null,10,19,null,null,null,null,null,1,null,null,null,null,null,null,null,null,null,null,null,null,2143342,{"$f":"VLOOKUP(M211,#REF!,2,TRUE)*(BR211/1000000)","v":{"$error":"#REF!"}},{"$f":"VLOOKUP(M211,#REF!,3,TRUE)*(BR211/1000000)","v":{"$error":"#REF!"}}]
["2002-12-20",2002,"resynd 2021","Mountain View Apartments (resyndicated 2021)","Lot B-2-A On Providence","Hamilton",59840,null,null,"Ravalli",0.09,"general","New Const","Family",36,8,3450000,null,null,null,null,null,"2003-08-27",null,"2003-08-27","2017-08-27",15,"2032-08-27","MOUNTAIN VIEW ASSOCIATES LP","PATRICK KLIER","283 W FRONT STE 1","MISSOULA","MT",59802,null,"406-541-0999 FAX406-541-0997",null,null,null,null,null,null,null,null,null,null,37,null,null,null,24,12,null,null,null,null,1,null,null,null,null,null,null,null,null,null,null,null,null,3465809,{"$f":"VLOOKUP(M212,#REF!,2,TRUE)*(BR212/1000000)","v":{"$error":"#REF!"}},{"$f":"VLOOKUP(M212,#REF!,3,TRUE)*(BR212/1000000)","v":{"$error":"#REF!"}}]
["2002-12-20",2002,"Active","Sparrow Lane Homes, Phase II","Sparrow Lane East Of Hwy 93","Pablo",59855,null,null,"Lake",0.09,"general","New Const","Family",18,18,2443170,null,null,null,null,null,"2003-07-10",null,"2003-07-10","2017-07-10",15,"2032-07-10","SPARROW LANE ASSOCIATES II A MONTANA LP","RON TUNING","430 E STATE ST STE 100","EAGLE","ID",83616,null,"208-461-0022 X3010",null,null,null,null,null,null,null,null,null,null,18,null,null,null,null,18,null,null,null,null,null,null,null,null,null,null,null,null,null,null,null,null,null,4194600,{"$f":"VLOOKUP(M213,#REF!,2,TRUE)*(BR213/1000000)","v":{"$error":"#REF!"}},{"$f":"VLOOKUP(M213,#REF!,3,TRUE)*(BR213/1000000)","v":{"$error":"#REF!"}}]
["2002-12-20",2002,"Active","Bridger Apts ","2517 W College Ave","Bozeman",59715,null,null,"Gallatin",0.09,"general","New Const","Family",44,4,5000000,null,null,null,null,null,"2003-04-01",null,"2003-04-01","2017-04-01",16,"2033-04-01","FARMHOUSE PARTNERS - COLLEGE LP","WILLIAM C  DABNEY III","2555 W COLLEGE ST #B","BOZEMAN","MT",59718,null,"406-585-9808 FAX 406-586-1166",null,null,null,null,null,null,null,null,null,null,44,null,null,null,36,7,null,null,null,null,1,null,null,null,null,null,null,null,null,null,null,null,null,5259725,{"$f":"VLOOKUP(M214,#REF!,2,TRUE)*(BR214/1000000)","v":{"$error":"#REF!"}},{"$f":"VLOOKUP(M214,#REF!,3,TRUE)*(BR214/1000000)","v":{"$error":"#REF!"}}]
[null,2002,"Active","Turtle Lake Project","Blacktail & Whitetail Lanes","Pablo",59855,null,null,"Lake",0.09,"general","Acq/Rehab","Family",33,33,2839640,null,null,null,null,null,"2004-03-31",null,"2004-03-31","2018-03-31",30,"2048-03-31","S & K LIMITED PARTNERSHIP #4","JASON ADAMS","PO BOX 38","PABLO","MT",59855,null,"406-675-4491 FAX 406-675-4495",null,null,null,null,null,null,null,null,null,null,33,null,null,null,4,13,16,null,null,null,null,null,null,null,null,null,null,null,null,null,null,null,null,3115110,{"$f":"VLOOKUP(M215,#REF!,2,TRUE)*(BR215/1000000)","v":{"$error":"#REF!"}},{"$f":"VLOOKUP(M215,#REF!,3,TRUE)*(BR215/1000000)","v":{"$error":"#REF!"}}]
["2002-12-20",2002,"resynd 2021","Bitterroot Commons I (resyndicated 2021)","601 & 603 Welcome Way","Darby",59829,null,null,"Ravalli",0.09,"small proj","New Const","Family",8,2,800000,null,null,null,null,null,"2003-05-02",null,"2003-05-02","2017-05-02",15,"2032-05-02","BITTERROOT COMMONS LP","PATRICK KLIER","283 W FRONT STE #1","MISSOULA","MT",59802,null,"406-541-0999 X2 FAX 406-541-0997",null,null,null,null,null,null,null,null,null,null,8,null,null,null,8,null,null,null,null,null,null,null,null,null,null,null,null,null,null,null,null,null,null,819227,{"$f":"VLOOKUP(M216,#REF!,2,TRUE)*(BR216/1000000)","v":{"$error":"#REF!"}},{"$f":"VLOOKUP(M216,#REF!,3,TRUE)*(BR216/1000000)","v":{"$error":"#REF!"}}]
["2002-12-20",2002,"Active","Sunny Slope Vista Apartments","820 11Th Street East","Polson",59860,null,null,"Lake",0.09,"small proj","New Const","Elderly",20,6,626480,null,null,null,null,null,"2003-08-14",null,"2003-08-14","2017-08-14",35,"2052-08-14","POLSON SUNNY SLOPE VISTA ASSOCIATES","DOUGLAS RAUTHE","P O BOX 8300","KALISPELL","MT",59904,null,"406-752-6565 FAX 406-752-6582",null,null,null,null,null,null,null,null,null,null,20,null,null,16,3,null,null,null,null,null,1,null,null,null,null,null,null,null,null,null,null,null,null,1515873,{"$f":"VLOOKUP(M217,#REF!,2,TRUE)*(BR217/1000000)","v":{"$error":"#REF!"}},{"$f":"VLOOKUP(M217,#REF!,3,TRUE)*(BR217/1000000)","v":{"$error":"#REF!"}}]
["2002-12-20",2002,"resyd 2020","Courtyards II @ Corvallis (resyn 2020 Emporda)","Market Street","Corvallis",59828,null,null,"Ravalli",0.09,"small proj","New Const","Family",12,2,1000000,null,null,null,null,null,"2002-10-01",null,"2002-10-01","2016-10-01",15,"2031-10-01","PACIFIC DEVELOPMENT GROUP","RON TUNING","403 EAST STATE ST STE 100","EAGLE ","ID",83616,null,"208-461-0022   FAX 208-461-3267",null,null,null,null,null,null,null,null,null,null,12,null,null,null,8,4,null,null,null,null,null,null,null,null,null,null,null,null,null,null,null,null,null,989844,{"$f":"VLOOKUP(M218,#REF!,2,TRUE)*(BR218/1000000)","v":{"$error":"#REF!"}},{"$f":"VLOOKUP(M218,#REF!,3,TRUE)*(BR218/1000000)","v":{"$error":"#REF!"}}]
["2001-12-19",2001,"Active","Sparrow Lane Phase I","Sparrow Lane","Pablo",59855,null,null,"Lake",0.09,"small proj","New Const","Family",18,18,2100000,null,null,null,null,null,"2001-12-10",null,"2001-12-10","2015-12-10",15,"2030-12-10","SPARROW LANE ASSOCIATES LP","RON TUNING","430 E STATE ST STE 100","EAGLE","ID",83616,null,"208-461-0022 X3010",null,null,null,null,null,null,null,null,null,null,18,null,null,null,18,null,null,null,null,null,null,null,null,null,null,null,null,null,null,null,null,null,null,2159832,{"$f":"VLOOKUP(M219,#REF!,2,TRUE)*(BR219/1000000)","v":{"$error":"#REF!"}},{"$f":"VLOOKUP(M219,#REF!,3,TRUE)*(BR219/1000000)","v":{"$error":"#REF!"}}]
["2001-12-19",2001,"Active","Gold Dust","330 North 1St St West","Missoula",59801,46.877929999999999,-111.99457,"Missoula",0.09,"non-profit","New Const","Family",18,3,2184900,null,null,null,null,null,"2003-02-18",null,"2003-02-18","2017-02-18",35,"2052-02-18","GOLD DUST LP","ANDREA DAVIS","127 N HIGGINS STE 307","MISSOULA","MT",59802,null,"406-531-4663",null,null,null,null,null,null,null,null,null,null,18,null,1,null,14,3,null,null,null,null,null,null,null,null,null,null,null,null,null,null,null,null,null,2217475,{"$f":"VLOOKUP(M220,#REF!,2,TRUE)*(BR220/1000000)","v":{"$error":"#REF!"}},{"$f":"VLOOKUP(M220,#REF!,3,TRUE)*(BR220/1000000)","v":{"$error":"#REF!"}}]
["2001-12-19",2001,"Active","Aspen Place II - Butte (Atherton II)","4500 Continental Drive","Butte",59701,null,null,"Silver Bow",0.09,"general","New Const","Family",32,4,1939290,null,null,null,null,null,"2002-07-01",null,"2002-07-01","2016-07-01",25,"2041-07-01","STEADFAST MANAGEMENT CO","RODNEY EMERY","4343 VON KARMAN AVE STE 300","NEWPORT BEACH","CA",92660,null,"949-852-0700 X 1702",null,null,null,null,null,null,null,null,null,null,32,null,null,null,20,12,null,null,null,null,null,null,null,null,null,null,null,null,null,null,null,null,null,2549318,{"$f":"VLOOKUP(M221,#REF!,2,TRUE)*(BR221/1000000)","v":{"$error":"#REF!"}},{"$f":"VLOOKUP(M221,#REF!,3,TRUE)*(BR221/1000000)","v":{"$error":"#REF!"}}]
["2001-12-19",2001,"Active","Mountain Apartments II","430 Colorado","Whitefish",59937,null,null,"Flathead",0.09,"general","New Const","Family",15,2,820310,null,null,null,null,null,"2002-02-08",null,"2002-02-08","2016-02-08",16,"2032-02-08","WHITEFISH MOUNTAIN ASSOCIATION LLC","TODD & MARYANN PRESCOTT","8585 WOODVINE DR #200","HAYDEN ","ID",83835,null,"208-772-0108 FAX 208-772-0178",null,null,null,null,null,null,null,null,null,null,14,null,null,3,9,2,null,null,null,null,null,null,null,null,null,null,null,null,null,null,null,null,null,1114497,{"$f":"VLOOKUP(M222,#REF!,2,TRUE)*(BR222/1000000)","v":{"$error":"#REF!"}},{"$f":"VLOOKUP(M222,#REF!,3,TRUE)*(BR222/1000000)","v":{"$error":"#REF!"}}]
["19/19/2001",2001,"resynd 2020","Courtyards I @ Corvallis (resynd 2020 Emporda)","Market St","Corvallis",59828,null,null,"Ravalli",0.09,"non-profit","New Const","Family",24,4,2169690,null,null,null,null,null,"2002-08-01",null,"2002-08-01","2016-08-01",15,"2031-08-01","PACIFIC DEVELOPERS GROUP","RON TUNING","403 EAST STATE ST STE 100","EAGLE","ID",83616,null,"208-461-0022  FAX 208-461-3267",null,null,null,null,null,null,null,null,null,null,24,null,null,null,11,12,null,null,null,null,1,null,null,null,null,null,null,null,null,null,null,null,null,2170405,{"$f":"VLOOKUP(M223,#REF!,2,TRUE)*(BR223/1000000)","v":{"$error":"#REF!"}},{"$f":"VLOOKUP(M223,#REF!,3,TRUE)*(BR223/1000000)","v":{"$error":"#REF!"}}]
["2001-12-19",2001,"resynd 2021","Castlebar Phase II (see resynd 2021)","1201 N 25Th St","Bozeman",59715,null,null,"Gallatin",0.09,"general","New Const","Family",36,6,3084380,null,null,null,null,null,"2003-12-19",null,"2003-12-19","2017-12-19",15,"2032-12-19","STEADFAST COMPANIES","RODNEY EMERY","4343 VON KARMAN AVE STE 300","NEWPORT BEACH","CA",92660,null,"949-852-0700 X 1702  FAX 949-852-0143",null,null,null,null,null,null,null,null,null,null,36,null,null,null,28,8,null,null,null,null,null,null,null,null,null,null,null,null,null,null,null,null,null,3466360,{"$f":"VLOOKUP(M224,#REF!,2,TRUE)*(BR224/1000000)","v":{"$error":"#REF!"}},{"$f":"VLOOKUP(M224,#REF!,3,TRUE)*(BR224/1000000)","v":{"$error":"#REF!"}}]
["2001-12-19",2001,"resynd 2021","Miles Building 4% (resyndicated 2021)","105-123 South 2Nd","Livington",59047,null,null,"Park",0.09,"non-profit","Acq/Rehab","Family",40,1,1855440,null,null,null,null,null,"2002-12-17",null,"2002-12-17","2016-12-17",15,"2031-12-17","MILES LP","JEFFREY RUPP","32 S TRACY AVE","BOZEMAN","MT","59715-4659",null,"406-587-4486 FAX 406-585-3538",null,null,null,null,null,null,null,null,null,null,40,null,5,34,null,null,null,null,null,null,1,null,null,null,null,null,null,null,null,null,null,null,null,2063990,{"$f":"VLOOKUP(M225,#REF!,2,TRUE)*(BR225/1000000)","v":{"$error":"#REF!"}},{"$f":"VLOOKUP(M225,#REF!,3,TRUE)*(BR225/1000000)","v":{"$error":"#REF!"}}]
["2001-12-19",2001,"Active","Centre Court (Second Ave)","121 Second Ave West","Kalispell",59901,null,null,"Flathead",0.09,"non-profit","New Const","Family",40,1,0,null,null,null,null,null,"2003-06-17",null,"2003-06-17","2017-06-17",16,"2033-06-17","MONFRIC REALTY","JOHN GRADY","1915 MORENA BOULEVARD","SAN DIEGO","CA",92110,null,"619-276-6271  FAX 619-275-1094",null,null,null,null,null,null,null,null,null,null,40,null,null,30,10,null,null,null,null,null,null,null,null,null,null,null,null,null,null,null,null,null,null,3732626,{"$f":"VLOOKUP(M226,#REF!,2,TRUE)*(BR226/1000000)","v":{"$error":"#REF!"}},{"$f":"VLOOKUP(M226,#REF!,3,TRUE)*(BR226/1000000)","v":{"$error":"#REF!"}}]
["2001-12-19",2001,"Active","South Flat Iron","North Browning/ South Flat Iron","Browning",59417,null,null,"Glacier",0.09,"Tribal","New Const","Family",20,20,2750000,null,null,null,null,null,"2002-10-31",null,"2002-10-31","2016-10-31",31,"2047-10-31","BLACKFEET HOUSING LP #1","RAY WILSON","PO BOX 449","BROWNING","MT",59417,null,"406-338-7942",null,null,null,null,null,null,null,null,null,null,20,null,null,null,16,4,null,null,null,null,null,null,null,null,null,null,null,null,null,null,null,null,null,2531627,{"$f":"VLOOKUP(M227,#REF!,2,TRUE)*(BR227/1000000)","v":{"$error":"#REF!"}},{"$f":"VLOOKUP(M227,#REF!,3,TRUE)*(BR227/1000000)","v":{"$error":"#REF!"}}]
["2001-12-19",2001,"Active","Acre Lawn Apartments II","11Th Ave Nw","Ronan",59864,null,null,"Lake",0.09,"small proj","New Const","Family",6,1,685700,null,null,null,null,null,"2002-04-01",null,"2002-04-01","2016-04-01",31,"2047-04-01","ACRE LAWN APARTMENTS II LP","DAN LUEDTKE","34951 CREEKSIDE LANE","RONAN","MT",59864,null,"406-676-7653 FAX 406-676-7654",null,null,null,null,null,null,null,null,null,null,6,null,null,null,null,6,null,null,null,null,null,null,null,null,null,null,null,null,null,null,null,null,null,674886,{"$f":"VLOOKUP(M228,#REF!,2,TRUE)*(BR228/1000000)","v":{"$error":"#REF!"}},{"$f":"VLOOKUP(M228,#REF!,3,TRUE)*(BR228/1000000)","v":{"$error":"#REF!"}}]
["2000-12-15",2000,"Active","Mountain  Apartments I","Colorado Avenue","Whitefish",59937,null,null,"Flathead",0.09,"For-profit","New Const","Family",15,2,821480,null,null,null,null,null,"2001-10-31",null,"2001-10-31","2015-10-31",16,"2031-10-31","WHITEWATER CREEK INC","TODD & MARYANN PRESCOTT","8585 WOODVINE DR #200","HAYDEN ","ID",83835,null,"208-772-0108 fax 208-772-0178",null,null,null,null,null,null,null,null,null,null,15,null,null,3,9,3,null,null,null,null,null,null,null,null,null,null,null,null,null,null,null,null,null,749515,{"$f":"VLOOKUP(M229,#REF!,2,TRUE)*(BR229/1000000)","v":{"$error":"#REF!"}},{"$f":"VLOOKUP(M229,#REF!,3,TRUE)*(BR229/1000000)","v":{"$error":"#REF!"}}]
["2000-12-15",2000,"Active","Acre Lawn Apartments I","11Th Ave Nw","Ronan",59864,null,null,"Lake",0.09,"For-profit","New Const","Family",8,2,617680,null,null,null,null,null,"2001-03-26",null,"2001-03-26","2015-03-26",16,"2031-03-26","ACRE LAWN APARTMENTS LLP","DAN LUEDTKE","34951 CREEKSIDE LANE","RONAN","MT",59864,null,"406-676-7653 fax 406-676-7654",null,null,null,null,null,null,null,null,null,null,8,null,null,null,null,6,2,null,null,null,null,null,null,null,null,null,null,null,null,null,null,null,null,517028,{"$f":"VLOOKUP(M230,#REF!,2,TRUE)*(BR230/1000000)","v":{"$error":"#REF!"}},{"$f":"VLOOKUP(M230,#REF!,3,TRUE)*(BR230/1000000)","v":{"$error":"#REF!"}}]
["2000-12-15",2000,"Active","Main Street Apartments (H&G)","407 Main St Sw","Ronan",59864,null,null,"Lake",0.09,"Non-profit","Acq/Rehab","Family",8,1,319790,null,null,null,null,null,"2001-07-15",null,{"$f":"IF(W231>X231,W231,X231)","v":"2001-07-15"},{"$f":"DATE(YEAR(Y231)+14,MONTH(Y231),DAY(Y231))","v":"2015-07-15"},16,"2031-07-15","MAIN STREET H & G APARTMENTS LP","JAN NIEMEYER","PO BOX 146","RONAN","MT",59864,null,"406-676-5900 fax 406-676-5902",null,null,null,null,null,null,null,null,null,null,8,null,null,7,1,null,null,null,null,null,null,null,null,null,null,null,null,null,null,null,null,null,null,173999,{"$f":"VLOOKUP(M231,#REF!,2,TRUE)*(BR231/1000000)","v":{"$error":"#REF!"}},{"$f":"VLOOKUP(M231,#REF!,3,TRUE)*(BR231/1000000)","v":{"$error":"#REF!"}}]
["2000-12-15",2000,"Active","Comstock Apts Phase III","777 Haggerty Lane","Bozeman",59715,null,null,"Gallatin",0.09,"For-profit","New Const","Family",28,3,2045630,null,null,null,null,null,"2001-05-18",null,"2001-05-18","2015-05-18",25,{"$f":"DATE(YEAR(Z232)+AA232,MONTH(Z232),DAY(Z232))","v":"2040-05-18"},"FARMHOUSE PARTNERS-COMSTOCK III,LP","WILLIAM C DABNEY III","2555 W COLLEGE ST #B","BOZEMAN","MT",59718,null,"406-585-9808 fax 406-586-1166",null,null,null,null,null,null,null,null,null,null,28,null,null,28,null,null,null,null,null,null,null,null,null,null,null,null,null,null,null,null,null,null,null,1300563,{"$f":"VLOOKUP(M232,#REF!,2,TRUE)*(BR232/1000000)","v":{"$error":"#REF!"}},{"$f":"VLOOKUP(M232,#REF!,3,TRUE)*(BR232/1000000)","v":{"$error":"#REF!"}}]
["2000-12-15",2000,"Active","Ptarmigan Residences","3400 Ptarmigan Lane","Helena",59601,null,null,"Lewis and Clark",0.09,"Non-profit","New Const","Family",22,6,1359920,null,null,null,null,null,"2001-04-30",null,"2001-04-30","2015-04-30",16,"2031-04-30","PTARMIGAN RESIDENCE LIMITED PARTNERSHIP","GENE LEUWER","PO BOX 1717","HELENA","MT","59624-1717",null,"406-447-1680 fax-406-447-1629",null,null,null,null,null,null,null,null,null,null,22,null,null,21,null,null,null,null,null,null,1,null,null,null,null,null,null,null,null,null,null,null,null,1179530,{"$f":"VLOOKUP(M233,#REF!,2,TRUE)*(BR233/1000000)","v":{"$error":"#REF!"}},{"$f":"VLOOKUP(M233,#REF!,3,TRUE)*(BR233/1000000)","v":{"$error":"#REF!"}}]
["2000-12-15",2000,"Active","Isaiah Housing - Koinonia","South 34Th, 30Th ,31St St","Billings",59101,null,null,"Yellowstone ",0.09,"Non-profit","New Const","Family",10,5,987600,null,null,null,null,null,"2002-02-14",null,"2002-02-14","2016-02-14",25,"2041-02-14","COMMUNITY LEADERSHIP DEVELOPMENT","DAVE HAGSTROM","PO BOX 3381","BILLINGS ","MT",59103,null,"406-256-3022 fax 406-256-3002",null,null,null,null,null,null,null,null,null,null,10,null,null,null,5,1,4,null,null,null,null,null,null,null,null,null,null,null,null,null,null,null,null,626000,{"$f":"VLOOKUP(M234,#REF!,2,TRUE)*(BR234/1000000)","v":{"$error":"#REF!"}},{"$f":"VLOOKUP(M234,#REF!,3,TRUE)*(BR234/1000000)","v":{"$error":"#REF!"}}]
["2000-12-15",2000,"Active","Russell Square Apts","34Th & Russell","Missoula",59801,null,null,"Missoula",0.09,"For-profit","New Const","Family",53,3,0,null,null,null,null,null,"2002-02-14",null,"2002-02-14","2016-02-14",46,"2062-02-14","RUSSELL SQUARE APARTMENTS LP","LORI DAVIDSON","1235 34TH ST","MISSOULA","MT",59801,null,"406-549-4113 fax 406-549-6406",null,null,null,null,null,null,null,null,null,null,53,null,null,19,34,null,null,null,null,17,null,null,null,null,null,null,null,null,null,null,null,null,null,2781976,{"$f":"VLOOKUP(M235,#REF!,2,TRUE)*(BR235/1000000)","v":{"$error":"#REF!"}},{"$f":"VLOOKUP(M235,#REF!,3,TRUE)*(BR235/1000000)","v":{"$error":"#REF!"}}]
["2000-12-29",2000,"Active","Fort Belknap Southern #1","Lots 13-17 & Lots 7-12","Hays",59527,null,null,"Blaine",0.09,"Tribal","New Const","Family",11,11,528000,null,null,null,null,null,"2002-02-08",null,"2002-02-08","2016-02-08",16,"2032-02-08","FORT BELKNAP HOUSING AUTHORITY","TRACEY KING, PRESIDENT","RR 1 BOX 66","HARLEM","MT",59526,null,"406-353-2205 fax 406-353-4975",null,null,null,null,null,null,null,null,null,null,11,null,null,null,null,11,null,null,null,null,null,null,null,null,null,null,null,null,null,null,null,null,null,834415,{"$f":"VLOOKUP(M236,#REF!,2,TRUE)*(BR236/1000000)","v":{"$error":"#REF!"}},{"$f":"VLOOKUP(M236,#REF!,3,TRUE)*(BR236/1000000)","v":{"$error":"#REF!"}}]
["2000-12-29",2000,"Active","Fort Belknap I Agency","1113-1123 Agency Way","Fort Belknap",59526,null,null,"Blaine",0.09,"Tribal","New Const","Family",11,11,528000,null,null,null,null,null,"2002-02-08",null,"2002-02-08","2016-02-08",16,"2032-02-08","FORT BELKNAP INDIAN COMMUNITY","TRACEY KING, PRESIDENT","RR 1 BOX 66","HARLEM","MT",59526,null,"406-353-2205 fax 406-353-4975",null,null,null,null,null,null,null,null,null,null,11,null,null,null,null,11,null,null,null,null,null,null,null,null,null,null,null,null,null,null,null,null,null,834415,{"$f":"VLOOKUP(M237,#REF!,2,TRUE)*(BR237/1000000)","v":{"$error":"#REF!"}},{"$f":"VLOOKUP(M237,#REF!,3,TRUE)*(BR237/1000000)","v":{"$error":"#REF!"}}]
["2000-12-15",2000,"Active","Green Meadow Manor Apts (see below)","403 Idaho Ave","Libby",59923,null,null,"Lincoln",0.09,"NP-FP Ptrshp","Acq/Rehab","Elderly","same",null,975020,null,null,null,null,null,"2000-12-01",null,"2000-12-01","2014-12-01",16,"2030-12-01","GREEN MEADOW HP/NWMHRI LP","JOHN GRADY","1915 MORENA BOULEVARD","SAN DIEGO","CA",92110,null,"619-276-6271 FAX 619-375-1094",null,null,null,null,null,null,null,null,null,null,34,null,9,25,null,null,null,null,null,2,null,null,null,null,null,null,null,null,null,null,null,null,null,1518726,{"$f":"VLOOKUP(M238,#REF!,2,TRUE)*(BR238/1000000)","v":{"$error":"#REF!"}},{"$f":"VLOOKUP(M238,#REF!,3,TRUE)*(BR238/1000000)","v":{"$error":"#REF!"}}]
["2000-12-15",2000,"Active","Elmo Elder Homes","Cemetery Rd","Elmo",59864,null,null,"Lake",0.09,"Tribal","New Const","Elderly",10,1,640000,null,null,null,null,null,"2001-06-26",null,"2001-06-26","2015-06-26",16,"2031-06-26","SALISH & KOOTENAI LIMITED PARTNERSHIP","JASON ADAMS","PO BOX 38","PABLO","MT",59855,null,"406-675-4491 FAX 406-675-4495",null,null,null,null,null,null,null,null,null,null,10,null,null,10,null,null,null,null,null,null,null,null,null,null,null,null,null,null,null,null,null,null,null,455136,{"$f":"VLOOKUP(M239,#REF!,2,TRUE)*(BR239/1000000)","v":{"$error":"#REF!"}},{"$f":"VLOOKUP(M239,#REF!,3,TRUE)*(BR239/1000000)","v":{"$error":"#REF!"}}]
["2000-12-15",2000,"Active","Farmhouse Apartments III (Gallatin Trails III)","101 Jackrabbit Rd","Belgrade",59714,null,null,"Gallatin",0.09,"For-profit","New Const","Family",12,1,699270,null,null,null,null,null,"2000-12-14",null,"2000-12-14","2014-12-14",16,"2030-12-14","FARMHOUSE PARTNERS-BELGRADE III LP","WILLIAM C DABNEY III","2555 W COLLEGE ST #B","BOZEMAN","MT",59718,null,"406-585-9808  fax 406-586-1166",null,null,null,null,null,null,null,null,null,null,12,null,null,12,null,null,null,null,null,null,null,null,null,null,null,null,null,null,null,null,null,null,null,425280,{"$f":"VLOOKUP(M240,#REF!,2,TRUE)*(BR240/1000000)","v":{"$error":"#REF!"}},{"$f":"VLOOKUP(M240,#REF!,3,TRUE)*(BR240/1000000)","v":{"$error":"#REF!"}}]
["1999-05-21",1999,"Active","Sundridge Pointe (Valley View) 4%","400 Liberty St","Kalispell",59901,null,null,"Flathead",0.04,"NP-FP Ptrshp","Acq/Rehab","Family",52,5,749940,null,null,null,null,null,"1999-09-01",null,"1999-09-01","2013-09-01",16,"2029-09-01","VALLEY VIEW HP/NWMHRI LP","JOHN GRADY","1915 MORENA BOULEVARD","SAN DIEGO","CA",92110,null,"619-276-6271",null,null,null,null,null,null,null,null,null,null,{"$f":"SUM(AV241:BE241)","v":52},null,null,16,22,13,null,null,null,null,1,null,null,null,null,null,null,null,null,null,null,null,null,2344353,{"$f":"VLOOKUP(M241,#REF!,2,TRUE)*(BR241/1000000)","v":{"$error":"#REF!"}},{"$f":"VLOOKUP(M241,#REF!,3,TRUE)*(BR241/1000000)","v":{"$error":"#REF!"}}]
["1999-05-21",1999,"Active","Parkside Village Apts 4%","3602 Stephens","Missoula",59801,null,null,"Missoula",0.04,"NP-FP Ptrshp","Acq/Rehab","Family",104,12,1380660,null,null,null,null,null,"2000-07-01",null,"2000-07-01","2014-07-01",16,"2030-07-01","MONFRIC MANAGEMENT COMPANY","JOHN GRADY","1915 MORENA BOULEVARD","SAN DIEGO","CA",92110,null,null,null,null,null,null,null,null,null,null,null,null,104,null,14,19,64,1,null,null,null,5,1,null,null,null,null,null,null,null,null,null,null,null,null,4529392,{"$f":"VLOOKUP(M242,#REF!,2,TRUE)*(BR242/1000000)","v":{"$error":"#REF!"}},{"$f":"VLOOKUP(M242,#REF!,3,TRUE)*(BR242/1000000)","v":{"$error":"#REF!"}}]
["1999-05-21",1999,"Active","Pebblestone (Lavatta Villa) 4%","34Th At Russell","Deer Lodge",59722,null,null,"Powell",0.04,"NP-FP Ptrshp","Acq/Rehab","Family",24,1,184510,null,null,null,null,null,"2000-07-01",null,"2000-07-01","2014-07-01",16,"2030-07-01","MONFRIC MANAGEMENT COMPANY","JOHN GRADY","1915 MORENA BOULEVARD","SAN DIEGO","CA",92110,null,"619-941-2054",null,null,null,null,null,null,null,null,null,null,24,null,8,11,1,null,null,null,null,3,1,null,null,null,null,null,null,null,null,null,null,null,null,706393,{"$f":"VLOOKUP(M243,#REF!,2,TRUE)*(BR243/1000000)","v":{"$error":"#REF!"}},{"$f":"VLOOKUP(M243,#REF!,3,TRUE)*(BR243/1000000)","v":{"$error":"#REF!"}}]
["1999-05-21",1999,"resynd 2021","Darlinton Manor Apts** resyndicated 2021","606 North Fifth","Bozeman",59715,null,null,"Gallatin",0.04,"NP-FP Ptrshp","Acq/Rehab","Elderly",100,1,1178520,null,null,null,null,null,"2000-07-01",null,"2000-07-01","2014-07-01",16,"2030-07-01","DARLINTON MANOR HP/HRDC LP","JOHN GRADY","1915 MORENA BOULEVARD","SAN DIEGO","CA",92110,null,"619-276-6271",null,null,null,null,null,null,null,null,null,null,100,null,30,64,null,null,null,null,null,5,1,null,null,null,null,null,null,null,null,null,null,null,null,3740749,{"$f":"VLOOKUP(M244,#REF!,2,TRUE)*(BR244/1000000)","v":{"$error":"#REF!"}},{"$f":"VLOOKUP(M244,#REF!,3,TRUE)*(BR244/1000000)","v":{"$error":"#REF!"}}]
["1999-05-21",1999,"Active","Columbia Villa Apts**","700 7Th St West","Columbia Falls",59912,null,null,"Flathead",0.04,"NP-FP Ptrshp","Acq/Rehab","Family",36,3,487150,null,null,null,null,null,"2000-07-01",null,"2000-07-01","2014-07-01",16,"2030-07-01","COLUMBIA CILLA HP/NWMHRI LP","JOHN GRADY","1915 MORENA BOULEVARD","SAN DIEGO","CA",92110,null,"619-941-2054 FAX 619-275-1094",null,null,null,null,null,null,null,null,null,null,36,null,null,null,24,12,null,null,null,null,null,null,null,null,null,null,null,null,null,null,null,null,null,1535779,{"$f":"VLOOKUP(M245,#REF!,2,TRUE)*(BR245/1000000)","v":{"$error":"#REF!"}},{"$f":"VLOOKUP(M245,#REF!,3,TRUE)*(BR245/1000000)","v":{"$error":"#REF!"}}]
["1999-02-22",1999,"Active","Custer Villa Apartments","210 Arrowhead Lane","Miles City",59301,null,null,"Custer",0.09,"For Profit","Acq/Rehab","Family",32,8,612150,null,null,null,null,null,"1999-12-19",null,"1999-12-19","2013-12-19",15,"2028-12-19","BIRCHWOOD PROPERTIES","WYNN JURAN","166 BAREFOOT CIRCLE","BONITA SPRINGS","FL",34134,null,null,null,null,null,null,null,null,null,null,null,null,32,null,null,null,23,8,null,null,null,null,1,null,null,null,null,null,null,null,null,null,null,null,null,2085110,{"$f":"VLOOKUP(M246,#REF!,2,TRUE)*(BR246/1000000)","v":{"$error":"#REF!"}},{"$f":"VLOOKUP(M246,#REF!,3,TRUE)*(BR246/1000000)","v":{"$error":"#REF!"}}]
["1999-12-22",1999,"Active","Green Meadow Apts** (see above)","403 Idaho St","Libby",59923,null,null,"Lincoln",0.09,"NP-FP Ptrshp","Acq/Rehab","Elderly",34,1,700000,null,null,null,null,null,"2000-12-01",null,"2000-12-01","2014-12-01",16,"2030-12-01","GREEN MEADOW HP/NWMHRI LP","JOHN GRADY","1915 MORENA BOULEVARD","SAN DIEGO","CA",92110,null,"619-276-6271 fax 619-275-1094",null,null,null,null,null,null,null,null,null,null,34,null,9,25,null,null,null,null,null,null,null,null,null,null,null,null,null,null,null,null,null,null,null,1272513,{"$f":"VLOOKUP(M247,#REF!,2,TRUE)*(BR247/1000000)","v":{"$error":"#REF!"}},{"$f":"VLOOKUP(M247,#REF!,3,TRUE)*(BR247/1000000)","v":{"$error":"#REF!"}}]
["1999-12-22",1999,"Active","Big Sky Manor**","110 Second Avenue West","Kalispell",59901,null,null,"Flathead",0.04,"NP-FP Ptrshp","Acq/Rehab","Elderly",60,1,1150000,null,null,null,null,null,"1999-09-02",null,"1999-09-02","2013-09-02",31,"2044-09-02","BIG SKY HP/NWMHRC LP","JOHN GRADY","1915 MORENA BOULEVARD","SAN DIEGO","CA",92110,null,"619-276-6271 FAX 619-275-1094",null,null,null,null,null,null,null,null,null,null,60,null,28,32,null,null,null,null,null,null,null,null,null,null,null,null,null,null,null,null,null,null,null,2114623,{"$f":"VLOOKUP(M248,#REF!,2,TRUE)*(BR248/1000000)","v":{"$error":"#REF!"}},{"$f":"VLOOKUP(M248,#REF!,3,TRUE)*(BR248/1000000)","v":{"$error":"#REF!"}}]
["1999-12-22",1999,"Active","Central Court Village Ph II (done the same time as phase I)","27Th & St Johns","Billings",59101,null,null,"Yellowstone",0.09,"For-profit","New Const","Elderly",50,1,2750000,null,null,null,null,null,"2000-09-14",null,"2000-09-14","2014-09-14",35,"2049-09-14","SPARROW GROUP","TIM GERMAN","619 SW HIGGINS STE E","MISSOULA","MT",59803,null,"406-251-5076 fax-406-251-4941",null,null,null,null,null,null,null,null,null,null,50,null,null,45,5,null,null,null,null,null,null,null,null,null,null,null,null,null,null,null,null,null,null,3556344,{"$f":"VLOOKUP(M249,#REF!,2,TRUE)*(BR249/1000000)","v":{"$error":"#REF!"}},{"$f":"VLOOKUP(M249,#REF!,3,TRUE)*(BR249/1000000)","v":{"$error":"#REF!"}}]
["1999-12-22",1999,"Active","Lenox Flats","300-306 W Broadway","Missoula",59802,null,null,"Missoula",0.09,"Non-profit","Acq/Rehab","Family",10,1,1041000,null,null,null,null,null,"2000-12-29",null,"2000-12-29","2014-12-29",25,"2039-12-29","LENOX FLATS LP","ANDREA DAVIS/ DIRECTOR","127 NORTH HIGGINS STE 307","MISSOULA","MT",59802,null,"406-532-4663  FAX 406-541-0239",null,null,null,null,null,null,null,null,null,null,10,null,4,6,null,null,null,null,null,null,null,null,null,null,null,null,null,null,null,null,null,null,null,1687923,{"$f":"VLOOKUP(M250,#REF!,2,TRUE)*(BR250/1000000)","v":{"$error":"#REF!"}},{"$f":"VLOOKUP(M250,#REF!,3,TRUE)*(BR250/1000000)","v":{"$error":"#REF!"}}]
["1999-12-22",1999,"Active","Teakettle Vista Apts I","13Th Ave & 12Th St","Columbia Falls",59912,null,null,"Flathead",0.09,"For-profit","New Const","Elderly",20,5,435030,null,null,null,null,null,"2000-10-31",null,"2000-10-31","2014-10-31",17,"2031-10-31","COLUMBIA FALLS TEAKETTLE VISTA ASSOCIATION","DOUG RAUTHE","PO BOX 8300","KALISPELL","MT","59904-8300",null,"406-752-6565 fax-406-752-6582",null,null,null,null,null,null,null,null,null,null,20,null,null,19,null,null,null,null,null,null,1,null,null,null,null,null,null,null,null,null,null,null,null,1369289,{"$f":"VLOOKUP(M251,#REF!,2,TRUE)*(BR251/1000000)","v":{"$error":"#REF!"}},{"$f":"VLOOKUP(M251,#REF!,3,TRUE)*(BR251/1000000)","v":{"$error":"#REF!"}}]
["1999-12-22",1999,"Active","St Ignatius-Maxwell Senior Apts","228 North Main","St Ignatius",59865,null,null,"Lake ",0.09,"Non-profit","Acq/Rehab","Elderly",9,1,110000,null,null,null,null,null,"2000-01-01",null,"2000-01-01","2014-01-01",16,"2030-01-01","MAXWELL SENIOR APTS, LP","JAN NIEMEYER","PO BOX 146","RONAN","MT",59864,null,"406-676-5900 fax-406-676-5902",null,null,null,null,null,null,null,null,null,null,9,null,null,5,4,null,null,null,null,null,null,null,null,null,null,null,null,null,null,null,null,null,null,264260,{"$f":"VLOOKUP(M252,#REF!,2,TRUE)*(BR252/1000000)","v":{"$error":"#REF!"}},{"$f":"VLOOKUP(M252,#REF!,3,TRUE)*(BR252/1000000)","v":{"$error":"#REF!"}}]
["1999-12-22",1999,"Active","Ronan-Maxwell Senior Apts","422 1st St SW","Ronan",59864,47.525539999999999,-114.09553,"Lake ",0.09,"Non-profit","Acq/Rehab","Elderly",21,1,310000,null,null,null,null,null,"2000-01-01",null,"2000-01-01","2014-01-01",16,"2030-01-01","MAXWELL SENIOR APTS, LP","JAN NIEMEYER","PO BOX 146","RONAN","MT",59864,null,"406-676-5900 fax-406-676-5902",null,null,null,null,null,null,null,null,null,null,21,null,null,13,8,null,null,null,null,null,null,null,null,null,null,null,null,null,null,null,null,null,null,748550,{"$f":"VLOOKUP(M253,#REF!,2,TRUE)*(BR253/1000000)","v":{"$error":"#REF!"}},{"$f":"VLOOKUP(M253,#REF!,3,TRUE)*(BR253/1000000)","v":{"$error":"#REF!"}}]
["1999-12-22",1999,"Active","Westgate Senior Apts","Corporate Drive","Kalispell",59901,null,null,"Flathead",0.09,"For-profit","New Const","Elderly",24,12,499990,null,null,null,null,null,"2000-10-26",null,"2000-10-26","2014-10-26",17,"2031-10-26","WESTGATE SENIOR ASSOCIATES","RICO BRAZIL","430 STATE ST","EAGLE","ID",83616,null,"208-461-0022 fax-208-461-0033",null,null,null,null,null,null,null,null,null,null,24,null,null,18,5,null,null,null,null,null,1,null,null,null,null,null,null,null,null,null,null,null,null,1664169,{"$f":"VLOOKUP(M254,#REF!,2,TRUE)*(BR254/1000000)","v":{"$error":"#REF!"}},{"$f":"VLOOKUP(M254,#REF!,3,TRUE)*(BR254/1000000)","v":{"$error":"#REF!"}}]
["1999-12-22",1999,"Active","Arlee Elder Homes","Po Box 38","Arlee",59855,null,null,"Lake",0.09,"Tribal","New Const","Elderly",10,1,499990,null,null,null,null,null,"2000-12-01",null,"2000-12-01","2014-12-01",30,"2044-12-01","SALISH & KOOTENAI LIMITED PARTNERSHIP 3","JASON ADAMS","PO BOX 38","PABLO","MT",59855,null,"406-675-4491X 1506 fax-406-675-4495",null,null,null,null,null,null,null,null,null,null,10,null,null,10,null,null,null,null,null,null,null,null,null,null,null,null,null,null,null,null,null,null,null,582380,{"$f":"VLOOKUP(M255,#REF!,2,TRUE)*(BR255/1000000)","v":{"$error":"#REF!"}},{"$f":"VLOOKUP(M255,#REF!,3,TRUE)*(BR255/1000000)","v":{"$error":"#REF!"}}]
["1999-12-22",1999,"Active","Timberline Apts","Montana St & North  N St","Livingston",59047,null,null,"Park",0.09,"For-profit","New Const","Family",18,2,390000,null,null,null,null,null,"2000-03-13",null,"2000-03-13","2014-03-13",16,"2030-03-13","TIMBERLINE APARTMENTS LP","CONNIE M BOSLEY","1566 TERRA AVENUE","SHERIDAN","WY",85801,null,"307-672-0407  fax-307-672-9294",null,null,null,null,null,null,null,null,null,null,18,null,null,2,12,4,null,null,null,null,null,null,null,null,null,null,null,null,null,null,null,null,null,1341060,{"$f":"VLOOKUP(M256,#REF!,2,TRUE)*(BR256/1000000)","v":{"$error":"#REF!"}},{"$f":"VLOOKUP(M256,#REF!,3,TRUE)*(BR256/1000000)","v":{"$error":"#REF!"}}]
["1998-12-22",1998,"Active","Central Court Village Ph I (done the same time as phase II)","78 27Th St West","Billings",59103,null,null,"Yellowstone",0.09,"For-profit","New Const","Elderly",30,1,1365300,null,null,null,null,null,"2000-09-14",null,"2000-09-14","2014-09-14",35,"2049-09-14","CENTRAL COURT VILLAGE LP","ALEX BURKHALTER","619 SW HIGGINS STE E","MISSOULA","MT",59803,null,"406-251-5076  ",null,null,null,null,null,null,null,null,null,null,30,null,null,15,15,null,null,null,null,null,null,null,null,null,null,null,null,null,null,null,null,null,null,1927233,{"$f":"VLOOKUP(M257,#REF!,2,TRUE)*(BR257/1000000)","v":{"$error":"#REF!"}},{"$f":"VLOOKUP(M257,#REF!,3,TRUE)*(BR257/1000000)","v":{"$error":"#REF!"}}]
["1998-12-22",1998,"Active","Mountain View Apartments","522 N Airport Rd","Red Lodge",59068,null,null,"Carbon",0.09,"For-profit","New Const","Family",32,3,1785200,null,null,null,null,null,"1999-07-01",null,"1999-07-01","2013-07-01",16,"2029-07-01","MOUNTAIN VIEW APARTMENTS LP","JUNE VALLE","330 W VICTORIA ST","GARDENA","CA",90748,null,"424-258-2852",null,null,null,null,null,null,null,null,null,null,32,null,null,16,16,null,null,null,null,null,null,null,null,null,null,null,null,null,null,null,null,null,null,2135786,{"$f":"VLOOKUP(M258,#REF!,2,TRUE)*(BR258/1000000)","v":{"$error":"#REF!"}},{"$f":"VLOOKUP(M258,#REF!,3,TRUE)*(BR258/1000000)","v":{"$error":"#REF!"}}]
["1998-12-22",1998,"Active","Cherry Orchard (20% Files And Phs)","W Liberty (Lot 6 Liberty Vlg)","Kalispell",59901,null,null,"Flathead",0.09,"For-profit","New Const","Elderly",24,1,442840,null,null,null,null,null,"1999-05-18",null,"1999-05-18","2013-05-18",35,"2048-05-18","KALISPELL MONTANA PARTNERS LP","PETER GERRARD","420 5TH AVE SOUTH","LA CROSSE","WI","54602-1086",null,"608-782-4488 fax-608-782-4478",null,null,null,null,null,null,null,null,null,null,24,null,null,24,null,null,null,null,null,null,null,null,null,null,null,null,null,null,null,null,null,null,null,1323346,{"$f":"VLOOKUP(M259,#REF!,2,TRUE)*(BR259/1000000)","v":{"$error":"#REF!"}},{"$f":"VLOOKUP(M259,#REF!,3,TRUE)*(BR259/1000000)","v":{"$error":"#REF!"}}]
["1998-12-22",1998,"Active","Roadrunner Residence","1071 & 1075 Roadrunner Dr","Helena",59601,null,null,"Lewis and Clark",0.09,"Non-Profit","New Const","Family",16,2,897100,null,null,null,null,null,"1999-04-29",null,"1999-04-29","2013-04-29",16,"2029-04-29","ROADRUNNER RESIDENCE LP","HELENA HOUSING AUTHORITY","812 ABBEY STREET","HELENA","MT",59601,null,"406-442-7970 fax-406-442-0574",null,null,null,null,null,null,null,null,null,null,16,null,null,6,10,null,null,null,null,null,null,null,null,null,null,null,null,null,null,null,null,null,null,1252726,{"$f":"VLOOKUP(M260,#REF!,2,TRUE)*(BR260/1000000)","v":{"$error":"#REF!"}},{"$f":"VLOOKUP(M260,#REF!,3,TRUE)*(BR260/1000000)","v":{"$error":"#REF!"}}]
["1998-12-22",1998,"Active","Parkside Apts- Hamilton","121 State St","Hamilton",59840,null,null,"Ravalli",0.04,"Non-Profit","Acq/Rehab","Elderly",24,1,292260,null,null,null,null,null,"2000-11-01",null,"2000-11-01","2014-11-01",36,"2050-11-01","HAMILTON AFFORD HOUS PARTNERSHIP","% DIST XI HRC/JIM MORTON","1801 S HIGGINS","MISSOULA","MT",59801,null,"406-728-3710 fax-406-728-7680",null,null,null,null,null,null,null,null,null,null,24,null,null,6,17,null,null,null,null,null,null,null,null,null,null,null,null,null,null,null,null,null,null,853653,{"$f":"VLOOKUP(M261,#REF!,2,TRUE)*(BR261/1000000)","v":{"$error":"#REF!"}},{"$f":"VLOOKUP(M261,#REF!,3,TRUE)*(BR261/1000000)","v":{"$error":"#REF!"}}]
["1998-12-22",1998,"Active","Aspen Place I (Atherton I)","4500 Continental Drive","Butte",59701,null,null,"Silver Bow",0.09,"For-profit","New Const","Family",36,6,1817830,null,null,null,null,null,"1999-05-25",null,"1999-05-25","2013-05-25",25,"2038-05-25","STEADFAST MANAGEMENT CO., INC","RODNEY EMERY","4343 VON KARMAN AVE STE 300","NEWPORT BEACH","CA",92660,null,"949-852-0700 X 1702",null,null,null,null,null,null,null,null,null,null,36,null,null,null,27,8,null,null,null,null,null,null,null,null,null,null,null,null,null,null,null,null,null,2505046,{"$f":"VLOOKUP(M262,#REF!,2,TRUE)*(BR262/1000000)","v":{"$error":"#REF!"}},{"$f":"VLOOKUP(M262,#REF!,3,TRUE)*(BR262/1000000)","v":{"$error":"#REF!"}}]
["1998-12-22",1998,"Active","Comstock Apts II","777 Haggerty Lane","Bozeman",59715,null,null,"Gallatin",0.09,"For-profit","New Const","Family",34,5,2411180,null,null,null,null,null,"1999-06-18",null,"1999-06-18","2013-06-18",16,"2029-06-18","FARMHOUSE PARTNERS","WILLIAM C DABNEY III","2555 W COLLEGE ST #B","BOZEMAN","MT",59718,null,"406-585-9808 fax-406-586-1166",null,null,null,null,null,null,null,null,null,null,34,null,null,24,null,8,2,null,null,null,null,null,null,null,null,null,null,null,null,null,null,null,null,2564846,{"$f":"VLOOKUP(M263,#REF!,2,TRUE)*(BR263/1000000)","v":{"$error":"#REF!"}},{"$f":"VLOOKUP(M263,#REF!,3,TRUE)*(BR263/1000000)","v":{"$error":"#REF!"}}]
["1998-12-22",1998,"Resyn 2021","Castlebar (see resynd 2021)","1201 N 25Th St","Bozeman",59715,null,null,"Gallatin",0.09,"For-profit","New Const","Family",36,6,2363170,null,null,null,null,null,"2000-01-14",null,"2000-01-14","2014-01-14",25,{"$f":"DATE(YEAR(Z264)+AA264,MONTH(Z264),DAY(Z264))","v":"2039-01-14"},"STEADFAST COMPANIES","RODNEY F EMERY","4343 VON KARMAN AVE STE 300","NEWPORT BEACH","CA",92660,null,"949-852-0700 X1702  FAX 949-852-0143",null,null,null,null,null,null,null,null,null,null,36,null,null,null,27,8,null,null,null,null,1,null,null,null,null,null,null,null,null,null,null,null,null,2486154,{"$f":"VLOOKUP(M264,#REF!,2,TRUE)*(BR264/1000000)","v":{"$error":"#REF!"}},{"$f":"VLOOKUP(M264,#REF!,3,TRUE)*(BR264/1000000)","v":{"$error":"#REF!"}}]
["1998-12-22",1998,"Active","Westchester Square Duplex","1454-1456 Westchester Sq W","Billings",59101,null,null,"Yellowstone",0.09,"For-profit","New Const","Family",2,1,134720,null,null,null,null,null,"1998-10-08",null,"1998-10-08","2012-10-08",15,"2027-10-08","SCOTT SANDERS",null,"PO BOX 1591","BILLINGS","MT",59103,null,"406-238-4830 fax-406-238-4817",null,null,null,null,null,null,null,null,null,null,2,null,null,null,null,2,null,null,null,null,null,null,null,null,null,null,null,null,null,null,null,null,null,167880,{"$f":"VLOOKUP(M265,#REF!,2,TRUE)*(BR265/1000000)","v":{"$error":"#REF!"}},{"$f":"VLOOKUP(M265,#REF!,3,TRUE)*(BR265/1000000)","v":{"$error":"#REF!"}}]
["1998-12-22",1998,"Comp Fulfilled","Aspen Meadows (Qualified Contract)","1062 Oak Street","Bozeman",59715,null,null,"Gallatin",0.09,"For-profit","New Const","Family",48,11,3738160,null,null,null,null,null,"2000-09-01",null,"2000-09-01","2014-09-01",15,"2029-09-01","BOZEMAN LIMITED PARTNERS","PETER GERRARD","420 5TH AVE SOUTH","LA CROSSE","WI",54601,null,"608-782-4488 fax-608-782-4478",null,null,null,null,null,null,null,null,null,null,48,null,null,12,18,18,null,null,null,null,null,null,null,null,null,null,null,null,null,null,null,null,null,3992687,{"$f":"VLOOKUP(M266,#REF!,2,TRUE)*(BR266/1000000)","v":{"$error":"#REF!"}},{"$f":"VLOOKUP(M266,#REF!,3,TRUE)*(BR266/1000000)","v":{"$error":"#REF!"}}]
["1998-12-22",1998,"Active","Big Sky Apts II","11 Moose Ridge Rd","Big Sky",59716,null,null,"Madison",0.09,"For-profit","New Const","Family",24,1,993190,null,null,null,null,null,"1998-12-30",null,"1998-12-30","2012-12-30",16,"2028-12-30","FARMHOUSE PARTNERS - BIG SKY LP","WILLIAM C DABNEY III","2621 W COLLEGE STE D","BOZEMAN","MT",59718,null,"406-585-9808 fax-406-586-1166",null,null,null,null,null,null,null,null,null,null,24,24,null,null,null,null,null,null,null,null,null,null,null,null,null,null,null,null,null,null,null,null,null,1139609,{"$f":"VLOOKUP(M267,#REF!,2,TRUE)*(BR267/1000000)","v":{"$error":"#REF!"}},{"$f":"VLOOKUP(M267,#REF!,3,TRUE)*(BR267/1000000)","v":{"$error":"#REF!"}}]
["1997-10-14",1997,"Active","Autumn Run Apartments**","4101 Central Avenue","Great Falls",59405,null,null,"Cascade",0.04,"For-profit","New Const","Family",121,10,2691170,null,null,null,null,null,"1998-10-16",null,"1998-10-16","2012-10-16",15,"2027-10-16","AUTUMN RUN APARTMENTS LP","ROGER KUULA","110 - 100TH AVE NE STE 550","BELLEVUE","WA",98004,null,"425-455-2433 fax-425-637-1216",null,null,null,null,null,null,null,null,null,null,121,null,null,30,80,11,null,null,null,null,1,null,null,null,null,null,null,null,null,null,null,null,null,7515000,{"$f":"VLOOKUP(M268,#REF!,2,TRUE)*(BR268/1000000)","v":{"$error":"#REF!"}},{"$f":"VLOOKUP(M268,#REF!,3,TRUE)*(BR268/1000000)","v":{"$error":"#REF!"}}]
["1997-09-26",1997,"Active","Timberline Apartments","1006 Cardinal Drive #205","Belgrade",59714,null,null,"Gallatin",0.09,"For-profit","New Const","Family",24,1,475270,null,null,null,null,null,"1998-08-07",null,"1998-08-07","2012-08-07",16,"2028-08-07","BELGRADE PARTNERS LP","PAUL GERRARD","420 5th AVE SOUTH","LA CROSSE","WI",54602,null,"608-782-4488 (608-782-4478 F)",null,null,null,null,null,null,null,null,null,null,{"$f":"SUM(AV269:BD269)","v":24},null,null,24,null,null,null,null,null,null,null,null,null,null,null,null,null,null,null,null,null,null,null,1340674,{"$f":"VLOOKUP(M269,#REF!,2,TRUE)*(BR269/1000000)","v":{"$error":"#REF!"}},{"$f":"VLOOKUP(M269,#REF!,3,TRUE)*(BR269/1000000)","v":{"$error":"#REF!"}}]
["1997-09-26",1997,"Active","Fireweed Court","1437&1444 S First St West","Missoula",59802,null,null,"Missoula",0.09,"Non-profit","New Const","Family",12,5,884300,null,null,null,null,null,"1998-11-30",null,"1998-11-30","2012-11-30",15,"2027-11-30","FIREWEED COURT LIMITED PARTNERSHIP","HEATHER MCMILAN","127 N HIGGINS STE 307","MISSOULA","MT",59802,null,"406-532-4663",null,null,null,null,null,null,null,null,null,null,12,null,null,null,3,9,null,null,null,null,null,null,null,null,null,null,null,null,null,null,null,null,null,1186492,{"$f":"VLOOKUP(M270,#REF!,2,TRUE)*(BR270/1000000)","v":{"$error":"#REF!"}},{"$f":"VLOOKUP(M270,#REF!,3,TRUE)*(BR270/1000000)","v":{"$error":"#REF!"}}]
["1997-06-10",1997,"Active","Big Sky Apts I","11 Moose Ridge Rd","Big Sky",59716,null,null,"Madison",0.09,"For-profit","New Const","Family",24,2,1064300,null,null,null,null,null,"1998-04-13",null,"1998-04-13","2012-04-13",16,"2028-04-13","FARMHOUSE PARTNERS - BIG SKY LP","WILLIAM C DABNEY","2555 W COLLEGE ST #B","BOZEMAN","MT",59718,null,"585-9808 (585-1166 fax)",null,null,null,null,null,null,null,null,null,null,24,null,null,24,null,null,null,null,null,null,null,null,null,null,null,null,null,null,null,null,null,null,null,1420178,{"$f":"VLOOKUP(M271,#REF!,2,TRUE)*(BR271/1000000)","v":{"$error":"#REF!"}},{"$f":"VLOOKUP(M271,#REF!,3,TRUE)*(BR271/1000000)","v":{"$error":"#REF!"}}]
["1997-04-21",1997,"Active","Willow Court Apartments","290 Skeels Avenue","Hamilton",59840,null,null,"Ravalli",0.09,"For-profit","New Const","Elderly",48,1,2500800,null,null,null,null,null,"1998-05-26",null,"1998-05-26","2012-05-26",31,"2043-05-26","SPARROW HOUSING","TIM GERMAN","619 SW HIGGINS STE D","MISSOULA","MT",59803,null,"406-251-5076 fax 406-251-3540",null,null,null,null,null,null,null,null,null,null,48,null,null,42,6,null,null,null,null,null,null,null,null,null,null,null,null,null,null,null,null,null,null,3027338,{"$f":"VLOOKUP(M272,#REF!,2,TRUE)*(BR272/1000000)","v":{"$error":"#REF!"}},{"$f":"VLOOKUP(M272,#REF!,3,TRUE)*(BR272/1000000)","v":{"$error":"#REF!"}}]
["1997-04-21",1997,"Active","Valley Villas II (resyndicated 2016)","814 River St","Hamilton",59840,null,null,"Ravalli",0.09,"For-profit","New Const","Family",10,null,175000,null,null,null,null,null,"1997-07-30",null,"1997-07-30","2011-07-30",15,"2026-07-30","AMERICAN BUILDING COMPANY","KERMIT MUELLER","PO BOX 4545","HELENA","MT",59604,null,"442-7178 (442-7187 fax)",null,null,null,null,null,null,null,null,null,null,10,null,null,null,10,null,null,null,null,null,null,null,null,null,null,null,null,null,null,null,null,null,null,586242,{"$f":"VLOOKUP(M273,#REF!,2,TRUE)*(BR273/1000000)","v":{"$error":"#REF!"}},{"$f":"VLOOKUP(M273,#REF!,3,TRUE)*(BR273/1000000)","v":{"$error":"#REF!"}}]
["1997-04-21",1997,"Active","Homestead Lodge Apartments (resyndicated 2020)","Weast Ave & School St","Absarokee",59001,null,null,"Stillwater ",0.09,"For-profit","Rehab","Elderly",32,1,151340,null,null,null,null,null,"1998-12-01",null,"1998-12-01","2012-12-01",16,"2028-12-01","RAISING MORE MONEY","ALAN AXELROD","2100 NORTH PACIFIC STREET","SEATTLE","WA",98103,null,"206-709-9400 X102",null,null,null,null,null,null,null,null,null,null,32,null,null,28,4,null,null,null,null,null,null,null,null,null,null,null,null,null,null,null,null,null,null,755867,{"$f":"VLOOKUP(M274,#REF!,2,TRUE)*(BR274/1000000)","v":{"$error":"#REF!"}},{"$f":"VLOOKUP(M274,#REF!,3,TRUE)*(BR274/1000000)","v":{"$error":"#REF!"}}]
["1995-08-31",1996,"Resyndicated","Creekside Apartments**","1405 E Broadway","Missoula",59802,null,null,"Missoula",0.04,"For-profit","New Const","Family",161,13,4689780,null,null,null,null,null,"1996-07-25",null,"1996-07-25","2010-07-25",15,"2025-07-25","INVESTORS CAPITAL GROUP","MIKE CHRISTIAN","3101 WESTERN AVE STE 450","SEATTLE","WA",98121,null,"206-859-4606",null,null,null,null,null,null,null,null,null,null,{"$f":"SUM(AV275:BD275)","v":161},null,12,40,88,21,null,null,null,null,null,null,null,null,null,null,null,null,null,null,null,null,null,10280000,{"$f":"VLOOKUP(M275,#REF!,2,TRUE)*(BR275/1000000)","v":{"$error":"#REF!"}},{"$f":"VLOOKUP(M275,#REF!,3,TRUE)*(BR275/1000000)","v":{"$error":"#REF!"}}]
["1996-08-02",1996,"Comp Fulfilled","Felsman Addition (eventual homeownership)","Nhn Old Hiway 93","Pablo",59855,null,null,"Lake",0.09,"Tribal","New Const","Family",20,20,1286260,null,null,null,null,null,"1998-12-22",null,"1998-12-22",null,null,null,"SALISH & KOOTENAI  LP","JASON ADAMS","PO BOX 38","PABLO","MT",59855,null,"406-675-4491(406-675-4495F)",null,null,null,null,null,null,null,null,null,null,20,null,null,null,null,null,10,10,null,null,null,null,null,null,null,null,null,null,null,null,null,null,null,1586680,{"$f":"VLOOKUP(M276,#REF!,2,TRUE)*(BR276/1000000)","v":{"$error":"#REF!"}},{"$f":"VLOOKUP(M276,#REF!,3,TRUE)*(BR276/1000000)","v":{"$error":"#REF!"}}]
["1996-08-02",1996,"Active","Agape Housing","Po Box 3381","Billings",59103,null,null,"Yellowstone ",0.09,"Non-profit","Rehab","Family",9,4,753590,null,null,null,null,null,"1997-07-03",null,"1997-07-03","2011-07-03",16,{"$f":"DATE(YEAR(Z277)+AA277,MONTH(Z277),DAY(Z277))","v":"2027-07-03"},"AGAPE HOUSING LP","DAVE HAGSTROM","PO BOX 3381/109 1/2 S 32ND ST","BILLINGS","MT",59103,null,"406-256-3002(406-256-2387F)",null,null,null,null,null,null,null,null,null,null,9,null,null,null,1,4,3,1,null,null,null,null,null,null,null,null,null,null,null,null,null,null,null,726081,{"$f":"VLOOKUP(M277,#REF!,2,TRUE)*(BR277/1000000)","v":{"$error":"#REF!"}},{"$f":"VLOOKUP(M277,#REF!,3,TRUE)*(BR277/1000000)","v":{"$error":"#REF!"}}]
["1996-08-02",1996,"Resyndicated","River Ridge (resyndicated 2015)","2840 Sante Fe Court ","Missoula",59808,null,null,"Missoula",0.09,"For-profit","New Const","Elderly",70,1,4437780,null,null,null,null,null,"1998-04-30",null,"1998-04-30","2012-04-30",15,{"$f":"DATE(YEAR(Z278)+AA278,MONTH(Z278),DAY(Z278))","v":"2027-04-30"},"BITTERROOT HOUSING LP","RODNEY EMERY","4343 VON KARMAN AVE STE 300","NEWPORT BEACH","CA",92660,null,"949-852-0700 X1702",null,null,null,null,null,null,null,null,null,null,70,null,null,53,17,null,null,null,null,null,null,null,null,null,null,null,null,null,null,null,null,null,null,4565779,{"$f":"VLOOKUP(M278,#REF!,2,TRUE)*(BR278/1000000)","v":{"$error":"#REF!"}},{"$f":"VLOOKUP(M278,#REF!,3,TRUE)*(BR278/1000000)","v":{"$error":"#REF!"}}]
["1996-08-02",1996,"Terminated","Meadowlark Townhomes (out of program","Harrison Avenue","Chester",59522,null,null,"Liberty",0.09,"For-profit","New Const","Family",6,null,30300,null,null,null,null,null,"1997-05-07",null,"1997-05-07",null,null,null,"BRIAN & LINDA STUBBS",null,"PO BOX 43","CHESTER","MT",59522,null,"406-759-5650(406-759-5496F)",null,null,null,null,null,null,null,null,null,null,6,null,null,null,null,2,null,null,null,4,null,null,null,null,null,null,null,null,null,null,null,null,null,275296,{"$f":"VLOOKUP(M279,#REF!,2,TRUE)*(BR279/1000000)","v":{"$error":"#REF!"}},{"$f":"VLOOKUP(M279,#REF!,3,TRUE)*(BR279/1000000)","v":{"$error":"#REF!"}}]
["1996-05-03",1996,"Active","Hillcrest Apartments","126 Ohio","Chinook",59523,null,null,"Blaine",0.09,"For-profit","New Const","Family",12,null,71560,null,null,null,null,null,"1996-12-20",null,"1996-12-20","2010-12-20",35,{"$f":"DATE(YEAR(Z280)+AA280,MONTH(Z280),DAY(Z280))","v":"2045-12-20"},"PGK ENTERPRISES","RICHARD KING","409 W ARTEMOS DR","MISSOULA","MT","59803-1507",null,"406-728-7784 fax-406-543-2304",null,null,null,null,null,null,null,null,null,null,12,null,null,4,8,null,null,null,null,null,null,null,null,null,null,null,null,null,null,null,null,null,null,201224,{"$f":"VLOOKUP(M280,#REF!,2,TRUE)*(BR280/1000000)","v":{"$error":"#REF!"}},{"$f":"VLOOKUP(M280,#REF!,3,TRUE)*(BR280/1000000)","v":{"$error":"#REF!"}}]
["1996-05-03",1996,"Terminated","Madison Apartments (out of program)","Tract 4-A Madison Add","West Yellowstone",59758,null,null,"Gallatin",0.09,"For-profit","New Const","Family",53,null,1781930,null,null,null,null,null,"1997-02-28",null,"1997-02-28",null,null,null,"FARMHOUSE PARTNERS-WEST LP","WILLIAM C DABNEY III","2555  W COLLEGE #B","BOZEMAN","MT",59718,null,"406-585-9808 (406-586-1166 F)",null,null,null,null,null,null,null,null,null,null,53,28,null,14,11,null,null,null,null,null,null,null,null,null,null,null,null,null,null,null,null,null,null,2563215,{"$f":"VLOOKUP(M281,#REF!,2,TRUE)*(BR281/1000000)","v":{"$error":"#REF!"}},{"$f":"VLOOKUP(M281,#REF!,3,TRUE)*(BR281/1000000)","v":{"$error":"#REF!"}}]
["1996-03-01",1996,"Active","Edgewood Apartments (now Brush Meadows II)","Lake Elmo Rd","Billings",59103,null,null,"Yellowstone ",0.09,"For-profit","New Const","Family",63,3,2599650,null,null,null,null,null,"1997-11-03",null,"1997-11-03","2011-11-03",16,{"$f":"DATE(YEAR(Z282)+AA282,MONTH(Z282),DAY(Z282))","v":"2027-11-03"},"EDGEWOOD HOSING, LLC","SAM OLIVER","131 SOUTH HIGGINS STE P-1","MISSOULA","MT",59802,null,"406-728-3040",null,null,null,null,null,null,null,null,null,null,63,null,null,3,{"$f":"14+28","v":42},18,null,null,null,null,null,null,null,null,null,null,null,null,null,null,null,null,null,3158500,{"$f":"VLOOKUP(M282,#REF!,2,TRUE)*(BR282/1000000)","v":{"$error":"#REF!"}},{"$f":"VLOOKUP(M282,#REF!,3,TRUE)*(BR282/1000000)","v":{"$error":"#REF!"}}]
["1996-03-01",1996,"Active","Farmhouse Apts II Bldg 5&6 (Gallatin Trails II)","101 Jackrabbit Rd","Belgrade.",59714,null,null,"Gallatin",0.09,"For-profit","New Const","Family",16,2,708460,null,null,null,null,null,"1997-05-30",null,"1997-05-30","2011-05-30",15,"2026-05-30","FARMHOUSE PARTNERS-BELGRADE LP","WILLIAM C DABNEY III","2555 W COLLEGE ST #B","BOZEMAN","MT",59715,null,"406-585-9808 (406-586-1166 F)",null,null,null,null,null,null,null,null,null,null,16,null,null,null,16,null,null,null,null,null,null,null,null,null,null,null,null,null,null,null,null,null,null,907144,{"$f":"VLOOKUP(M283,#REF!,2,TRUE)*(BR283/1000000)","v":{"$error":"#REF!"}},{"$f":"VLOOKUP(M283,#REF!,3,TRUE)*(BR283/1000000)","v":{"$error":"#REF!"}}]
["1996-03-01",1996,"Active","Burlington Square","2420 Burlington Suare","Missoula",59803,null,null,"Missoula",0.09,"For-profit","New Const","Elderly",51,null,3000000,null,null,null,null,null,"1997-12-08",null,"1997-12-08","2011-12-08",31,"2042-12-08","SAH BURLINGTON SQUARE LI","JODY ORLANDO","6420 SW MACADAM AVE STE 100","PORTLAND","OR",97239,null,"503-246-3303  FAX 949-777-8412",null,null,null,null,null,null,null,null,null,null,51,null,null,{"$f":"17+27","v":44},7,null,null,null,null,null,null,null,null,null,null,null,null,null,null,null,null,null,null,2966629,{"$f":"VLOOKUP(M284,#REF!,2,TRUE)*(BR284/1000000)","v":{"$error":"#REF!"}},{"$f":"VLOOKUP(M284,#REF!,3,TRUE)*(BR284/1000000)","v":{"$error":"#REF!"}}]
["1996-03-01",1996,"Active","Rangeview Apartments","Rangeview Drive","Hardin",59034,null,null,"Big Horn",0.09,"For-profit","New Const","Elderly",24,null,446300,null,null,null,null,null,"1997-03-07",null,"1997-03-07","2011-03-07",35,"2046-03-07","HARDIN PARTNERS LIMITED PTNR","PETER GERRARD","420 SOUTH FIFTH ST","LA CROSSE","WI",54601,null,"608-782-4488 (608-782-4478 F)",null,null,null,null,null,null,null,null,null,null,24,null,null,24,null,null,null,null,null,null,null,null,null,null,null,null,null,null,null,null,null,null,null,1201303,{"$f":"VLOOKUP(M285,#REF!,2,TRUE)*(BR285/1000000)","v":{"$error":"#REF!"}},{"$f":"VLOOKUP(M285,#REF!,3,TRUE)*(BR285/1000000)","v":{"$error":"#REF!"}}]
["1996-03-01",1996,"Active","East Park Villas","2615 Broadway","Helena",59601,null,null,"Lewis and Clark",0.09,"For-profit","New Const","Elderly",38,1,1828860,null,null,null,null,null,"1997-10-31",null,"1997-10-31","2011-10-31",35,"2046-10-31","AMERICAN BUILDING COMPANY","KERMIT MUELLER","PO BOX 4545","HELENA","MT",59604,null,"406-442-7178 (406-442-7187 F)",null,null,null,null,null,null,null,null,null,null,38,null,null,{"$f":"27+7","v":34},4,null,null,null,null,null,null,null,null,null,null,null,null,null,null,null,null,null,null,2229444,{"$f":"VLOOKUP(M286,#REF!,2,TRUE)*(BR286/1000000)","v":{"$error":"#REF!"}},{"$f":"VLOOKUP(M286,#REF!,3,TRUE)*(BR286/1000000)","v":{"$error":"#REF!"}}]
["07-27-95",1995,"Active","Mountain View Gf /Sandstone Village","2300 16Th Avenue South","Great Falls",59405,null,null,"Cascade",0.09,"For-profit","New Const","Family",47,null,2194910,null,null,null,null,null,"1996-07-31",null,"1996-07-31","2010-07-31",16,"2026-07-31","SANDSTONE VILLAGE LIMITED","JIM DRISHINKSI","PO BOX 2493","GREAT FALLS","MT",59405,null,"406-761-0018",null,null,null,null,null,null,null,null,null,null,47,null,null,null,15,32,null,null,null,null,null,null,null,null,null,null,null,null,null,null,null,null,null,2570296,{"$f":"VLOOKUP(M287,#REF!,2,TRUE)*(BR287/1000000)","v":{"$error":"#REF!"}},{"$f":"VLOOKUP(M287,#REF!,3,TRUE)*(BR287/1000000)","v":{"$error":"#REF!"}}]
["07-27-95",1995,"Active","Town Site (NHS) Apartments","610/616-9Th,820 7Th,410/416-8Th Avenue South","Great Falls",59405,null,null,"Cascade",0.09,"For-profit","New Const","Family",20,null,1207620,null,null,null,null,null,"1996-01-04",null,"1996-01-04","2010-01-04",15,"2025-01-04","NHS APARTMENTS LP","DAN HICKEY","PO BOX 1496","BILLINGS","MT",59103,null,"406-245-9998 fax-248-9399",null,null,null,null,null,null,null,null,null,null,20,null,null,null,10,10,null,null,null,null,null,null,null,null,null,null,null,null,null,null,null,null,null,1128000,{"$f":"VLOOKUP(M288,#REF!,2,TRUE)*(BR288/1000000)","v":{"$error":"#REF!"}},{"$f":"VLOOKUP(M288,#REF!,3,TRUE)*(BR288/1000000)","v":{"$error":"#REF!"}}]
["05-10-95",1995,"Active","Phillips Apartments","1805 Phillips","Missoula",59802,46.880940000000002,-114.01765,"Missoula",0.09,"For-profit","New Const","Family",8,2,161740,null,null,null,null,null,"1996-09-04",null,"1996-09-04","2010-09-04",15,"2025-09-04","ALLEN LAND CO, LLC","KENNETH W & SUSAN K ALLEN","2725 CONTOUR RD","MISSOULA","MT",59802,null,"406-549-1337",null,null,null,null,null,null,null,null,null,null,8,null,null,8,null,null,null,null,null,null,null,null,null,null,null,null,null,null,null,null,null,null,null,389890,{"$f":"VLOOKUP(M289,#REF!,2,TRUE)*(BR289/1000000)","v":{"$error":"#REF!"}},{"$f":"VLOOKUP(M289,#REF!,3,TRUE)*(BR289/1000000)","v":{"$error":"#REF!"}}]
["12-29-94",1994,"Active","Comstock Apartments","777 Haggerty Lane ","Bozeman",59715,null,null,"Gallatin",0.09,"For-profit","New Const","Family",24,null,1095304,null,null,null,null,null,"1996-08-05",null,"1996-08-05","2010-08-05",25,"2035-08-05","FARMHOUSE PARTNERS -BOZEMAN LP","WILLIAM C DABNEY III","2555 W COLLEGE ST #B","BOZEMAN","MT",59718,null,"406-585-9808 (406-586-1166 F)",null,null,null,null,null,null,null,null,null,null,24,null,null,8,16,null,null,null,null,null,null,null,null,null,null,null,null,null,null,null,null,null,null,1364978,{"$f":"VLOOKUP(M290,#REF!,2,TRUE)*(BR290/1000000)","v":{"$error":"#REF!"}},{"$f":"VLOOKUP(M290,#REF!,3,TRUE)*(BR290/1000000)","v":{"$error":"#REF!"}}]
["12-29-94",1994,"Active","Farmhouse Apartments I (Gallatin Trails I)","Nwc Jackrabbit Rd @ Hwy 10","Belgrade",59714,null,null,"Gallatin",0.09,"For-profit","New Const","Family",32,4,1339500,null,null,null,null,null,"1996-01-24",null,"1996-01-24","2010-01-24",15,"2025-01-24","FARMHOUSE PARTNERS-BELGRADE LP","WILLIAM C DABNEY III","2555 W COLLEGE ST #B","BOZEMAN","MT",59771,null,"406-585-9808",null,null,null,null,null,null,null,null,null,null,32,null,null,8,24,null,null,null,null,null,null,null,null,null,null,null,null,null,null,null,null,null,null,1606868,{"$f":"VLOOKUP(M291,#REF!,2,TRUE)*(BR291/1000000)","v":{"$error":"#REF!"}},{"$f":"VLOOKUP(M291,#REF!,3,TRUE)*(BR291/1000000)","v":{"$error":"#REF!"}}]
["12-15-94",1994,"Active","Coad III","1250 1Th St","Missoula",59801,null,null,"Missoula",0.09,"For-profit","New Const","Family",6,null,391370,null,null,null,null,null,"1995-09-01",null,"1995-09-01","2009-09-01",15,"2024-09-01","GREGORY L NEMOFF",null,"825 COOPER","MISSOULA","MT",59802,null,"406-542-0004",null,null,null,null,null,null,null,null,null,null,6,null,null,null,2,4,null,null,null,null,null,null,null,null,null,null,null,null,null,null,null,null,null,519770,{"$f":"VLOOKUP(M292,#REF!,2,TRUE)*(BR292/1000000)","v":{"$error":"#REF!"}},{"$f":"VLOOKUP(M292,#REF!,3,TRUE)*(BR292/1000000)","v":{"$error":"#REF!"}}]
["12-15-94",1994,"Active","Coad II","514 River St","Missoula",59801,null,null,"Missoula",0.09,"For-profit","New Const","Family",6,null,389320,null,null,null,null,null,"1995-11-17",null,"1995-11-17","2009-11-17",15,"2024-11-17","GREGORY L NEMOFF",null,"825 COOPER","MISSOULA","MT",59802,null,"406-542-0004",null,null,null,null,null,null,null,null,null,null,6,null,null,null,2,4,null,null,null,null,null,null,null,null,null,null,null,null,null,null,null,null,null,513242,{"$f":"VLOOKUP(M293,#REF!,2,TRUE)*(BR293/1000000)","v":{"$error":"#REF!"}},{"$f":"VLOOKUP(M293,#REF!,3,TRUE)*(BR293/1000000)","v":{"$error":"#REF!"}}]
["12-15-94",1994,"Active","Coad I","708 River St","Missoula",59801,null,null,"Missoula",0.09,"For-profit","New Const","Family",6,null,383140,null,null,null,null,null,"1995-07-29",null,"1995-07-29","2009-07-29",15,"2024-07-29","GREGORY L NEMOFF",null,"825 COOPER","MISSOULA","MT",59802,null,"406-542-0004",null,null,null,null,null,null,null,null,null,null,6,null,null,null,2,4,null,null,null,null,null,null,null,null,null,null,null,null,null,null,null,null,null,488367,{"$f":"VLOOKUP(M294,#REF!,2,TRUE)*(BR294/1000000)","v":{"$error":"#REF!"}},{"$f":"VLOOKUP(M294,#REF!,3,TRUE)*(BR294/1000000)","v":{"$error":"#REF!"}}]
["12-28-94",1994,"Active","Livingston Village","602 Robin Lane","Livingston",59047,null,null,"Park",0.09,"For-profit","Acq/Rehab","Family",24,null,326440,null,null,null,null,null,"1996-03-24",null,{"$f":"IF(W295>X295,W295,X295)","v":"1996-03-24"},{"$f":"DATE(YEAR(Y295)+14,MONTH(Y295),DAY(Y295))","v":"2010-03-24"},15,"2025-03-24","VILLAGE V LTD PARTNERSHIP","GARY MACHACEK","PO BOX 5452","BOISE","ID",83705,null,"208-343-2919",null,null,null,null,null,null,null,null,null,null,24,null,null,24,null,null,null,null,null,null,null,null,null,null,null,null,null,null,null,null,null,null,null,937516,{"$f":"VLOOKUP(M295,#REF!,2,TRUE)*(BR295/1000000)","v":{"$error":"#REF!"}},{"$f":"VLOOKUP(M295,#REF!,3,TRUE)*(BR295/1000000)","v":{"$error":"#REF!"}}]
["12-28-94",1994,"Active","Big Timber Village","8Th & Hart","Big Timber",59011,null,null,"Sweet Grass",0.09,"For-profit","Acq/Rehab","Family",24,null,361860,null,null,null,null,null,"1996-03-24",null,"1996-03-24","2010-03-24",16,"2026-03-24","VILLAGE V LTD PARTNERSHIP","GARY MACHACEK","PO BOX 5452","BOISE","ID",83705,null,"208-343-2919  FAX 208.343.2296",null,null,null,null,null,null,null,null,null,null,24,null,null,24,null,null,null,null,null,null,null,null,null,null,null,null,null,null,null,null,null,null,null,1149013,{"$f":"VLOOKUP(M296,#REF!,2,TRUE)*(BR296/1000000)","v":{"$error":"#REF!"}},{"$f":"VLOOKUP(M296,#REF!,3,TRUE)*(BR296/1000000)","v":{"$error":"#REF!"}}]
["12-28-94",1994,"Active","Hysham Village","117 Division St","Hysham",59038,null,null,"Treasure",0.09,"For-profit","New Const","Family",12,null,283730,null,null,null,null,null,"1996-03-24",null,"1996-03-24","2010-03-24",16,"2026-03-24","VILLAGE V LTD PARTNERSHIP","GARY MACHACEK","PO BOX 5452","BOISE","ID",83705,null,"208-343-2919",null,null,null,null,null,null,null,null,null,null,12,null,null,8,4,null,null,null,null,null,null,null,null,null,null,null,null,null,null,null,null,null,null,765857,{"$f":"VLOOKUP(M297,#REF!,2,TRUE)*(BR297/1000000)","v":{"$error":"#REF!"}},{"$f":"VLOOKUP(M297,#REF!,3,TRUE)*(BR297/1000000)","v":{"$error":"#REF!"}}]
["12-28-94",1994,"Active","Forsyth Village II","2315 East Front","Forsyth",59327,null,null,"Rosebud",0.09,"For-profit","Acq/Rehab","Family",12,null,229150,null,null,null,null,null,"1996-03-24",null,"1996-03-24","2010-03-24",15,"2025-03-24","VILLAGE V LTD PARTNERSHIP","GARY MACHACEK","PO BPX 5452","BOISE","ID",83705,null,"208-343-2919",null,null,null,null,null,null,null,null,null,null,12,null,null,4,8,null,null,null,null,null,null,null,null,null,null,null,null,null,null,null,null,null,null,820973,{"$f":"VLOOKUP(M298,#REF!,2,TRUE)*(BR298/1000000)","v":{"$error":"#REF!"}},{"$f":"VLOOKUP(M298,#REF!,3,TRUE)*(BR298/1000000)","v":{"$error":"#REF!"}}]
["12-28-94",1994,"Active","Forsyth Village I","1855 East Main","Forsyth",59327,null,null,"Rosebud",0.09,"For-profit","Acq/Rehab","Family",24,1,313130,null,null,null,null,null,"1996-03-24",null,"1996-03-24","2010-03-24",15,"2025-03-24","VILLAGE V LTD PARTNERSHIP","GARY MACHACEK","PO BOX 5452","BOISE","ID",83705,null,"208-343-2919",null,null,null,null,null,null,null,null,null,null,24,null,null,24,null,null,null,null,null,null,null,null,null,null,null,null,null,null,null,null,null,null,null,903418,{"$f":"VLOOKUP(M299,#REF!,2,TRUE)*(BR299/1000000)","v":{"$error":"#REF!"}},{"$f":"VLOOKUP(M299,#REF!,3,TRUE)*(BR299/1000000)","v":{"$error":"#REF!"}}]
["12-28-94",1994,"Resyndicated","The Palace Hotel (resyndicated)","123 W Broadway","Missoula",59801,null,null,"Missoula",0.09,"For-profit","Acq/Rehab","Family",60,null,3328000,null,null,null,null,null,"1995-12-01",null,"1995-12-01","2009-12-01",15,"2024-12-01","MHA HOLDINGS LLC","LORI DAVIDSON","1235 34TH ST","MISSOULA","MT",59801,null,"406-549-4113 EXT: 105",null,null,null,null,null,null,null,null,null,null,60,null,4,44,12,null,null,null,null,null,null,null,null,null,null,null,null,null,null,null,null,null,null,4548549,{"$f":"VLOOKUP(M300,#REF!,2,TRUE)*(BR300/1000000)","v":{"$error":"#REF!"}},{"$f":"VLOOKUP(M300,#REF!,3,TRUE)*(BR300/1000000)","v":{"$error":"#REF!"}}]
["12-28-94",1994,"Active","Fernwell Apartments","20 4Th Avenue East","Kalispell",59901,null,null,"Flathead",0.09,"For-profit","New Const","Family",36,null,1344140,null,null,null,null,null,"1995-12-28",null,"1995-12-28","2009-12-28",36,"2045-12-28","ADM WHITE LLC","DOUGLAS WHITE","20 4TH AVE EAST","KALISPELL","MT",59901,null,"406-257-5745",null,null,null,null,null,null,null,null,null,null,36,null,{"$f":"5+16","v":21},{"$f":"4+10","v":14},1,null,null,null,null,null,null,null,null,null,null,null,null,null,null,null,null,null,null,1356486,{"$f":"VLOOKUP(M301,#REF!,2,TRUE)*(BR301/1000000)","v":{"$error":"#REF!"}},{"$f":"VLOOKUP(M301,#REF!,3,TRUE)*(BR301/1000000)","v":{"$error":"#REF!"}}]
["12-28-94",1994,"Active","8Th Avenue Apartments","811 - 827 N 17Th Street","Billings",59103,null,null,"Yellowstone",0.09,"For-profit","New Const","Family",26,4,1733410,null,null,null,null,null,"1997-01-01",null,"1997-01-01","2011-01-01",15,"2026-01-01","8TH AVENUE APARTMENTS LP","DAN HICKEY","PO BOX 1496","BILLINGS","MT","59103-1496",null,"406-245-9998",null,null,null,null,null,null,null,null,null,null,26,null,null,null,12,10,4,null,null,null,null,null,null,null,null,null,null,null,null,null,null,null,null,2417862,{"$f":"VLOOKUP(M302,#REF!,2,TRUE)*(BR302/1000000)","v":{"$error":"#REF!"}},{"$f":"VLOOKUP(M302,#REF!,3,TRUE)*(BR302/1000000)","v":{"$error":"#REF!"}}]
["12-15-94",1994,"Resyndicated","Little Jon Apartments (resyndicated)","1150-1156 Grand Avenue","Bigfork",59911,null,null,"Flathead",0.09,"For-profit","New Const","Family",32,null,469630,null,null,null,null,null,"1994-08-01",null,"1994-08-01",null,"na",null,"BIG FORK ASSOCIATES","MARTY FRANZ","9323 N GOVERNMENT WAY PMB 248","HAYDEN LAKE","ID",83835,null,"208-687-5461",null,null,null,null,null,null,null,null,null,null,32,null,null,8,20,4,null,null,null,null,null,null,null,null,null,null,null,null,null,null,null,null,null,1488538,{"$f":"VLOOKUP(M303,#REF!,2,TRUE)*(BR303/1000000)","v":{"$error":"#REF!"}},{"$f":"VLOOKUP(M303,#REF!,3,TRUE)*(BR303/1000000)","v":{"$error":"#REF!"}}]
["12-01-94",1994,"Active","Westwind Village","486 Two Mile Drive","Kalispell",59901,null,null,"Flathead",0.09,"For-profit","New Const","Family",34,null,685330,null,null,null,null,null,"1995-05-19",null,"1995-05-19","2009-05-19",16,{"$f":"DATE(YEAR(Z304)+AA304,MONTH(Z304),DAY(Z304))","v":"2025-05-19"},"WESTWIND VILLAGE MT LTD PARTNERSHIP","EDWARD MACKAY","PO BOX 6314","AUBURN","CA",95604,null,"530-823-9250  FAX.530.823.2169",null,null,null,null,null,null,null,null,null,null,33,null,null,8,26,null,null,null,null,null,null,null,null,null,null,null,null,null,null,null,null,null,null,1701545,{"$f":"VLOOKUP(M304,#REF!,2,TRUE)*(BR304/1000000)","v":{"$error":"#REF!"}},{"$f":"VLOOKUP(M304,#REF!,3,TRUE)*(BR304/1000000)","v":{"$error":"#REF!"}}]
["12-29-93",1993,"Active","Shadow Mountain Apartments","2525 Ferndale Lane","Helena",59601,null,null,"Lewis and Clark",0.09,"For-profit","New Const","Family",36,null,2020000,null,null,null,null,null,"1995-12-26",null,"1996-01-01","2010-01-01",15,{"$f":"DATE(YEAR(Z305)+AA305,MONTH(Z305),DAY(Z305))","v":"2025-01-01"},"SHADOW MOUNTAIN LLC","CAL KUNKEL","6238 GOLDEN EAGLE WAY","BILLINGS","MT",59106,null,"406-655-4646",null,null,null,null,null,null,null,null,null,null,"36",null,null,4,18,14,null,null,null,null,null,null,null,null,null,null,null,null,null,null,null,null,null,2179535,{"$f":"VLOOKUP(M305,#REF!,2,TRUE)*(BR305/1000000)","v":{"$error":"#REF!"}},{"$f":"VLOOKUP(M305,#REF!,3,TRUE)*(BR305/1000000)","v":{"$error":"#REF!"}}]
["12-29-93",1993,"Active","Westwood Apartments","5Th Street & Westwood","Shelby",59474,null,null,"Toole",0.09,"For-profit","New Const","Family",12,null,169600,null,null,null,null,null,"1995-10-17",null,"1995-10-17",{"$f":"DATE(YEAR(Y306)+14,MONTH(Y306),DAY(Y306))","v":"2009-10-17"},15,{"$f":"DATE(YEAR(Z306)+AA306,MONTH(Z306),DAY(Z306))","v":"2024-10-17"},"CHRISTENSEN BUILDING CORP","RONALD A CHRISTENSON","12 S 6TH ST STE 715","MINNEAPOLIS","MN",55402,null,"612-338-7173",null,null,null,null,null,null,null,null,null,null,"12",null,null,null,8,4,null,null,null,null,null,null,null,null,null,null,null,null,null,null,null,null,null,487300,{"$f":"VLOOKUP(M306,#REF!,2,TRUE)*(BR306/1000000)","v":{"$error":"#REF!"}},{"$f":"VLOOKUP(M306,#REF!,3,TRUE)*(BR306/1000000)","v":{"$error":"#REF!"}}]
["12-22-93",1993,"Comp Fulfilled","Butorac Rentals","1914 Scott Street","Missoula",59801,null,null,"Missoula",0.09,"For-profit","New Const","Family",4,null,140750,null,null,null,null,null,"1994-05-01",null,"1994-05-01","2008-05-01",15,{"$f":"DATE(YEAR(Z307)+AA307,MONTH(Z307),DAY(Z307))","v":"2023-05-01"},"TOM & DELAINE BUTORAC",null,"2605 MUIRFIELD COURT","MISSOULA","MT",59808,null,"406-523-4237 fax-406-523-4317",null,null,null,null,null,null,null,null,null,null,"4",null,null,null,4,null,null,null,null,null,null,null,null,null,null,null,null,null,null,null,null,null,null,172632,{"$f":"VLOOKUP(M307,#REF!,2,TRUE)*(BR307/1000000)","v":{"$error":"#REF!"}},{"$f":"VLOOKUP(M307,#REF!,3,TRUE)*(BR307/1000000)","v":{"$error":"#REF!"}}]
["12-28-93",1993,"Active","Highland Manor (resyndicated 2023)","1325 Jefferson ","Havre",59501,null,null,"Hill",0.09,"For-profit","New Const","Family",16,null,212480,null,null,null,null,null,"1994-02-01","1905-06-17","1994-02-01","2008-02-01",15,{"$f":"DATE(YEAR(Z308)+AA308,MONTH(Z308),DAY(Z308))","v":"2023-02-01"},"HIGHLAND MANOR II","DONNA & MELVIN SHULAND","412 14TH ST W","HAVRE","MT",59501,null,"406-265-6349",null,null,null,null,null,null,null,null,null,null,"16",null,null,3,13,null,null,null,null,null,null,null,null,null,null,null,null,null,null,null,null,null,null,622843,{"$f":"VLOOKUP(M308,#REF!,2,TRUE)*(BR308/1000000)","v":{"$error":"#REF!"}},{"$f":"VLOOKUP(M308,#REF!,3,TRUE)*(BR308/1000000)","v":{"$error":"#REF!"}}]
["12-21-93",1993,"Comp Fulfilled","J & L Rental compliance fulfillled","406 South First Street","Joliet",59041,null,null,"Carbon",0.09,"For-profit","New Const","Family",1,null,14090,null,null,null,null,null,"1993-09-01",null,"1993-09-01",null,null,null,"J & L RENTAL","LORI DAVIS","BOX 1625","RED LODGE","MT",59068,null,"406-860-2387",null,null,null,null,null,null,null,null,null,null,"1",null,null,null,1,null,null,null,null,null,null,null,null,null,null,null,null,null,null,null,null,null,null,35313,{"$f":"VLOOKUP(M309,#REF!,2,TRUE)*(BR309/1000000)","v":{"$error":"#REF!"}},{"$f":"VLOOKUP(M309,#REF!,3,TRUE)*(BR309/1000000)","v":{"$error":"#REF!"}}]
["12-15-93",1993,"Comp Fulfilled","Clyatt Rentals","101 Pullman Court","Missoula",59801,null,null,"Missoula",0.09,"For-profit","New Const","Family",4,null,102370,null,null,null,null,null,"1994-04-12",null,"1994-04-12","2008-04-12",15,{"$f":"DATE(YEAR(Z310)+AA310,MONTH(Z310),DAY(Z310))","v":"2023-04-12"},"ANN  CLYATT",null,"6720 GHARRETT","MISSOULA","MT",59803,null,"406-251-5544",null,null,null,null,null,null,null,null,null,null,"4",null,null,null,4,null,null,null,null,null,null,null,null,null,null,null,null,null,null,null,null,null,null,156011,{"$f":"VLOOKUP(M310,#REF!,2,TRUE)*(BR310/1000000)","v":{"$error":"#REF!"}},{"$f":"VLOOKUP(M310,#REF!,3,TRUE)*(BR310/1000000)","v":{"$error":"#REF!"}}]
["12-15-93",1993,"Active","Meridian Pointe II","1055 North Meridian","Kalispell",59901,null,null,"Flathead",0.09,"For-profit","New Const","Family",16,null,1241590,null,null,null,null,null,"1995-12-27","1996-01-01","1996-01-01","2010-01-01",15,{"$f":"DATE(YEAR(Z311)+AA311,MONTH(Z311),DAY(Z311))","v":"2025-01-01"},"MERIDIAN POINTE LLC","CAL KUNKEL","6238 GOLDEN EAGLE WAY","BILLINGS","MT",59106,null,"406-248-2670",null,null,null,null,null,null,null,null,null,null,"16",null,null,null,16,null,null,null,null,null,null,null,null,null,null,null,null,null,null,null,null,null,null,1119523,{"$f":"VLOOKUP(M311,#REF!,2,TRUE)*(BR311/1000000)","v":{"$error":"#REF!"}},{"$f":"VLOOKUP(M311,#REF!,3,TRUE)*(BR311/1000000)","v":{"$error":"#REF!"}}]
["12-30-92",1992,"Comp Fulfilled","Brush Meadow Apartments I","1203 Lake Elmo Road","Billings",59101,null,null,"Yellowstone ",0.09,"For-Profit","New Const","Family",60,null,2841590,null,null,null,null,null,"1994-11-18",null,"1994-11-18","2008-11-18",15,{"$f":"DATE(YEAR(Z312)+AA312,MONTH(Z312),DAY(Z312))","v":"2023-11-18"},"BRUSH MEADOW APARTMENTS LP","CAL KUNKEL","6238 GOLDEN EAGLE WAY","BILLINGS","MT",59106,null,"CELL406-655-4646 , 406-248-2670",null,null,null,null,null,null,null,null,null,null,60,null,null,null,38,20,2,null,null,null,null,null,null,null,null,null,null,null,null,null,null,null,null,3166600,{"$f":"VLOOKUP(M312,#REF!,2,TRUE)*(BR312/1000000)","v":{"$error":"#REF!"}},{"$f":"VLOOKUP(M312,#REF!,3,TRUE)*(BR312/1000000)","v":{"$error":"#REF!"}}]
["12-29-92",1992,"Comp Fulfilled","Milk River Group Home compliance fulfilled","703 3Rd Avenue South","Glasgow",59230,null,null,"Valley",0.09,"Non-profit","New Const","Group",6,null,97800,null,null,null,null,null,"1993-04-01",null,"1993-04-01",null,null,null,"MILK RIVER INC","CONNIE WETHERN","219 2ND AVE S","GLASGOW","MT",59230,null,"406-228-8412",null,null,null,null,null,null,null,null,null,null,"6",null,6,null,null,null,null,null,null,null,null,null,null,null,null,null,null,null,null,null,null,null,null,298101,{"$f":"VLOOKUP(M313,#REF!,2,TRUE)*(BR313/1000000)","v":{"$error":"#REF!"}},{"$f":"VLOOKUP(M313,#REF!,3,TRUE)*(BR313/1000000)","v":{"$error":"#REF!"}}]
["12-30-92",1992,"Comp Fulfilled","Fifth Street Apartments","720 & 724 Fifth Street","Hardin",59034,null,null,"Big Horn",0.09,"For-profit","New Const","Family",16,null,326940,null,null,null,null,null,"1993-08-10",null,"1993-08-10","2007-08-10",15,{"$f":"DATE(YEAR(Z314)+AA314,MONTH(Z314),DAY(Z314))","v":"2022-08-10"},"FIFTH ST APTS LTD","CONNIE BOSLEY","566 TURNER LANE","SHERIDAN","WY",82801,null,"307-672-0407 fax-307-672-9294",null,null,null,null,null,null,null,null,null,null,"16",null,null,4,12,null,null,null,null,null,null,null,null,null,null,null,null,null,null,null,null,null,null,736503,{"$f":"VLOOKUP(M314,#REF!,2,TRUE)*(BR314/1000000)","v":{"$error":"#REF!"}},{"$f":"VLOOKUP(M314,#REF!,3,TRUE)*(BR314/1000000)","v":{"$error":"#REF!"}}]
["12-23-92",1992,"Comp Fulfilled","Meridian Pointe I ","1055 N Meridian","Kalispell",59901,null,null,"Flathead",0.09,"For-profit","New Const","Family",48,null,2832660,null,null,null,null,null,"1994-08-26",null,"1994-08-26","2008-08-26",15,"2023-08-26","MERDIAN POINTE LLC","CAL KUNKEL","6238 GOLDEN EAGLE WAY","BILLINGS","MT",59106,null,"406-248-2670",null,null,null,null,null,null,null,null,null,null,"48",null,null,null,24,24,null,null,null,null,null,null,null,null,null,null,null,null,null,null,null,null,null,2781873,{"$f":"VLOOKUP(M315,#REF!,2,TRUE)*(BR315/1000000)","v":{"$error":"#REF!"}},{"$f":"VLOOKUP(M315,#REF!,3,TRUE)*(BR315/1000000)","v":{"$error":"#REF!"}}]
["12-23-92",1992,"Comp Fulfilled","Deer Lodge Apartments","700 Montana","Deer Lodge",59722,null,null,"Powell",0.09,"For-profit","Acq/Rehab","Family",24,null,242220,null,null,null,null,null,"1993-07-01",null,"1993-07-01","2007-07-01",15,"2022-07-01","HOUSING DEVELOPMENT ASSOC","DAN HICKEY","PO BOX 1496","BILLINGS","MT","59103-1496",null,"406-248-9998",null,null,null,null,null,null,null,null,null,null,"24",null,null,15,9,null,null,null,null,null,null,null,null,null,null,null,null,null,null,null,null,null,null,698472,{"$f":"VLOOKUP(M316,#REF!,2,TRUE)*(BR316/1000000)","v":{"$error":"#REF!"}},{"$f":"VLOOKUP(M316,#REF!,3,TRUE)*(BR316/1000000)","v":{"$error":"#REF!"}}]
["06-18-92",1992,"Comp Fulfilled","Shiloh Glen Apartments","740 Olympic Blvd","Billings",59101,null,null,"Yellowstone ",0.09,"For-profit","New Const","Family",120,null,370000,null,null,null,null,null,"1994-06-03",null,"1994-06-03","2008-06-03",15,"2023-06-03","INVESTORS CAPITAL GROUP","MICHAEL CHRISTIAN","3101 WESTERN AVE STE 450","SEATTLE","WA",98101,null,"206-859-4606",null,null,null,null,null,null,null,null,null,null,120,null,20,26,46,28,null,null,null,null,null,null,null,null,null,null,null,null,null,null,null,null,null,4274640,{"$f":"VLOOKUP(M317,#REF!,2,TRUE)*(BR317/1000000)","v":{"$error":"#REF!"}},{"$f":"VLOOKUP(M317,#REF!,3,TRUE)*(BR317/1000000)","v":{"$error":"#REF!"}}]
["06-29-92",1992,"Comp Fulfilled","Wildflower Apartments","1250 34Th Street","Missoula",59801,null,null,"Missoula",0.09,"For-profit","New Const","Family",96,null,3692160,null,null,null,null,null,"1994-01-31",null,"1994-01-31","2008-01-31",15,"2023-01-31","ICG, LLC","MIKE CHRISTIAN","3101 WESTERN AVE STE 450","SEATTLE","WA",98101,null,"206-455-2433  Deborah Porter",null,null,null,null,null,null,null,null,null,null,96,null,20,20,36,20,null,null,null,null,null,null,null,null,null,null,null,null,null,null,null,null,null,3725000,{"$f":"VLOOKUP(M318,#REF!,2,TRUE)*(BR318/1000000)","v":{"$error":"#REF!"}},{"$f":"VLOOKUP(M318,#REF!,3,TRUE)*(BR318/1000000)","v":{"$error":"#REF!"}}]
["12-23-91",1991,"Comp Fulfilled","Lake Apartments compliance fulfilled","116 Main Street","Medicine Lake",59247,null,null,"Sheridan",0.09,"For-profit","Acq/Rehab","Family",4,null,35950,null,null,null,null,null,"1991-04-01",null,"1991-04-01","2005-04-01",15,"2020-04-01","OLSEN JACOBS RENTAL","CLINT JACOBS","PO BOX 614","CULBERTSON","MT",59218,null,"406-787-5865 wk 787-5382",null,null,null,null,null,null,null,null,null,null,"4",null,null,2,2,null,null,null,null,null,null,null,null,null,null,null,null,null,null,null,null,null,null,78576,{"$f":"VLOOKUP(M319,#REF!,2,TRUE)*(BR319/1000000)","v":{"$error":"#REF!"}},{"$f":"VLOOKUP(M319,#REF!,3,TRUE)*(BR319/1000000)","v":{"$error":"#REF!"}}]
["12-23-91",1991,"Comp Fulfilled","Winnett Apartments compliance fulfilled","Ne Corner Of Main Street & Leeper","Winnett",59087,null,null,"Petroleum",0.09,"For-profit","New Const","Family",6,null,96260,null,null,null,null,null,"1991-11-01",null,"1991-11-01","2005-11-01",15,"2020-11-01","HOUSING DEVELOPMENT ASSOC","DAN HICKEY","PO BOX 1496","BILLINGS","MT","59103-1496",null,"406-248-9399",null,null,null,null,null,null,null,null,null,null,"6",null,null,4,2,null,null,null,null,null,null,null,null,null,null,null,null,null,null,null,null,null,null,269478,{"$f":"VLOOKUP(M320,#REF!,2,TRUE)*(BR320/1000000)","v":{"$error":"#REF!"}},{"$f":"VLOOKUP(M320,#REF!,3,TRUE)*(BR320/1000000)","v":{"$error":"#REF!"}}]
["12-18-91",1991,"Comp Fulfilled","Stone Creek Apartments","819,851,865,885,877,843,835 Ashtar","Whitefish",59937,null,null,"Flathead",0.09,"For-profit","New Const","Elderly",40,null,822270,null,null,null,null,null,"1992-08-31",null,"1992-08-31","2006-08-31",15,"2021-08-31","WHITEFISH LIMITED","SHIRLEE TIBBETS","9425 PEACEFUL VALLEY RD","COLORADO SPRINGS","CO",80906,null,"719-540-3790",null,null,null,null,null,null,null,null,null,null,"40",null,null,8,32,null,null,null,null,null,null,null,null,null,null,null,null,null,null,null,null,null,null,1972480,{"$f":"VLOOKUP(M321,#REF!,2,TRUE)*(BR321/1000000)","v":{"$error":"#REF!"}},{"$f":"VLOOKUP(M321,#REF!,3,TRUE)*(BR321/1000000)","v":{"$error":"#REF!"}}]
["12-18-91",1991,"Comp Fulfilled","Cut Bank Villas","33 First Avenue Se","Cutbank",59427,null,null,"Glacier",0.09,"For-profit","New Const","Elderly",19,null,316590,null,null,null,null,null,"1992-06-01",null,"1992-06-01","2006-06-01",15,"2021-06-01","CUT BANK VILLAS","KERMIT MUELLER","PO BOX 4545","HELENA","MT",59427,null,"406-442-7178",null,null,null,null,null,null,null,null,null,null,19,null,null,17,2,null,null,null,null,null,null,null,null,null,null,null,null,null,null,null,null,null,null,1034474,{"$f":"VLOOKUP(M322,#REF!,2,TRUE)*(BR322/1000000)","v":{"$error":"#REF!"}},{"$f":"VLOOKUP(M322,#REF!,3,TRUE)*(BR322/1000000)","v":{"$error":"#REF!"}}]
["12-18-91",1991,"Comp Fulfilled","Heights Centennial Apartments II","1526 Lake Elmo Road","Billings",59101,null,null,"Yellowstone ",0.09,"For-profit","New Const","Elderly",9,null,290070,null,null,null,null,null,"1991-11-01",null,"1991-11-01","2005-11-01",15,"2020-11-01","HEIGHTS CENTENNIAL APARTMENTS II LTD PART","DAN HICKEY","PO BOX 1496","BILLINGS","MT","59103-1496",null,"406.245.9998  FAX406-248-9399",null,null,null,null,null,null,null,null,null,null,"9",null,null,6,3,null,null,null,null,null,null,null,null,null,null,null,null,null,null,null,null,null,null,374100,{"$f":"VLOOKUP(M323,#REF!,2,TRUE)*(BR323/1000000)","v":{"$error":"#REF!"}},{"$f":"VLOOKUP(M323,#REF!,3,TRUE)*(BR323/1000000)","v":{"$error":"#REF!"}}]
["12-13-90",1990,"Comp Fulfilled","Cherry Hill Village North","1100-1500 Cherry Hill Court","Polson",59860,null,null,"Lake",0.09,"For-profit","New Const","Elderly",28,null,562380,null,null,null,null,null,"1990-12-20",null,"1990-12-20","2004-12-20",15,"2019-12-20","TIBBETTS & COMPANY","SHIRLEE TIBBETTS","9425 PEACEFUL VALLEY RD","COLORADO SPRINGS","CO",80925,null,"719-382-8558",null,null,null,null,null,null,null,null,null,null,28,null,null,22,6,null,null,null,null,null,null,null,null,null,null,null,null,null,null,null,null,null,null,1201116,{"$f":"VLOOKUP(M324,#REF!,2,TRUE)*(BR324/1000000)","v":{"$error":"#REF!"}},{"$f":"VLOOKUP(M324,#REF!,3,TRUE)*(BR324/1000000)","v":{"$error":"#REF!"}}]
["12-13-90",1990,"Comp Fulfilled","Burnt Fork Manor","309,313 11Th Street","Stevensville",59870,null,null,"Ravalli",0.09,"For-profit","New Const","Elderly",30,null,371780,null,null,null,null,null,"1991-02-01",null,"1991-02-01","2005-02-01",15,"2020-02-01","HRC COTTAGES","RUTH BURKE","1801 S HIGGINS","MISSOULA","MT",59801,null,"406-728-3710  FAX 406-728-3710",null,null,null,null,null,null,null,null,null,null,30,null,null,26,4,null,null,null,null,null,null,null,null,null,null,null,null,null,null,null,null,null,null,1044900,{"$f":"VLOOKUP(M325,#REF!,2,TRUE)*(BR325/1000000)","v":{"$error":"#REF!"}},{"$f":"VLOOKUP(M325,#REF!,3,TRUE)*(BR325/1000000)","v":{"$error":"#REF!"}}]
["12-21-90",1990,"Comp Fulfilled","Heights Centennial Apartments I","1512 Lake Elmo","Billings",95101,null,null,"Yellowstone",0.09,"For-profit","New Const","Elderly",9,null,301130,null,null,null,null,null,"1991-05-01",null,"1991-05-01","2005-05-01",15,"2020-05-01","HEIGHTS CENTENNIAL APARTMENTS LTF PTNRSHP","DAN HICKEY","PO BOX 1496","BILLINGS","MT","59103-1496",null,"406.245.9998  FAX406-248-9399",null,null,null,null,null,null,null,null,null,null,9,null,null,6,3,null,null,null,null,null,null,null,null,null,null,null,null,null,null,null,null,null,null,382383,{"$f":"VLOOKUP(M326,#REF!,2,TRUE)*(BR326/1000000)","v":{"$error":"#REF!"}},{"$f":"VLOOKUP(M326,#REF!,3,TRUE)*(BR326/1000000)","v":{"$error":"#REF!"}}]
["12-24-90",1990,"Comp Fulfilled","Columbia Arms","810 5Th Street W.","Columbia Falls",59912,null,null,"Flathead",0.09,"For-profit","New Const","Elderly",12,null,172160,null,null,null,null,null,"1991-03-01",null,"1991-03-01","2005-03-01",15,"2020-03-01","SENIOR HOUSING PARTNERSHIP I","JOHN FREEBORN","5712 MALAGE PLACE","LONG BEACH","CA",90814,null,"562-434-8431",null,null,null,null,null,null,null,null,null,null,12,null,null,8,4,null,null,null,null,null,null,null,null,null,null,null,null,null,null,null,null,null,null,609960,{"$f":"VLOOKUP(M327,#REF!,2,TRUE)*(BR327/1000000)","v":{"$error":"#REF!"}},{"$f":"VLOOKUP(M327,#REF!,3,TRUE)*(BR327/1000000)","v":{"$error":"#REF!"}}]
["12-24-90",1990,"Comp Fulfilled","Kalispell Senior Apartments","320 Two Mile Drive","Kalispell",59901,null,null,"Flathead",0.09,"For-profit","New Const","Elderly",39,null,656960,null,null,null,null,null,"1992-06-08",null,"1992-06-08","2006-06-08",15,"2021-06-08","KALISPELL SENIOR","EDWARD MACKEY","PO BOX 6314","AUBURN","CA",95604,null,"530-823-9250",null,null,null,null,null,null,null,null,null,null,40,null,null,39,1,null,null,null,null,null,null,null,null,null,null,null,null,null,null,null,null,null,null,1822071,{"$f":"VLOOKUP(M328,#REF!,2,TRUE)*(BR328/1000000)","v":{"$error":"#REF!"}},{"$f":"VLOOKUP(M328,#REF!,3,TRUE)*(BR328/1000000)","v":{"$error":"#REF!"}}]
["12-26-89",1989,"Comp Fulfilled","Mcdonald Rental  compliance fulfilled","2340 Fairview","Missoula",59801,null,null,"Missoula",0.09,"For-profit","New Const","Family",4,null,85210,null,null,null,null,null,"1990-03-01",null,"1990-03-01","2004-03-01",null,null,"WILLIAM J & JUDITH D MCDONALD",null,"312 WESTVIEW DRIVE","MISSOULA","MT",59803,null,"406-728-5066 fax-406-721-1186",null,null,null,null,null,null,null,null,null,null,4,null,null,null,4,null,null,null,null,null,null,null,null,null,null,null,null,null,null,null,null,null,null,95000,{"$f":"VLOOKUP(M329,#REF!,2,TRUE)*(BR329/1000000)","v":{"$error":"#REF!"}},{"$f":"VLOOKUP(M329,#REF!,3,TRUE)*(BR329/1000000)","v":{"$error":"#REF!"}}]
["12-19-89",1989,"Comp Fulfilled","Centennial Apartments  compliance fulfilled","208 North 23Rd Street","Billings",59101,null,null,"Yellowstone",0.09,"For-profit","New Const","Elderly",9,null,264620,null,null,null,null,null,"1990-04-01",null,"1990-04-01","2004-04-01",null,null,"CENTENNIAL APARTMENTS LTD PARTNRSHP","DAN HICKEY","PO BOX 1496","BILLINGS","MT","59103-1496",null,"406-248-9399",null,null,null,null,null,null,null,null,null,null,9,null,null,6,3,null,null,null,null,null,null,null,null,null,null,null,null,null,null,null,null,null,null,345300,{"$f":"VLOOKUP(M330,#REF!,2,TRUE)*(BR330/1000000)","v":{"$error":"#REF!"}},{"$f":"VLOOKUP(M330,#REF!,3,TRUE)*(BR330/1000000)","v":{"$error":"#REF!"}}]
["12-14-89",1989,"Comp Fulfilled","Pattee Street Apartments  compliance fulfilled","315 Pattee Street","Missoula",59801,null,null,"Missoula",0.09,"For-profit","Rehab","Family",22,null,423390,null,null,null,null,null,"1989-06-01",null,"1989-06-01","2003-06-01",null,null,"THOMAS & ROSEMARY MOORE","ROBERT & MARY SKORNIAK","13025 NE 10TH ST","BELLEVUE","WA","98005-2604",null,"406-721-4311 Manager, Judith Skornogoski",null,null,null,null,null,null,null,null,null,null,22,null,6,6,10,null,null,null,null,null,null,null,null,null,null,null,null,null,null,null,null,null,null,459716,{"$f":"VLOOKUP(M331,#REF!,2,TRUE)*(BR331/1000000)","v":{"$error":"#REF!"}},{"$f":"VLOOKUP(M331,#REF!,3,TRUE)*(BR331/1000000)","v":{"$error":"#REF!"}}]
["12-19-89",1989,"Comp Fulfilled","Kennedy Rentals compliance fulfilled","1123,1125 Central Avenue","Great Falls",59401,null,null,"Cascade",0.09,"For-profit","Acq/Rehab","Family",7,null,46120,null,null,null,null,null,"1989-06-01",null,"1989-06-01","2003-06-01",null,null,"OLSON PROPERTIES LLC","CHUCK & PAULA OLSON","214 4TH ST SOUTHWEST","GREAT FALLS","MT",59404,null,"406-453-6166",null,null,null,null,null,null,null,null,null,null,7,null,1,2,3,1,null,null,null,null,null,null,null,null,null,null,null,null,null,null,null,null,null,237500,{"$f":"VLOOKUP(M332,#REF!,2,TRUE)*(BR332/1000000)","v":{"$error":"#REF!"}},{"$f":"VLOOKUP(M332,#REF!,3,TRUE)*(BR332/1000000)","v":{"$error":"#REF!"}}]
["12-06-89",1989,"Comp Fulfilled","Worstell Rentals compliance fulfilled","112,114,116 5Th Street 509,511 First Avenue","Havre",59501,null,null,"Hill",0.09,"For-profit","Acq/Rehab","Family",5,null,34000,null,null,null,null,null,"1989-12-01",null,"1989-12-01","2003-12-01",null,null,"RUBY WORSTELL",null,"1165 17th ST","HAVRE","MT",59501,null,"406-265-2146",null,null,null,null,null,null,null,null,null,null,5,null,null,null,1,4,null,null,null,null,null,null,null,null,null,null,null,null,null,null,null,null,null,75000,{"$f":"VLOOKUP(M333,#REF!,2,TRUE)*(BR333/1000000)","v":{"$error":"#REF!"}},{"$f":"VLOOKUP(M333,#REF!,3,TRUE)*(BR333/1000000)","v":{"$error":"#REF!"}}]
["10-23-89",1989,"Comp Fulfilled","Laurel Apartments compliance fulfilled","421 Yellowstone Avenue","Laurel",59044,null,null,"Yellowstone",0.09,"For-profit","Rehab","Elderly",8,null,90160,null,null,null,null,null,"1989-10-01",null,"1989-10-01","2003-10-01",null,null,"LAUREL APARTMENTS LP","DAN HICKEY","PO BOX 1496","BILLINGS","MT","59103-1496",null,"406-245-9998 fax-406-248-9399",null,null,null,null,null,null,null,null,null,null,8,null,null,8,null,null,null,null,null,null,null,null,null,null,null,null,null,null,null,null,null,null,null,273198,{"$f":"VLOOKUP(M334,#REF!,2,TRUE)*(BR334/1000000)","v":{"$error":"#REF!"}},{"$f":"VLOOKUP(M334,#REF!,3,TRUE)*(BR334/1000000)","v":{"$error":"#REF!"}}]
["12-01-89",1989,"Comp Fulfilled","Pioneer Apartments  compliance fulfilled","201 Main","Scoby",59263,null,null,"Daniels ",0.09,"For-profit","Rehab","Elderly",11,null,139800,null,null,null,null,null,"1990-12-01",null,"1990-12-01","2004-12-01",null,null,"PIONEER APTS LP","WALTER WARE","PO BOX 756","SCOBEY","MT","59263-0756",null,"406-487-5070  fax  406-487-5170",null,null,null,null,null,null,null,null,null,null,11,null,null,6,5,null,null,null,null,null,null,null,null,null,null,null,null,null,null,null,null,null,null,612000,{"$f":"VLOOKUP(M335,#REF!,2,TRUE)*(BR335/1000000)","v":{"$error":"#REF!"}},{"$f":"VLOOKUP(M335,#REF!,3,TRUE)*(BR335/1000000)","v":{"$error":"#REF!"}}]
["11-24-89",1989,"Comp Fulfilled","Franklin School compliance fulfilled","813 Second Avenue Sw","Great Falls",59401,null,null,"Cascade",0.09,"For-profit","Acq/Rehab","Family",39,null,2372090,null,null,null,null,null,"1991-12-01",null,"1991-12-01","2005-12-01",null,null,"BOSTON CAPITAL","DAN ELDER","165 ASPENWOOD DR","MORELAND HILLS","OH",44022,null,"Management 509-946-4000 Bos.Cap.617-439-0072 X161",null,null,null,null,null,null,null,null,null,null,38,null,null,null,null,38,null,null,null,null,null,null,null,null,null,null,null,null,null,null,null,null,null,3490015,{"$f":"VLOOKUP(M336,#REF!,2,TRUE)*(BR336/1000000)","v":{"$error":"#REF!"}},{"$f":"VLOOKUP(M336,#REF!,3,TRUE)*(BR336/1000000)","v":{"$error":"#REF!"}}]
["11-30-88",1988,"Comp Fulfilled","Hillside Apartments compliance fulfilled","411 Central Avenue Units 1-9","Plains",59859,null,null,"Sanders",0.09,"For-profit","New Const","Family",9,null,116000,null,null,null,null,null,"1988-11-01",null,"1988-11-01","2002-11-01",null,null,"EQUITY PROPERTY MANAGEMENT LTD","JERRY HAMLIN","900 N MONTANA STE A-4","HELENA","MT",59601,null,"406-443-1340 fax-406-443-7666",null,null,null,null,null,null,null,null,null,null,9,null,null,1,8,null,null,null,null,null,null,null,null,null,null,null,null,null,null,null,null,null,null,310923,{"$f":"VLOOKUP(M337,#REF!,2,TRUE)*(BR337/1000000)","v":{"$error":"#REF!"}},{"$f":"VLOOKUP(M337,#REF!,3,TRUE)*(BR337/1000000)","v":{"$error":"#REF!"}}]
["11-16-88",1988,"Comp Fulfilled","Canyon Villas compliance fulfilled","2201,2213 Choteau Street","Fort Benton",59422,null,null,"Chouteau",0.09,"For-profit","New Const","Family",10,null,139380,null,null,null,null,null,"1988-10-01",null,"1988-10-01","2002-10-01",null,null,"CANYON VILLAS LTD PARTNERSHIP","JOSEPH MUELLER","PO BOX 4545","HELENA ","MT",59601,null,"406-622-5018",null,null,null,null,null,null,null,null,null,null,10,null,null,4,6,null,null,null,null,null,null,null,null,null,null,null,null,null,null,null,null,null,null,355562,{"$f":"VLOOKUP(M338,#REF!,2,TRUE)*(BR338/1000000)","v":{"$error":"#REF!"}},{"$f":"VLOOKUP(M338,#REF!,3,TRUE)*(BR338/1000000)","v":{"$error":"#REF!"}}]
["10-17-88",1988,"Comp Fulfilled","Cherry Hill Village compliance fulfilled","100-1000 Cherry Hill Court","Polson",59860,null,null,"Lake",0.09,"For-profit","New Const","Family",54,null,856160,null,null,null,null,null,"1988-10-01",null,"1988-10-01","2002-10-01",null,null,"POLSON II LIMITED","SHIRLEE TIBBETTS","9425 PEACEFUL VALLEY RD","COLORADO SPRINGS","CO",80925,null,"719-382-8558",null,null,null,null,null,null,null,null,null,null,54,null,null,18,36,null,null,null,null,null,null,null,null,null,null,null,null,null,null,null,null,null,null,2173000,{"$f":"VLOOKUP(M339,#REF!,2,TRUE)*(BR339/1000000)","v":{"$error":"#REF!"}},{"$f":"VLOOKUP(M339,#REF!,3,TRUE)*(BR339/1000000)","v":{"$error":"#REF!"}}]
["08-03-88",1988,"Comp Fulfilled","Heritage Apartments compliance fulfilled","17 W Lamme","Bozeman",59715,null,null,"Gallatin",0.09,"For-profit","Acq/Rehab","Family",28,null,943830,null,null,null,null,null,"1988-06-01",null,"1988-06-01","2002-06-01",null,null,"FOUNDATION CAPITAL CORP","RICHARD A KLEIN","PO BOX 22006","BILLINGS","MT",59104,null,"406-259-7870   Site Manager 586-8560",null,null,null,null,null,null,null,null,null,null,28,null,null,1,21,6,null,null,null,null,null,null,null,null,null,null,null,null,null,null,null,null,null,1201288.8400000001,{"$f":"VLOOKUP(M340,#REF!,2,TRUE)*(BR340/1000000)","v":{"$error":"#REF!"}},{"$f":"VLOOKUP(M340,#REF!,3,TRUE)*(BR340/1000000)","v":{"$error":"#REF!"}}]
["07-15-88",1988,"Comp Fulfilled","Worstell Apartments compliance fulfilled","1423 7Th Avenue","Havre",59501,null,null,"Hill",0.09,"For-profit","Rehab","Family",1,null,9130,null,null,null,null,null,"1989-12-01",null,"1989-12-01","2003-12-01",null,null,"RUBY M WORSTELL",null,"1165 17th ST","HAVRE","MT",59501,null,"406-265-2146",null,null,null,null,null,null,null,null,null,null,1,null,null,1,null,null,null,null,null,null,null,null,null,null,null,null,null,null,null,null,null,null,null,12745,{"$f":"VLOOKUP(M341,#REF!,2,TRUE)*(BR341/1000000)","v":{"$error":"#REF!"}},{"$f":"VLOOKUP(M341,#REF!,3,TRUE)*(BR341/1000000)","v":{"$error":"#REF!"}}]
["12-29-87",1987,"Comp Fulfilled","Elmore  Roberts Hotel compliance fulfilled","520-526 Central Avenue","Great Falls",59403,null,null,"Cascade",0.09,"For-profit","Acq/Rehab","Family",60,null,2318260,null,null,null,null,null,"1987-12-01",null,"1987-12-01","2001-12-01",null,null,"OREGON-LANDMARK THREE, WHP HOLDINGS","ROBERT BLAIR","4936 RODMAN ST NW","WASHINGTON ","DC",20016,null,"202-364-0300",null,null,null,null,null,null,null,null,null,null,60,null,null,30,30,null,null,null,null,null,null,null,null,null,null,null,null,null,null,null,null,null,null,3168204,{"$f":"VLOOKUP(M342,#REF!,2,TRUE)*(BR342/1000000)","v":{"$error":"#REF!"}},{"$f":"VLOOKUP(M342,#REF!,3,TRUE)*(BR342/1000000)","v":{"$error":"#REF!"}}]
["12-29-87",1987,"Comp Fulfilled","Worstell Apartments compliance fulfilled","620,622 First Avenue","Havre",59501,null,null,"Hill",0.09,"For-profit","Acq/Rehab","Family",3,null,29580,null,null,null,null,null,"1987-12-01",null,"1987-12-01","2001-12-01",null,null,"CAMERON & RUBY WORSTELL",null,"1165 17th ST","HAVRE","MT",59501,null,"406-252-2146",null,null,null,null,null,null,null,null,null,null,3,null,null,1,1,null,1,null,null,null,null,null,null,null,null,null,null,null,null,null,null,null,null,77000,{"$f":"VLOOKUP(M343,#REF!,2,TRUE)*(BR343/1000000)","v":{"$error":"#REF!"}},{"$f":"VLOOKUP(M343,#REF!,3,TRUE)*(BR343/1000000)","v":{"$error":"#REF!"}}]
["12-29-87",1987,"Comp Fulfilled","Worstell Rentals compliance fulfilled","1427 1/2 4Th Street","Havre",59501,null,null,"Hill",0.09,"For-profit","Rehab","Family",1,null,3600,null,null,null,null,null,"1987-12-01",null,"1987-12-01","2001-12-01",null,null,"CAMERON & RUBY WORSTELL",null,"1165 17th ST","HAVRE","MT",59501,null,"406-252-2146",null,null,null,null,null,null,null,null,null,null,1,null,null,null,1,null,null,null,null,null,null,null,null,null,null,null,null,null,null,null,null,null,null,9000,{"$f":"VLOOKUP(M344,#REF!,2,TRUE)*(BR344/1000000)","v":{"$error":"#REF!"}},{"$f":"VLOOKUP(M344,#REF!,3,TRUE)*(BR344/1000000)","v":{"$error":"#REF!"}}]
["12-29-87",1987,"Comp Fulfilled","Worstell Apts compliance fulfilled","220, 222 11Th Street","Havre",59501,null,null,"Hill",0.09,"For-profit","Rehab","Family",2,null,12600,null,null,null,null,null,"1987-12-01",null,"1987-12-01","2001-12-01",null,null,"CAMERON & RUBY WORSTELL",null,"1165 17th ST","HAVRE","MT",59501,null,"406-265-2146",null,null,null,null,null,null,null,null,null,null,2,null,null,null,1,1,null,null,null,null,null,null,null,null,null,null,null,null,null,null,null,null,null,14000,{"$f":"VLOOKUP(M345,#REF!,2,TRUE)*(BR345/1000000)","v":{"$error":"#REF!"}},{"$f":"VLOOKUP(M345,#REF!,3,TRUE)*(BR345/1000000)","v":{"$error":"#REF!"}}]
["12-29-87",1987,"Comp Fulfilled","Morelli Rentals compliance fulfilled","508,508 1/2 4Th Ave","Havre",59501,null,null,"Hill",0.09,"For-profit","Rehab","Family",2,null,25200,null,null,null,null,null,"1987-12-01",null,"1987-12-01","2001-12-01",null,null,"ROBERT & BARBARA MORELLI",null,"950 BOULEVARD AVE","HAVRE","MT",59501,null,"406-265-6340",null,null,null,null,null,null,null,null,null,null,2,null,null,null,1,1,null,null,null,null,null,null,null,null,null,null,null,null,null,null,null,null,null,63000,{"$f":"VLOOKUP(M346,#REF!,2,TRUE)*(BR346/1000000)","v":{"$error":"#REF!"}},{"$f":"VLOOKUP(M346,#REF!,3,TRUE)*(BR346/1000000)","v":{"$error":"#REF!"}}]
["12-29-87",1987,"Comp Fulfilled","South Forty compliance fulfilled","769 Fallow Lane","Billings",59102,null,null,"Yellowstone",0.09,"For-profit","New Const","Elderly",100,null,3805200,null,null,null,null,null,"1987-12-01",null,"1987-12-01","2001-12-01",null,null,"PFI SOUTH FORTY LTD/ LENNAR AFFORDABLE","CAROL BARNETT","6420 SW MACADAM, SUITE 100","PORTLAND","OR",97201,null,"503-892-4646 fax-503-892-3636",null,null,null,null,null,null,null,null,null,null,100,null,null,100,null,null,null,null,null,null,null,null,null,null,null,null,null,null,null,null,null,null,null,4228000,{"$f":"VLOOKUP(M347,#REF!,2,TRUE)*(BR347/1000000)","v":{"$error":"#REF!"}},{"$f":"VLOOKUP(M347,#REF!,3,TRUE)*(BR347/1000000)","v":{"$error":"#REF!"}}]
[null,1987,"No Award","8Th Street West Apartments",null,"Whitefish",null,null,null,null,null,null,null,null,2,null,19520,null,null,null,null,null,null,null,null,null,null,null,null,null,null,null,null,null,null,null,null,null,null,null,null,null,null,null,null,null,null,null,null,null,null,null,null,null,null,null,null,null,null,null,null,null,null,null,null,null,null,null,null,21688.59]
[null,1987,"No Award","8Th Street West Apartments",null,"Whitefish",null,null,null,null,null,null,null,null,2,null,19520,null,null,null,null,null,null,null,null,null,null,null,null,null,null,null,null,null,null,null,null,null,null,null,null,null,null,null,null,null,null,null,null,null,null,null,null,null,null,null,null,null,null,null,null,null,null,null,null,null,null,null,null,21689]
[null,1988,"No Award","Tower Hill Apartments",null,"Helena",null,null,null,null,null,null,null,null,50,null,65560,null,null,null,null,null,null,null,null,null,null,null,null,null,null,null,null,null,null,null,null,null,null,null,null,null,null,null,null,null,null,null,null,null,null,null,null,null,null,null,null,null,null,null,null,null,null,null,null,null,null,null,null,72853]
[null,1988,"No Award","South Forty ",null,"Billings",null,null,null,null,null,null,null,null,"N/A",null,0,null,null,null,null,null,null,null,null,null,null,null,null,null,null,null,null,null,null,null,null,null,null,null,null,null,null,null,null,null,null,null,null,null,null,null,null,null,null,null,null,null,null,null,null,null,null,null,null,null,null,null,null,"N/A"]
[null,1989,"No Award","Burnt Fork Manor",null,"Stevensville",null,null,null,null,null,null,null,null,30,null,440330,null,null,null,null,null,null,null,null,null,null,null,null,null,null,null,null,null,null,null,null,null,null,null,null,null,null,null,null,null,null,null,null,null,null,null,null,null,null,null,null,null,null,null,null,null,null,null,null,null,null,null,null,{"$f":"513718+587107","v":1100825}]
[null,1992,"No Award","Warm Springs Apartments ",null,"Missoula",null,null,null,null,null,null,"New Constr",null,96,null,3989700,null,null,null,null,null,null,null,null,null,null,null,null,null,null,null,null,null,null,null,null,null,null,null,null,null,null,null,null,null,null,null,null,null,null,null,null,null,null,null,null,null,null,null,null,null,null,null,null,null,null,null,null,4433000]
[null,1993,"No Award","Coad 1",null,"Missoula",null,null,null,null,null,null,"New Constr",null,6,null,362790,null,null,null,null,null,null,null,null,null,null,null,null,null,null,null,null,null,null,null,null,null,null,null,null,null,null,null,null,null,null,null,null,null,null,null,null,null,null,null,null,null,null,null,null,null,null,null,null,null,null,null,null,403100]
[null,1993,"No Award","Coad 2",null,"Missoula",null,null,null,null,null,null,"New Constr",null,6,null,364590,null,null,null,null,null,null,null,null,null,null,null,null,null,null,null,null,null,null,null,null,null,null,null,null,null,null,null,null,null,null,null,null,null,null,null,null,null,null,null,null,null,null,null,null,null,null,null,null,null,null,null,null,405100]
[null,1993,"No Award","Coad 3",null,"Missoula",null,null,null,null,null,null,"New Constr",null,6,null,365490,null,null,null,null,null,null,null,null,null,null,null,null,null,null,null,null,null,null,null,null,null,null,null,null,null,null,null,null,null,null,null,null,null,null,null,null,null,null,null,null,null,null,null,null,null,null,null,null,null,null,null,null,406100]
[null,1994,"No Award","Sandhills Park Apartments",null,"Great Falls",null,null,null,null,null,null,"New Constr",null,48,null,2033940,null,null,null,null,null,null,null,null,null,null,null,null,null,null,null,null,null,null,null,null,null,null,null,null,null,null,null,null,null,null,null,null,null,null,null,null,null,null,null,null,null,null,null,null,null,null,null,null,null,null,null,null,2259934]
[null,1994,"No Award","Nhs Apartments",null,"Great Falls",null,null,null,null,null,null,"New Constr",null,20,null,1207620,null,null,null,null,null,null,null,null,null,null,null,null,null,null,null,null,null,null,null,null,null,null,null,null,null,null,null,null,null,null,null,null,null,null,null,null,null,null,null,null,null,null,null,null,null,null,null,null,null,null,null,null,1341795]
[null,1994,"No Award","Spring Meadow Apartments ",null,"Helena",null,null,null,null,null,null,"New Constr",null,7,null,221410,null,null,null,null,null,null,null,null,null,null,null,null,null,null,null,null,null,null,null,null,null,null,null,null,null,null,null,null,null,null,null,null,null,null,null,null,null,null,null,null,null,null,null,null,null,null,null,null,null,null,null,null,246012]
[null,1995,"No Award","Lake Elmo Apartments",null,"Billings",null,null,null,null,null,null,null,null,"N/A",null,0,null,null,null,null,null,null,null,null,null,null,null,null,null,null,null,null,null,null,null,null,null,null,null,null,null,null,null,null,null,null,null,null,null,null,null,null,null,null,null,null,null,null,null,null,null,null,null,null,null,null,null,null,"N/A"]
[null,1996,"No Award","Lodgebuilder Subdivision",null,"Browning",null,null,null,null,null,null,"New Constr",null,30,null,2616100,null,null,null,null,null,null,null,null,null,null,null,null,null,null,null,null,null,null,null,null,null,null,null,null,null,null,null,null,null,null,null,null,null,null,null,null,null,null,null,null,null,null,null,null,null,null,null,null,null,null,null,null,3240120]
[null,1996,"No Award","Headwater Apartmetns ",null,"Three Forks",null,null,null,null,null,null,"New Constr",null,null,null,930060,null,null,null,null,null,null,null,null,null,null,null,null,null,null,null,null,null,null,null,null,null,null,null,null,null,null,null,null,null,null,null,null,null,null,null,null,null,null,null,null,null,null,null,null,null,null,null,null,null,null,null,null,1033400]
[null,1997,"No Award","First Street Project",null,"Missoula",null,null,null,null,null,null,"New Constr",null,12,null,0,null,null,null,null,null,null,null,null,null,null,null,null,null,null,null,null,null,null,null,null,null,null,null,null,null,null,null,null,null,null,null,null,null,null,null,null,null,null,null,null,null,null,null,null,null,null,null,null,null,null,null,null,1186492]
[null,1997,"No Award","Parkside Apartments",null,"Hamilton",null,null,null,null,null,null,"New Constr",null,24,null,223160,null,null,null,null,null,null,null,null,null,null,null,null,null,null,null,null,null,null,null,null,null,null,null,null,null,null,null,null,null,null,null,null,null,null,null,null,null,null,null,null,null,null,null,null,null,null,null,null,null,null,null,null,797106]
[null,1997,"No Award","Cornerstone Apartments",null,"Hamilton",null,null,null,null,null,null,"New Constr",null,11,null,480400,null,null,null,null,null,null,null,null,null,null,null,null,null,null,null,null,null,null,null,null,null,null,null,null,null,null,null,null,null,null,null,null,null,null,null,null,null,null,null,null,null,null,null,null,null,null,null,null,null,null,null,null,618882]
[null,1997,"No Award","Pine Ridge Apartments",null,"Butte",null,null,null,null,null,null,"New Constr",null,36,null,1546650,null,null,null,null,null,null,null,null,null,null,null,null,null,null,null,null,null,null,null,null,null,null,null,null,null,null,null,null,null,null,null,null,null,null,null,null,null,null,null,null,null,null,null,null,null,null,null,null,null,null,null,null,1911885]
[null,1997,"No Award","Wildflower Apartments",null,"Big Sky",null,null,null,null,null,null,"New Constr",null,32,null,1672930,null,null,null,null,null,null,null,null,null,null,null,null,null,null,null,null,null,null,null,null,null,null,null,null,null,null,null,null,null,null,null,null,null,null,null,null,null,null,null,null,null,null,null,null,null,null,null,null,null,null,null,null,2110655]
[null,1997,"No Award","Beartooth Apartments ",null,"Red Lodge",null,null,null,null,null,null,"New Constr",null,32,null,1333810,null,null,null,null,null,null,null,null,null,null,null,null,null,null,null,null,null,null,null,null,null,null,null,null,null,null,null,null,null,null,null,null,null,null,null,null,null,null,null,null,null,null,null,null,null,null,null,null,null,null,null,null,1731869]
[null,1997,"No Award","The College Homes ",null,"Browning",null,null,null,null,null,null,"New Constr",null,28,null,2675000,null,null,null,null,null,null,null,null,null,null,null,null,null,null,null,null,null,null,null,null,null,null,null,null,null,null,null,null,null,null,null,null,null,null,null,null,null,null,null,null,null,null,null,null,null,null,null,null,null,null,null,null,2606164]
[null,1998,"No Award","Custer Villa Apartments",null,"Miles City",null,null,null,null,null,null,"Acq/Rehab",null,31,null,2300000,null,null,null,null,null,null,null,null,null,null,null,null,null,null,null,null,null,null,null,null,null,null,null,null,null,null,null,null,null,null,null,null,null,null,null,null,null,null,null,null,null,null,null,null,null,null,null,null,null,null,null,null,"N/A"]
[null,1998,"No Award","Central Court Village",null,"Billings",null,null,null,null,null,null,"New Constr",null,92,null,4180990,null,null,null,null,null,null,null,null,null,null,null,null,null,null,null,null,null,null,null,null,null,null,null,null,null,null,null,null,null,null,null,null,null,null,null,null,null,null,null,null,null,null,null,null,null,null,null,null,null,null,null,null,6060575]
[null,1998,"No Award","Vista Terrace At Marketplace",null,"Great Falls",null,null,null,null,null,null,"New Constr",null,35,null,4180990,null,null,null,null,null,null,null,null,null,null,null,null,null,null,null,null,null,null,null,null,null,null,null,null,null,null,null,null,null,null,null,null,null,null,null,null,null,null,null,null,null,null,null,null,null,null,null,null,null,null,null,null,6342447]
[null,1999,"No Award","St Andrews Apartments",null,"Anaconda",null,null,null,null,null,null,"New Constr",null,56,null,2747040]
[null,1999,"No Award","Russell Square Apartments",null,"Missoula",null,null,null,null,null,null,"New Constr",null,56,null,2700000]
[null,1999,"No Award","Cottonwood Apartments",null,"Billings",null,null,null,null,null,null,"New Constr",null,50,null,2724300]
[null,1999,"No Award","Cheyenne Homes Phase Ii",null,"Lame Deer",null,null,null,null,null,null,"New Constr",null,20,null,2308500]
[null,1999,"No Award","St Andrews Apartments",null,"Anaconda",null,null,null,null,null,null,"New Constr",null,53,null,811150]
[null,1999,"No Award","Mountain Apartments",null,"Whitefish",null,null,null,null,null,null,"New Constr",null,15,null,0]
[null,1999,"No Award","Pemberton Heights ",null,"Billings",null,null,null,null,null,null,"New Constr",null,41,null,2741740]
[null,2000,"No Award","Acre Lawn Apartments",null,"Ronan",null,null,null,null,null,null,"New Constr",null,8,null,700000]
[null,2000,"No Award","Shoulder Blade Complex",null,"Lame Deer",null,null,null,null,null,null,"Acq/Rehab",null,null,null,2663040]
[null,2000,"No Award","College Apartments Pase Iii",null,"Bozeman",null,null,null,null,null,null,"New Constr",null,28,null,2507300]
[null,2000,"No Award","Atherton Phase Ii",null,"Butte",null,null,null,null,null,null,"New Constr",null,56,null,2756310]
[null,2000,"No Award","Mountain Apartmetns ",null,"Billings",null,null,null,null,null,null,"New Constr",null,30,null,1642370]
[null,2000,"No Award","Vista Terrace",null,"Great Falls",null,null,null,null,null,null,"New Constr",null,51,null,2751420]
[null,2000,"No Award","Pemberton Heights ",null,"Billings ",null,null,null,null,null,null,"New Constr",null,41,null,2750000]
[null,2000,"No Award","Cottonwoods Apartments Phase Ii",null,"Billings",null,null,null,null,null,null,"New Constr",null,50,null,2751420]
[null,2001,"No Award","Meadowood Apartments",null,"Laurel",null,null,null,null,null,null,"New Constr",null,32,null,1679290]
[null,2001,"No Award","Vista Terrace",null,"Great Falls",null,null,null,null,null,null,"New Constr",null,51,null,2854550]
[null,2001,"No Award","Antelope Terrace",null,"Billings",null,null,null,null,null,null,"New Constr",null,60,null,3951410]
[null,2002,"No Award","Boundary Street Acq/Rehabiliataion Project ",null,"Browning",null,null,null,null,null,null,"Acq/Rehab",null,50,null,4173410]
[null,2002,"No Award","Snowcrest Apartments ",null,"Dillon",null,null,null,null,null,null,"New Constr",null,25,null,1923920]
[null,2003,"No Award","Chippewa Cree Homes I",null,"Box Elder",null,null,null,null,null,null,"Acq/Rehab",null,31,null,2522950]
[null,2003,"No Award","Georgetown Commons Project",null,"Anaconda",null,null,null,null,null,null,"New Constr",null,31,null,2482530]
[null,2003,"No Award","Big Boulder ",null,"Boulder",null,null,null,null,null,null,"Acq/Rehab",null,36,null,2056220]
[null,2003,"No Award","Providence Square Project",null,"Missoula",null,null,null,null,null,null,"New Constr",null,54,null,5074100]
[null,2003,"No Award","Snowcrest Apartments",null,"Dillon",null,null,null,null,null,null,"New Constr",null,31,null,2510220]
[null,2003,"No Award","Hathaway Court Apartments",null,"Stevensville",null,null,null,null,null,null,"New Constr",null,36,null,3600000]
[null,2003,"No Award","Hathaway Court Apartments",null,"Stevensville",null,null,null,null,null,null,"New Constr",null,18,null,1905310]
[null,2003,"No Award","Wilder Avenue",null,"Helena",null,null,null,null,null,null,"New Constr",null,31,null,1900000]
[null,2004,"No Award","Snowcrest Ii Apartments",null,"Dillon",null,null,null,null,null,null,"New Constr",null,8,null,764440]
[null,2004,"No Award","The Taylor Meade Apartments ",null,"Plains",null,null,null,null,null,null,"New Constr",null,31,null,2429740]
[null,2004,"No Award","Bitterroot Commons Iii",null,"Darby",null,null,null,null,null,null,"New Constr",null,8,null,940000]
[null,2004,"No Award","Mountain View Ii Apartments ",null,"Hamilton",null,null,null,null,null,null,"New Constr",null,32,null,3500000]
[null,2004,"No Award","Pemberton Park",null,"Billings",null,null,null,null,null,null,"New Constr",null,51,null,3391760]
[null,2005,"No Award","Nicole Court Phase Ii",null,"Stevensville",null,null,null,null,null,null,null,null,8,null,1000000]
[null,2005,"No Award","Union Place Ii",null,"Missoula",null,null,null,null,null,null,null,null,30,null,4310970]
[null,2005,"No Award","Mission Mountain Manor",null,"Ronan",null,null,null,null,null,null,null,null,"N/A",null,4657250]
[null,2005,"No Award","Taylor Meade Apartments",null,"Plains",null,null,null,null,null,null,null,null,"N/A",null,2429740]
[null,2006,"No Award","Legacy Square Project",null,"Glasgow",null,null,null,null,null,null,null,null,"N/A",null,0]
[null,2006,"No Award","Ronan Senior Living Project",null,"Ronan",null,null,null,null,null,null,"N/A",null,null,null,0]
[null,2006,"No Award","Sage Tower Apartments",null,"Billings",null,null,null,null,null,null,"Acq/Rehab",null,null,null,0]
[null,2007,"No Award","Coachman Apartments",null,"Whitehall",null,null,null,null,null,null,"Acq/Rehab",null,16,null,709390]
[null,2007,"No Award","Spring Manor ",null,"White Sulphur Springs",null,null,null,null,null,null,"Acq/Rehab",null,8,null,582390]
[null,2007,"No Award","Plum Tree Apartments ",null,"Shelby",null,null,null,null,null,null,"Acq/Rehab",null,12,null,622230]
[null,2007,"No Award","Garden District",null,"Missoula",null,null,null,null,null,null,"New Constr",null,36,null,5481930]
[null,2007,"No Award","Chippewa Cree",null,"Box Elder",null,null,null,null,null,null,"New Constr",null,24,null,4666300]
[null,2007,"No Award","Hailey II Apartments",null,"Whitefish",null,null,null,null,null,null,"New Constr",null,20,null,3639340]
[null,2007,"No Award","Lincoln Springs",null,"Billings",null,null,null,null,null,null,"New Constr",null,45,null,5680000]
[null,2007,"No Award","Montrose Apartments",null,"Butte",null,null,null,null,null,null,"New Constr",null,47,null,3684020]
[null,2007,"No Award","Mountain View III",null,"Hamilton",null,null,null,null,null,null,"New Constr",null,46,null,5687500]
[null,2007,"No Award","Treasure Manor",null,"Libby",null,null,null,null,null,null,"Acq/Rehab",null,32,null,2465760]
[null,2008,"No Award","Fort Belknap Project - Harlem",null,"Harlem",null,null,null,null,null,null,"N/A",null,"N/A",null,5234900]
[null,2008,"No Award","Fort Peck Project",null,"Poplar",null,null,null,null,null,null,"N/A",null,"N/A",null,2900120]
[null,2008,"No Award","Pointe At Somers",null,{"$error":"#VALUE!"},null,null,null,null,null,null,"New Constr",null,"N/A",null,5812500]
[null,2009,"No Award","Mid Town Residence",null,"Helena",null,null,null,null,null,null,"New Constr",null,"60-90",null,8835000]
[null,2009,"No Award","Lolo Vista Apartments",null,"Lolo",null,null,null,null,null,null,"New Constr",null,40,null,6035710]
[null,2010,"No Award","Palace Apartments",null,"Missoula",null,null,null,null,null,null,"Acq/Rehab",null,60,null,4200000]
[null,2011,"No Award","Aspen Place",null,"Missoula",null,null,null,null,null,null,"New Constr",null,36,null,4217523]
[null,2011,"No Award","Hyalite Apartments",null,"Bozeman",null,null,null,null,null,null,"New Constr",null,42,null,6162500]
[null,2011,"No Award","Eagles Manor Apartments",null,"Great Falls",null,null,null,null,null,null,"Acq/Rehab",null,129,null,5144160]
[null,2011,"No Award","Element 54 - Withdrawn",null,"Kalispell",null,null,null,null,null,null,"New Constr",null,0,null,6118540]
[null,2012,"No Award","North Stone Residence",null,"Helena",null,null,null,null,null,null,"New Constr",null,30,null,6312500]
[null,2012,"No Award","The Haven Homes",null,"Missoula",null,null,null,null,null,null,"New Constr",null,4,null,125000]
[null,2012,"No Award","Hillview Apartments",null,"Havre",null,null,null,null,null,null,"Acq/Rehab",null,52,null,5637150]
[null,2012,"No Award","Stoneridge Apartments ",null,"Bozeman",null,null,null,null,null,null,"New Constr",null,40,null,6312500]
[null,2012,"No Award","Aspen Place",null,"Missoula",null,null,null,null,null,null,"Acq/Rehab",null,36,null,5500000]
[null,2012,"No Award","Deer Park Apartments",null,"Dillon",null,null,null,null,null,null,"New Constr",null,24,null,4576830]
[null,2012,"No Award","Freedoms Path",null,"Helena",null,null,null,null,null,null,"Acq/Rehab",null,40,null,6293520]
[null,2012,"No Award","Red Fox Apartments",null,"Billings ",null,null,null,null,null,null,"New Constr",null,30,null,5596780]
[null,2012,"No Award","Courtyards Apartments",null,"Kalispell",null,null,null,null,null,null,"Acq/Rehab",null,22,null,5392640]
[null,2013,"No Award","North Evergreen Village",null,"Kalispell",null,null,null,null,null,null,"New Constr",null,15,null,2580000]
[null,2013,"No Award","Clark Fork Apartments",null,"Missoula",null,null,null,null,null,null,"New Constr",null,11,null,6475000]
[null,2013,"No Award","Red Fox Apartments",null,"Billings",null,null,null,null,null,null,"New Constr",null,30,null,6429860]
[null,2013,"No Award","North Shore Residences",null,"Helena",null,null,null,null,null,null,"New Constr",null,30,null,6475000]
[null,2013,"No Award","Pearson Place",null,"Glendive",null,null,null,null,null,null,"New Constr",null,27,null,5233000]
[null,2013,"No Award","Cascade Ridge Ii",null,"Great Falls",null,null,null,null,null,null,"New Constr",null,16,null,2699540]
[null,2013,"No Award","Sunset Village Apartments",null,"Sidney",null,null,null,null,null,null,"New Constr",null,36,null,5949940]
[null,2013,"No Award","Voyager Ii",null,"Great Falls",null,null,null,null,null,null,"New Constr",null,37,null,6475000]
[null,2014,"No Award","River Ridge Apartments",null,"Missoula",null,null,null,null,null,null,"Acq/Rehab",null,70,null,4717610]
[null,2014,"No Award","Red Fox Apartments","x","Billings",null,null,null,null,null,null,"New Constr",null,30,null,3953980]
[null,2014,"No Award","Freedoms Path",null,"Helena",null,null,null,null,null,null,"New Constr",null,36,null,5946470]
[null,2014,"No Award","Stoneridge Apartments",null,"Bozeman",null,null,null,null,null,null,"New Constr",null,48,null,6475000]
[null,2014,"No Award","Gallatin Forks",null,"Manhattan",null,null,null,null,null,null,"New Constr",null,16,null,2281560]
[null,2014,"No Award","Aspen Place",null,"Missoula",null,null,null,null,null,null,"New Constr",null,36,null,3060100]
[null,2014,"No Award","Buffalo Court",null,"Havre",null,null,null,null,null,null,"New Constr",null,24,null,3751490]
[null,2014,"No Award","N Evergreen Village",null,"Kalispell",null,null,null,null,null,null,"New Constr",null,15,null,1892250]
[null,2015,"No Award","Stower Commons",null,"Miles City",null,null,null,null,null,null,null,null,30,null,6100000]
[null,2015,"No Award","Big Sky Villas",null,"Belgrade",null,null,null,null,null,null,"Acq/Rehab",null,24,null,1700000]
[null,2015,"No Award","Homestead Lodge",null,"Absarokee",null,null,null,null,null,null,"Acq/Rehab",null,32,null,2590000]
[null,2015,"No Award","Valley Villas",null,"Hamilton",null,null,null,null,null,null,"Acq/Rehab",null,34,null,2560000]
[null,2015,"No Award","Immanuel Lutheran Aff Living",null,"Kalispell",null,null,null,null,null,null,"New Constr",null,40,null,5599130]
[null,2015,"No Award","Polson Senior",null,"Polson",null,null,null,null,null,null,"New Constr",null,32,null,5465180]
[null,2015,"No Award","Red Fox",null,"Billings",null,null,null,null,null,null,"New Constr",null,30,null,3953980]
[null,2015,"No Award","Southern Lights",null,"Billings",null,null,null,null,null,null,"Rehab",null,20,null,3500000]
[null,2015,"No Award","Story Mill",null,"Bozeman",null,null,null,null,null,null,"New Constr",null,26,null,3500000]
[null,2016,"No Award","Noblehomestead",null,"Pablo",null,null,null,null,null,null,"New Constr",null,24,null,2680000]
[null,2016,"No Award","Gateway Vista",null,"Billings ",null,null,null,null,null,null,"New Constr",null,27,null,4157760]
[null,2016,"No Award","Rose Park ",null,"Bozeman",null,null,null,null,null,null,"New Constr",null,42,null,6587500]
[null,2016,"No Award","Blackfeet Vi",null,"Browning",null,null,null,null,null,null,"New Constr",null,30,null,6623400]
[null,2016,"No Award","Aspen Iii",null,"Butte",null,null,null,null,null,null,"New Constr",null,32,null,5185610]
[null,2016,"No Award","Timber Meadows",null,"Kalispell",null,null,null,null,null,null,"New Constr",null,40,null,6700000]
[null,2016,"No Award","Meadows Senior",null,"Lewistown",null,null,null,null,null,null,"Acq/Rehab",null,35,null,3533810]
[null,2016,"No Award","Stower Commons",null,"Miles City",null,null,null,null,null,null,"New Constr",null,24,null,4450000]
[null,2016,"No Award","Polson Landing ",null,"Polson",null,null,null,null,null,null,"New Constr",null,40,null,6150000]
[null,2016,"No Award","Nicole Court",null,"Stevensville",null,null,null,null,null,null,"New Constr",null,16,null,3315820]
[null,2016,"No Award","Riverview Meadows ",null,"Whitefish",null,null,null,null,null,null,"New Constr",null,36,null,6700000]
[null,2016,"No Award","Courtyard",null,"Kalispell",null,null,null,null,null,null,"Acq/Rehab",null,32,null,3829270]
[null,2016,"No Award","Sweetgrass Commons ",null,"Missoula",null,null,null,null,null,null,"New Constr",null,26,null,3306100]
[null,2016,"No Award","Trapper Peak",null,"Hamilton",null,null,null,null,null,null,"New Constr",null,15,null,2600000]
[null,2016,"No Award","Glasgow Apts",null,"Glasgow",null,null,null,null,null,null,"New Constr",null,16,null,2589480]
[null,2016,"No Award","Missoula Senior",null,"Missoula",null,null,null,null,null,null,"New Constr",null,61,null,6700000]
[null,2016,"No Award","River Ridge",null,"Missoula",null,null,null,null,null,null,"New Constr",null,70,null,954210]
[null,2016,"No Award","Southern Lights",null,"Billings ",null,null,null,null,null,null,"Rehab",null,20,null,3500000]
[null,2017,"No Award","Livingston Memorial Hospital- Tbd",null,"Livingston",null,null,null,"Park",null,"Non-Profit",null,"Family",32,null,5840000]
[null,2017,"No Award","Aspen Place Iii",null,"Butte",null,null,null,"Silver Bow",null,"Non-Profit",null,"Family",32,null,4667180]
[null,2017,"No Award","Meadows Senior Apartments",null,"Lewiston",null,null,null,"Fergus ",null,"Non-Profit",null,"Senior",35,null,3506510]
[null,2017,"No Award","Noblehomestead",null,"Pablo",null,null,null,"Lake",null,"Non-Profit",null,"Family",20,null,2600000]
[null,2017,"No Award","Cut Bank Villas",null,"Cut Bank",null,null,null,"Glacier",null,"For-Profit",null,"Senior",19,null,2680000]
[null,2017,"No Award","Nicole Court Senior",null,"Stevensville",null,null,null,"Ravalli",null,"Non-Profit",null,"Senior",16,null,3510000]
[null,2017,"No Award","American Square",null,"Missoula",null,null,null,"Missoula",null,"For-Profit",null,"Senior",54,null,6500000]
[null,2017,"No Award","North Stone Residences",null,"Helena",null,null,null,"Lewis and Clark",null,"Non-Profit",null,"Senior",24,null,4747500]
[null,2017,"No Award","Gallatin Forks Senior Living",null,"Bozeman",null,null,null,"Gallatin",null,"For-Profit",null,"Senior",42,null,6587500]
[null,2017,"No Award","Old Joe",null,"Missoula",null,null,null,"Missoula",null,"Non-Profit",null,"Family",20,null,4095000]
[null,2017,"No Award","Missoula 4%/9%",null,"Missoula",null,null,null,"Missoula",null,"Non-Profit",null,"Senior",30,null,4400000]
[null,2017,"No Award","Evergreen Commons",null,"Evergreen",null,null,null,"Flathead",null,"For-Profit",null,"Family",24,null,4220000]
[null,2017,"No Award","Alpine View Apartments",null,"Columbia Falls",null,null,null,"Flathead",null,"For-Profit",null,"Family",24,null,4275000]
[null,2017,"No Award","Courtyard Apartments",null,"Kalispell",null,null,null,"Flathead",null,"Non-Profit",null,"Family",32,null,4175500]
[null,2018,"No Award","Fort Peck 4",null,"Poplar/Wolf Point",null,null,null,"Roosevelt",null,"Tribal","New Const","Senior",1,null,6353650,null,null,null,null,null,null,null,null,null,null,null,"Ft. Peck Hsg Auth"]
[null,2018,"No Award","Creekside Commons",null,"Kalispell",null,null,null,"Flathead",null,"For-Profit","New Const","Senior",3,null,6150000,null,null,null,null,null,null,null,null,null,null,null,"Housing Solutions"]
[null,2018,"No Award","Cut Bank Villas",null,"Cut Bank",null,null,null,"Glacier",null,"For-Profit","Acq/Rehab","Senior",19,null,2710000,null,null,null,null,null,null,null,null,null,null,null,"Echo Enterprises"]
[null,2018,"No Award","Nicole Court",null,"Stevensville",null,null,null,"Ravalli",null,"Non-Profit","New Const","Senior",16,null,3387500,null,null,null,null,null,null,null,null,null,null,null,"HRC Cottages, Inc"]
[null,2018,"No Award","Timber Ridge Apts",null,"Bozeman",null,null,null,"Gallatin",null,"For-Profit","New Const","Senior",32,null,6775000,null,null,null,null,null,null,null,null,null,null,null,"Summit Housing"]
[null,2018,"No Award","Evergreen Commons",null,"Evergreen",null,null,null,"Flathead",null,"For-Profit","New Const","Family",24,null,5300000,null,null,null,null,null,null,null,null,null,null,null,"Housing Solutions"]
[null,2018,"No Award","Homestead Lodge",null,"Absarokee",null,null,null,"Stillwater",null,"Non-Profit","Acq/Rehab","Senior",32,null,4053451,null,null,null,null,null,null,null,null,null,null,null,"Syringa Housing"]
[null,2018,"No Award","Nemont Manor",null,"Glasgow",null,null,null,"Valley",null,"Non-profit","Acq/Rehab","Senior",100,null,6775000,null,null,null,null,null,null,null,null,null,null,null,"Affiliated Developers"]
[null,2018,"No Award","Alpine View",null,"Columbia Falls",null,null,null,"Flathead",null,"For-Profit","New Const","Family",24,null,5425000,null,null,null,null,null,null,null,null,null,null,null,"Housing Solutions,"]
[null,2018,"No Award","Whitefish Family Apts",null,"Whitefish",null,null,null,"Flathead",null,"For-Profit","New Const","Family",27,null,6084440,null,null,null,null,null,null,null,null,null,null,null,"Commonwealth Dev"]
[null,2018,"No Award","North Stone Residences",null,"Helena",null,null,null,"Lewis and Clark",null,"Non-Profit","New Const","Senior",35,null,6667000,null,null,null,null,null,null,null,null,null,null,null,"RMDC and CR Bldrs"]
[null,2018,"No Award","Crow Creek Apartments",null,"Townsend",null,null,null,"Broadwater",null,"For-Profit","New Const","Family",20,null,3700000,null,null,null,null,null,null,null,null,null,null,null,"Echo Enterprises"]
[null,2019,"No Award","Skyview 9",null,"Missoula",null,null,null,"Missoula",null,"For-Profit","New","Senior",41,null,7644550,null,null,null,null,null,null,null,null,null,null,null,"Housing Solutions / CR Bldrs","Alex Burkhalter","PO Box 2099","Missoula","MT",59806,"alex@housing-solutions.org",4062031558]
[null,2019,"No Award","Homestead Lodge",null,"Absarokee",null,null,null,"Stillwater",null,"Non-Profit","Acq/Rehab","Senior",32,null,3846270,null,null,null,null,null,null,null,null,null,null,null,"Syringa Housing ","Taylor Hunt","1277 Shoreline Lane","Boise","ID",83702,"taylorh@syringaproperties.com",2083364610]
[null,2019,"No Award","Blackfeet Homes Vii (Withdrawn)",null,"Browning",null,null,null,"Glacier",null,"Tribal","New","Family",30,null,6775000,null,null,null,null,null,null,null,null,null,null,null,"Blackfeet Housing","Chancy Kittson","PO Box 449","Browning","MT",59417,"chancy@blackfeethousing.org",4063385031]
[null,2019,"No Award","Cut Bank Villas",null,"Cut Bank ",null,null,null,"Glacier",null,"For-Profit","Acq/Rehab","Senior",19,null,3207454,null,null,null,null,null,null,null,null,null,null,null,"Echo Enterprises","Beki Brandborg","4835 Echo Drive","Helena","MT",59602,"beki@montana.com",4064312151]
[null,2019,"No Award","Nemont Manor",null,"Glasgow",null,null,null,"Valley",null,"Non-Profit","Acq/Rehab","Senior",100,null,3299063,null,null,null,null,null,null,null,null,null,null,null,"Affiliated Developers,","Kirk Bruce","PO Box 725378","Berkley","MI",48072,"kirk@a-developers.com",2485252516]
[null,2019,"No Award","Eagles Manor",null,"Havre",null,null,null,"Hill",null,"Non-Profit","Acq/Rehab","Family",91,null,3299063,null,null,null,null,null,null,null,null,null,null,null,"Affiliated Developers","Kirk Bruce","PO Box 725378","Berkley","MI",48072,"kirk@a-developers.com",2485252516]
[null,2019,"No Award","Nicole Court",null,"Stevensville",null,null,null,"Ravalli",null,"Non-Profit","New","Senior",16,null,3450000,null,null,null,null,null,null,null,null,null,null,null,"HRC Development","Jim Morton","1801 South Higgins Ave","Missoula","MT",59801,"jpm@hrcxi.org",4067283710]
[null,2019,"No Award","Heron Flats",null,"Missoula",null,null,null,"Missoula",null,"For-Profit","New","Family",36,null,7061630,null,null,null,null,null,null,null,null,null,null,null,"MHA & Bouchee Dev","Mike Bouchee","131 S Higgins","Missoula","MT",59808,"mike@boucheedevelopment.com",4062141618]
[null,2019,"No Award","Third St Commons",null,"Great Falls",null,null,null,"Cascade",null,"Non-Profit","New","Family",46,null,6775000,null,null,null,null,null,null,null,null,null,null,null,"NWGF Development","Neil Fortier","509 1st Ave S","Great Falls","MT",59401,"nfortier@nwgf.org",4067615861]
[null,2019,"No Award","Timber Ridge",null,"Bozeman",null,null,null,"Gallatin",null,"For-Profit","New","Senior",40,null,7762500,null,null,null,null,null,null,null,null,null,null,null,"Summit Housing ","Rusty Snow","283 W Front St","Missoula","MT",59802,"Rusty@SummitHousingGroup.com",4065410999]
[null,2019,"No Award","Creekside Commons",null,"Kalispell",null,null,null,"Flathead",null,"For-Profit","New","Senior",42,null,6150000,null,null,null,null,null,null,null,null,null,null,null,"Housing Solutions","Alex Burkhalter","PO Box 2099","Missoula","MT",59806,"alex@housing-solutions.org",4062031558]
[null,2019,"No Award","Pioneer Meadows",null,"Dillon",null,null,null,"Beaverhead",null,"Non-Profit","New","Family",28,null,6976862,null,null,null,null,null,null,null,null,null,null,null,"The Housing Co","Blake Jumper","565 W Myrtle St Ste 250","Boise","ID",83702,"blake@ihfa.org",2083314765]
[null,2020,"No Award","Paxson Place",null,"Butte",59701,null,null,"Silver Bow",0.09,"For-Profit","New Const","Senior",36,null,6150000,5319218,null,null,null,null,null,null,null,null,null,null,"Housing Solutions","Alex Burkhalter","PO Box 2099","Missoula","MT",59806,"alex@housing-solutions.org",4062031558,null,null,null,null,null,null,null,null,null,null,null,null,null,null,null,null,null,null,null,null,null,null,null,null,null,null,null,null,null,null,null,null,null,6344437,{"$f":"VLOOKUP(M523,#REF!,2,TRUE)*(BR523/1000000)","v":{"$error":"#REF!"}},{"$f":"VLOOKUP(M523,#REF!,3,TRUE)*(BR523/1000000)","v":{"$error":"#REF!"}}]
[null,2020,"No Award","Hardin Senior Hsing",null,"Hardin",59034,null,null,"Big Horn",0.09,"Non-Profit","Acq/Rehab","Senior",24,null,3584210,2859665,null,null,null,null,null,null,null,null,null,null,"American Covenant Sr Hsing","Gerald Fritts","234 Shelter Valley Dr","Kalispell","MT",59901,"gmf@acshf.com",4062356593,null,null,null,null,null,null,null,null,null,null,null,null,null,null,null,null,null,null,null,null,null,null,null,null,null,null,null,null,null,null,null,null,null,4112665,{"$f":"VLOOKUP(M524,#REF!,2,TRUE)*(BR524/1000000)","v":{"$error":"#REF!"}},{"$f":"VLOOKUP(M524,#REF!,3,TRUE)*(BR524/1000000)","v":{"$error":"#REF!"}}]
[null,2020,"No Award","Ouellette Place II",null,"Lewistown",59457,null,null,"Fergus",0.09,"Non-Profit","New Const","Family",12,null,2950000,2507500,null,null,null,null,null,null,null,null,null,null,"Homeword, Inc.","Heather McMilan","1535 Liberty Ln","Missoula","MT",59808,"heather@homeword.org",4065324663,null,null,null,null,null,null,null,null,null,null,null,null,null,null,null,null,null,null,null,null,null,null,null,null,null,null,null,null,null,null,null,null,null,2876238,{"$f":"VLOOKUP(M525,#REF!,2,TRUE)*(BR525/1000000)","v":{"$error":"#REF!"}},{"$f":"VLOOKUP(M525,#REF!,3,TRUE)*(BR525/1000000)","v":{"$error":"#REF!"}}]
[null,2020,"No Award","Boulevards Apts",null,"Bozeman",59718,null,null,"Gallatin",0.09,"Non-Profit","Acq/Rehab","Family",41,null,6300000,5544000,null,null,null,null,null,null,null,null,null,null,"HRDC IX / GL Dev","Gene Leuwer","1601 Jerome Place","Helena","MT",59601,"gleuwer1139@msn.com",4064595332,null,null,null,null,null,null,null,null,null,null,null,null,null,null,null,null,null,null,null,null,null,null,null,null,null,null,null,null,null,null,null,null,null,9840000,{"$f":"VLOOKUP(M526,#REF!,2,TRUE)*(BR526/1000000)","v":{"$error":"#REF!"}},{"$f":"VLOOKUP(M526,#REF!,3,TRUE)*(BR526/1000000)","v":{"$error":"#REF!"}}]
[null,2020,"No Award","Culver Place",null,"Manhattan",59741,null,null,"Gallatin",0.09,"For-Profit","New Const","Family",23,null,4870000,4211708,null,null,null,null,null,null,null,null,null,null,"Housing Solutions","Alex Burkhalter","PO Box 2099","Missoula","MT",59806,"alex@housing-solutions.org",4062031558,null,null,null,null,null,null,null,null,null,null,null,null,null,null,null,null,null,null,null,null,null,null,null,null,null,null,null,null,null,null,null,null,null,5041914,{"$f":"VLOOKUP(M527,#REF!,2,TRUE)*(BR527/1000000)","v":{"$error":"#REF!"}},{"$f":"VLOOKUP(M527,#REF!,3,TRUE)*(BR527/1000000)","v":{"$error":"#REF!"}}]
[null,2020,"No Award","Valley View Apts",null,"Helena",59601,null,null,"Lewis and Clark",0.09,"For-Profit","New Const","Senior",36,null,6050000,5232727,null,null,null,null,null,null,null,null,null,null,"Housing Solutions","Alex Burkhalter","PO Box 2099","Missoula","MT",59806,"alex@housing-solutions.org",4062031558,null,null,null,null,null,null,null,null,null,null,null,null,null,null,null,null,null,null,null,null,null,null,null,null,null,null,null,null,null,null,null,null,null,6363667,{"$f":"VLOOKUP(M528,#REF!,2,TRUE)*(BR528/1000000)","v":{"$error":"#REF!"}},{"$f":"VLOOKUP(M528,#REF!,3,TRUE)*(BR528/1000000)","v":{"$error":"#REF!"}}]
[null,2020,"No Award","Pullman Apts",null,"Laurel",59044,null,null,"Yellowstone",0.09,"For-Profit","New Const","Family",30,null,6125000,5297065,null,null,null,null,null,null,null,null,null,null,"Housing Solutions","Alex Burkhalter","PO Box 2099","Missoula","MT",59806,"alex@housing-solutions.org",4062031558,null,null,null,null,null,null,null,null,null,null,null,null,null,null,null,null,null,null,null,null,null,null,null,null,null,null,null,null,null,null,null,null,null,6378090,{"$f":"VLOOKUP(M529,#REF!,2,TRUE)*(BR529/1000000)","v":{"$error":"#REF!"}},{"$f":"VLOOKUP(M529,#REF!,3,TRUE)*(BR529/1000000)","v":{"$error":"#REF!"}}]
[null,2020,"No Award","Ventura Villas",null,"Hamilton",59840,null,null,"Ravalli",0.09,"Non-Profit","New Const","Family",30,null,6300000,5418000,null,null,null,null,null,null,null,null,null,null,"Echo Enterprises","Beki Brandborg","4835 Echo Drive","Helena","MT",59602,"beki@montana.com",4064312151,null,null,null,null,null,null,null,null,null,null,null,null,null,null,null,null,null,null,null,null,null,null,null,null,null,null,null,null,null,null,null,null,null,6963000,{"$f":"VLOOKUP(M530,#REF!,2,TRUE)*(BR530/1000000)","v":{"$error":"#REF!"}},{"$f":"VLOOKUP(M530,#REF!,3,TRUE)*(BR530/1000000)","v":{"$error":"#REF!"}}]
[null,2020,"No Award","Havre Hills",null,"Havre",59501,null,null,"Hill",0.09,"Non-Profit","New Const","Family",25,null,5950000,5130000,null,null,null,null,null,null,null,null,null,null,"AC Solutions / HRDC IV","Andrew Chanania","835 5th Ave","Helena","MT",59601,"chananiasolutions@gmail.com",7036091046,null,null,null,null,null,null,null,null,null,null,null,null,null,null,null,null,null,null,null,null,null,null,null,null,null,null,null,null,null,null,null,null,null,5961700,{"$f":"VLOOKUP(M531,#REF!,2,TRUE)*(BR531/1000000)","v":{"$error":"#REF!"}},{"$f":"VLOOKUP(M531,#REF!,3,TRUE)*(BR531/1000000)","v":{"$error":"#REF!"}}]
[null,2020,"No Award","Creekside Commons",null,"Kalispell",59901,null,null,"Flathead",0.09,"For-Profit","New Const","Senior",42,null,6200000,5362464,null,null,null,null,null,null,null,null,null,null,"Housing Solutions","Alex Burkhalter","PO Box 2099","Missoula","MT",59806,"alex@housing-solutions.org",4062031558,null,null,null,null,null,null,null,null,null,null,null,null,null,null,null,null,null,null,null,null,null,null,null,null,null,null,null,null,null,null,null,null,null,6848277,{"$f":"VLOOKUP(M532,#REF!,2,TRUE)*(BR532/1000000)","v":{"$error":"#REF!"}},{"$f":"VLOOKUP(M532,#REF!,3,TRUE)*(BR532/1000000)","v":{"$error":"#REF!"}}]
[null,2021,"No Award","Garfield Flats",null,"Billings",null,null,null,"Yellowstone",0.09,"Non-Profit","New Const","Family",18,null,3500000,3080000,null,null,null,null,null,null,null,null,null,null,"HAB/Homeword Inc","Heather McMilan",null,"Missoula","MT",59801,"heather@homeword.org",4065324663,null,null,null,null,null,null,null,null,null,null,null,null,null,null,null,null,null,null,null,null,null,null,null,null,null,null,null,null,null,null,null,null,null,3895015,{"$f":"VLOOKUP(M533,#REF!,2,TRUE)*(BR533/1000000)","v":{"$error":"#REF!"}},{"$f":"VLOOKUP(M533,#REF!,3,TRUE)*(BR533/1000000)","v":{"$error":"#REF!"}}]
[null,2021,"No Award","Washoe Place",null,"Butte",null,null,null,"Silver Bow",0.09,"For-Profit","New Const","Senior",36,null,6435000,5565718,null,null,null,null,null,null,null,null,null,null,"Housing Solutions","Alex Burkhalter",null,"Missoula","MT",59806,"alex@housing-solutions.org",4062031558,null,null,null,null,null,null,null,null,null,null,null,null,null,null,null,null,null,null,null,null,null,null,null,null,null,null,null,null,null,null,null,null,null,6992918,{"$f":"VLOOKUP(M534,#REF!,2,TRUE)*(BR534/1000000)","v":{"$error":"#REF!"}},{"$f":"VLOOKUP(M534,#REF!,3,TRUE)*(BR534/1000000)","v":{"$error":"#REF!"}}]
[null,2021,"No Award","Oakwood Village",null,"Havre",null,null,null,"Hill",0.09,"Non-Profit","Acq/Rehab","Family",60,null,800000,7659932,null,null,null,null,null,null,null,null,null,null,"Affiliated Develors","Kirk Bruce",null,"Berkley","MI",48072,"kirk@a-developers.com","(248) 268-3289",null,null,null,null,null,null,null,null,null,null,null,null,null,null,null,null,null,null,null,null,null,null,null,null,null,null,null,null,null,null,null,null,null,7659932,{"$f":"VLOOKUP(M535,#REF!,2,TRUE)*(BR535/1000000)","v":{"$error":"#REF!"}},{"$f":"VLOOKUP(M535,#REF!,3,TRUE)*(BR535/1000000)","v":{"$error":"#REF!"}}]
[null,2021,"No Award","Hardin Senior Housing",null,"Hardin",null,null,null,"Big Horn",0.09,"Non-Profit","Acq/Rehab","Senior",24,null,3735630,3175287,null,null,null,null,null,null,null,null,null,null,"American Covenant Sr Hsing","Gerald Fritts",null,"Kalispell","MT",59901,"gmf@acshf.com",4062356593,null,null,null,null,null,null,null,null,null,null,null,null,null,null,null,null,null,null,null,null,null,null,null,null,null,null,null,null,null,null,null,null,null,4521369,{"$f":"VLOOKUP(M536,#REF!,2,TRUE)*(BR536/1000000)","v":{"$error":"#REF!"}},{"$f":"VLOOKUP(M536,#REF!,3,TRUE)*(BR536/1000000)","v":{"$error":"#REF!"}}]
[null,2021,"No Award","Harmony Meadows",null,"Billings",null,null,null,"Yellowstone",0.09,"For-Profit","New Const","Family",30,null,6250000,5405709,null,null,null,null,null,null,null,null,null,null,"Housing Solutions","Alex Burkhalter",null,"Missoula","MT",59806,"alex@housing-solutions.org",4062031558,null,null,null,null,null,null,null,null,null,null,null,null,null,null,null,null,null,null,null,null,null,null,null,null,null,null,null,null,null,null,null,null,null,6886666,{"$f":"VLOOKUP(M537,#REF!,2,TRUE)*(BR537/1000000)","v":{"$error":"#REF!"}},{"$f":"VLOOKUP(M537,#REF!,3,TRUE)*(BR537/1000000)","v":{"$error":"#REF!"}}]
[null,2021,"No Award","Gateway Vista II",null,"Billings",null,null,null,"Yellowstone",0.09,"Non-Profit","New Const","Family",32,null,6435000,5662234,null,null,null,null,null,null,null,null,null,null,"YWCA Billings","Merry Lee Olson",null,"Billings","MT",59101,"ceo@ywcabillings.org","(406) 252-6303",null,null,null,null,null,null,null,null,null,null,null,null,null,null,null,null,null,null,null,null,null,null,null,null,null,null,null,null,null,null,null,null,null,6895028,{"$f":"VLOOKUP(M538,#REF!,2,TRUE)*(BR538/1000000)","v":{"$error":"#REF!"}},{"$f":"VLOOKUP(M538,#REF!,3,TRUE)*(BR538/1000000)","v":{"$error":"#REF!"}}]
[null,2021,"No Award","Kalispell Family 9%",null,"Kalispell",null,null,null,"Flathead",0.09,"For-Profit","New Const","Family",24,null,6435000,5352835,null,null,null,null,null,null,null,null,null,null,"GMD/Homeword","Steve Demoke",null,"Seattle","WA",98101,"steve@gmddevelopment.com","(206) 745-6464",null,null,null,null,null,null,null,null,null,null,null,null,null,null,null,null,null,null,null,null,null,null,null,null,null,null,null,null,null,null,null,null,null,6794354,{"$f":"VLOOKUP(M539,#REF!,2,TRUE)*(BR539/1000000)","v":{"$error":"#REF!"}},{"$f":"VLOOKUP(M539,#REF!,3,TRUE)*(BR539/1000000)","v":{"$error":"#REF!"}}]
[null,2021,"No Award","Kalispell Family 4%",null,"Kalispell",null,null,null,"Flathead",0.04,"For-Profit","New Const","Family",72,null,3751190,3600237,null,null,null,null,null,null,null,null,null,null,"GMD/Homeword","Steve Demoke",null,"Seattle","WA",98101,"steve@gmddevelopment.com","(206) 745-6464",null,null,null,null,null,null,null,null,null,null,null,null,null,null,null,null,null,null,null,null,null,null,null,null,null,null,null,null,null,null,null,null,null,13000543,{"$f":"VLOOKUP(M540,#REF!,2,TRUE)*(BR540/1000000)","v":{"$error":"#REF!"}},{"$f":"VLOOKUP(M540,#REF!,3,TRUE)*(BR540/1000000)","v":{"$error":"#REF!"}}]
[null,2021,"No Award","Tower Commons",null,"Browning",null,null,null,"Glacier",0.09,"Tribal","New Const","Family",30,null,6192635,5015763,null,null,null,null,null,null,null,null,null,null,"Blackfeet Housing ","Joe Gervais",null,"Browning","MT",59417,"jgervais@blackfeethousing.org","(406) 450-5538",null,null,null,null,null,null,null,null,null,null,null,null,null,null,null,null,null,null,null,null,null,null,null,null,null,null,null,null,null,null,null,null,null,5754849,{"$f":"VLOOKUP(M541,#REF!,2,TRUE)*(BR541/1000000)","v":{"$error":"#REF!"}},{"$f":"VLOOKUP(M541,#REF!,3,TRUE)*(BR541/1000000)","v":{"$error":"#REF!"}}]
[null,2022,"No Award","Valley Court Apts",null,"Glasgow",null,null,null,"Valley",0.09,"For-Profit","Acq Rehab","Family",12,null,2960000,null,null,null,null,null,null,null,null,null,null,null,"Echo Enterprises","Beki Brandborg",null,"Helena","MT",null,"beki@montana.com","406.256.3002"]
[null,2022,"No Award","River Ridge Apts",null,"Kalispell",null,null,null,"Flathead",0.09,"For-Profit","New","Family",30,null,6400000,null,null,null,null,null,null,null,null,null,null,null,"Summit Housing Group","Paul Capps ",null,"Missoula","MT",null,"Paul@Summithousinggroup.com","406.431.2151"]
[null,2022,"No Award","South Lake Apts",null,"West Yellowstone",null,null,null,"Gallatin",0.09,"For-Profit","Acq Rehab","Family",20,null,5391600,null,null,null,null,null,null,null,null,null,null,null,"Cordes Development","Shawne Mastronardi",null,"Aurora","CO",null,"team.cordes@earthlink.net","406.322.3337"]
[null,2022,"No Award","Yellowstone Plaza",null,"Belgrade",null,null,null,"Gallatin",0.09,"For-Profit","New","Family",30,null,6400000,null,null,null,null,null,null,null,null,null,null,null,"Boundary Dev and HRDC","Joseph Walsh",null,"Portland","OR",null,"joe@boundarydev.com","914.441.3880"]
[null,2022,"No Award","Grant Creek Commons",null,"Missoula",null,null,null,"Missoula",0.09,"For-Profit","New","Family",32,null,6491250,null,null,null,null,null,null,null,null,null,null,null,"Ryan Jones Consulting","Ryan Jones",null,"Boulder ","CO",null,"ryan@rchjoneshousing.com","503.784.9411"]
[null,2022,"No Award","Polson Shores",null,"Polson",null,null,null,"Lake",0.09,"For-Profit","New","Senior",30,null,6491250,null,null,null,null,null,null,null,null,null,null,null,"Housing Solutions","Alex Burkhalter",null,"Missoula","MT",null,"alex@housing-solutions.org","303.305.8128"]
[null,2022,"No Award FA","Hardin Senior Hsing (resyd of Rangeview Apts)",null,"Hardin",null,null,null,"Big Horn",0.09,"Non-profit","Acq Rehab","Senior",24,null,4438010,null,null,null,null,null,null,null,null,{"$f":"DATE(YEAR(W548)+14,MONTH(W548),DAY(W548))","v":{"$error":"#NUM!"}},null,{"$f":"DATE(YEAR(Z548)+AA548,MONTH(Z548),DAY(Z548))","v":{"$error":"#NUM!"}},"Oak Leaf Community Dev","Gerald Fritts",null,"Kalispell","MT",null,"gmf@acshf.com",4065324663,null,null,null,null,null,null,null,null,null,null,{"$f":"SUM(AV548:BE548)","v":0},null,null,null,null,null,null,null,null,null,null,null,null,null,null,null,null,null,null,null,null,{"$f":"SUM(BH548:BO548)","v":0}]
[null,2022,"No Award FA","Cabinet Aff Housing",null,"Libby",null,null,null,"Lincoln",0.09,"Non-profit","New Const","Family",24,null,6491000,null,null,null,null,null,null,null,null,{"$f":"DATE(YEAR(W549)+14,MONTH(W549),DAY(W549))","v":{"$error":"#NUM!"}},null,{"$f":"DATE(YEAR(Z549)+AA549,MONTH(Z549),DAY(Z549))","v":{"$error":"#NUM!"}},"ACSHF / Comm Action","Gerald Fritts",null,"Kalispell","MT",null,"gmf@acshf.com",4062356593,null,null,null,null,null,null,null,null,null,null,{"$f":"SUM(AV549:BE549)","v":0},null,null,null,null,null,null,null,null,null,null,null,null,null,null,null,null,null,null,null,null,{"$f":"SUM(BH549:BO549)","v":0}]
[null,2022,"No Award FA","Carter Commons","500 3rd St South","Great Falls",59405,47.499870000000001,-111.30262999999999,"Cascade",0.09,"For-Profit","New Const","Senior",36,null,6491250,null,null,null,null,null,null,null,null,{"$f":"DATE(YEAR(W550)+14,MONTH(W550),DAY(W550))","v":{"$error":"#NUM!"}},null,{"$f":"DATE(YEAR(Z550)+AA550,MONTH(Z550),DAY(Z550))","v":{"$error":"#NUM!"}},"Housing Solutions","Alex Burkhalter","PO Box 2099","Missoula","MT",59806,"alex@housing-solutions.org",4062031558,null,null,null,null,null,null,null,null,null,null,{"$f":"SUM(AV550:BE550)","v":0},null,null,null,null,null,null,null,null,null,null,"AI",null,null,null,{"$f":"19+12+7","v":38},{"$f":"19+12+8","v":39},{"$f":"19+11+6","v":36},null,null,1,{"$f":"SUM(BH550:BO550)","v":114},{"$f":"((BH550*BH$1)+(BI550*BI$1)+(BJ550*BJ$1)+(BK550*BK$1)+(BL550*BL$1)+(BM550*BM$1))/SUM(BH550:BM550)","v":0.59823008849557513}]
["2022-05-17",2023,"No Award LOI","Valley Court Apartments",null,"Glasgow",null,null,null,"Valley",0.09,"For-Profit","Acq/Rehab","Family",12,null,3490000,2995000,null,null,null,null,null,null,null,null,null,null,"Echo Enterprises",null,null,"Helena",null,null,"beki@montana.com",4064312151,null,null,null,null,null,null,null,null,null,null,null,null,null,null,null,null,null,null,null,null,null,null,null,null,null,null,null,null,null,null,null,null,null,3360000,{"$f":"VLOOKUP(M551,#REF!,2,TRUE)*(BR551/1000000)","v":{"$error":"#REF!"}},{"$f":"VLOOKUP(M551,#REF!,3,TRUE)*(BR551/1000000)","v":{"$error":"#REF!"}}]
["2022-05-17",2023,"No Award LOI","Bigfork Senior Housing",null,"Bigfork",null,null,null,"Flathead",0.09,"Non Profit","Acq/Rehab","Senior",24,null,3594600,3055104,null,null,null,null,null,null,null,null,null,null,"Oakleaf Community",null,null,"Kalispell",null,null,"gmf@acshf.com",4062356593,null,null,null,null,null,null,null,null,null,null,null,null,null,null,null,null,null,null,null,null,null,null,null,null,null,null,null,null,null,null,null,null,null,5536597,{"$f":"VLOOKUP(M552,#REF!,2,TRUE)*(BR552/1000000)","v":{"$error":"#REF!"}},{"$f":"VLOOKUP(M552,#REF!,3,TRUE)*(BR552/1000000)","v":{"$error":"#REF!"}}]
["2022-05-17",2023,"No Award LOI","Cherry Orchard",null,"Kalispell",null,null,null,"Flathead",0.09,"For-Profit","Acq/Rehab","Senior",24,null,6180000,5437856,null,null,null,null,null,null,null,null,null,null,"GL Development",null,null,"Helena",null,null,"gleuwer1139@msn.com",4064595332,null,null,null,null,null,null,null,null,null,null,null,null,null,null,null,null,null,null,null,null,null,null,null,null,null,null,null,null,null,null,null,null,null,6707856,{"$f":"VLOOKUP(M553,#REF!,2,TRUE)*(BR553/1000000)","v":{"$error":"#REF!"}},{"$f":"VLOOKUP(M553,#REF!,3,TRUE)*(BR553/1000000)","v":{"$error":"#REF!"}}]
["2022-05-17",2023,"No Award LOI","Centennial Village",null,"Great Falls",null,null,null,"Cascade",0.09,"Non-Profit","Acq/Rehab","Family",48,null,6500000,5589441,null,null,null,null,null,null,null,null,null,null,"Community Preservation Ptrs",null,null,"Irvine",null,null,"kbuckland@cpp-housing.com",9492466083,null,null,null,null,null,null,null,null,null,null,null,null,null,null,null,null,null,null,null,null,null,null,null,null,null,null,null,null,null,null,null,null,null,10555046,{"$f":"VLOOKUP(M554,#REF!,2,TRUE)*(BR554/1000000)","v":{"$error":"#REF!"}},{"$f":"VLOOKUP(M554,#REF!,3,TRUE)*(BR554/1000000)","v":{"$error":"#REF!"}}]
["2022-05-17",2023,"No Award LOI","Junegrass Place 9%",null,"Kalispell",null,null,null,"Flathead",0.09,"Non-Profit","New Const","Family",null,null,950000,null,null,null,null,null,null,null,null,null,null,null,"GMD Development",null,null,"Seattle",null,null,"steve@gmddevelopment.com",2067456464]
["2022-10-24",2023,"FA-withdrawn","Yellowstone Plaza 9%",null,"Belgrade",null,null,null,"Gallatin",0.09,"Non-Profit","New Const","Family",30,null,6400000,5911217,null,null,null,null,null,null,null,null,null,null,"Boundary Dev / HRDC",null,null,"Bozeman",null,null,"crosby@boundarydev.com",7632483004,null,null,null,null,null,null,null,null,null,null,null,null,null,null,null,null,null,null,null,null,null,null,null,null,null,null,null,null,null,null,null,null,null,7700000,{"$f":"VLOOKUP(M556,#REF!,2,TRUE)*(BR556/1000000)","v":{"$error":"#REF!"}},{"$f":"VLOOKUP(M556,#REF!,3,TRUE)*(BR556/1000000)","v":{"$error":"#REF!"}}]
["2022-10-24",2023,"FA-withdrawn","Sage Grouse Homes",null,"Miles City",null,null,null,"Custer",0.09,"For-Profit","New Const","Family",26,null,6500000,5719428,null,null,null,null,null,null,null,null,null,null,"GL Development",null,null,"Helena",null,null,"gleuwer1139@msn.com",4064595332,null,null,null,null,null,null,null,null,null,null,null,null,null,null,null,null,null,null,null,null,null,null,null,null,null,null,null,null,null,null,null,null,null,7271252,{"$f":"VLOOKUP(M557,#REF!,2,TRUE)*(BR557/1000000)","v":{"$error":"#REF!"}},{"$f":"VLOOKUP(M557,#REF!,3,TRUE)*(BR557/1000000)","v":{"$error":"#REF!"}}]
["2022-10-17",2023,"No Award FA","Valley View Village","1619 Butte Ave","Helena",59601,46.592019999999998,-112.01248,"Lewis and Clark",0.09,"For-Profit","New Const","Senior",31,1,6500000,5524448,null,null,null,null,null,null,null,null,null,null,"Housing Solutions","Alex Burkhalter","PO Box 2099","Missoula","MT",59806,"alex@housing-solutions.org",4062031558,"Wilmot J. Collins Mayor","City of Helena","316 N Park Ave","Helena","MT",59623,"40% / 50% / 60%","wcollins@helenamt.gov",4064478410,null,{"$f":"SUM(AV558:BE558)","v":31},null,null,21,9,null,null,null,null,null,1,"40/60",null,null,3,23,4,null,null,null,1,{"$f":"SUM(BH558:BO558)","v":31},{"$f":"((BH558*BH$1)+(BI558*BI$1)+(BJ558*BJ$1)+(BK558*BK$1)+(BL558*BL$1)+(BM558*BM$1))/SUM(BH558:BM558)","v":0.5033333333333333},7351445,{"$f":"VLOOKUP(M558,#REF!,2,TRUE)*(BR558/1000000)","v":{"$error":"#REF!"}},{"$f":"VLOOKUP(M558,#REF!,3,TRUE)*(BR558/1000000)","v":{"$error":"#REF!"}}]
[null,2024,"No Award LOI","Polson Gardens",null,"Polson",null,null,null,"Lake County",0.09,"For-Profit","New","Senior",20,null,6300000,5354465,null,null,null,null,null,null,null,null,null,null,"Housing Solutions, LLC",null,null,"Missoula",null,"MT","alex@housing-solutions.org",null,null,null,null,null,null,null,"40/50/60",null,null,null,{"$f":"SUM(AV559:BE559)","v":20},null,null,9,10,null,null,null,null,null,1,"40/60",null,null,2,10,7,null,null,null,1,{"$f":"SUM(BH559:BO559)","v":20},{"$f":"((BH559*BH$1)+(BI559*BI$1)+(BJ559*BJ$1)+(BK559*BK$1)+(BL559*BL$1)+(BM559*BM$1))/SUM(BH559:BM559)","v":0.52631578947368418}]
[null,2024,"No Award FA","The Grand Apartments","120 West Broadway St","Butte",59701,46.01343,-112.53876,"Silver Bow",0.09,"For-Profit","Acq/Rehab","Family",29,1,6500000,5590000,null,null,3.8324999999999998E-2,16,null,null,null,null,null,null,"Summit Housing Group","Austin Richardson","2525 Palmer St STE 1","Missoula","MT",59808,"austinr@summithousinggroup.com",4068024487,"JP Gallagher Chief Executive","Butte Silver Bow","155 W Granite St","Butte","MT",59701,"40/50/60","jgallagher@bsb.mt.gov",4064976214,191,{"$f":"SUM(AV560:BE560)","v":29},null,4,12,13,null,null,null,null,null,null,"40/60",null,null,{"$f":"2+2+2","v":6},{"$f":"2+4+3","v":9},{"$f":"6+8","v":14},null,null,null,null,{"$f":"SUM(BH560:BO560)","v":29},{"$f":"((BH560*BH$1)+(BI560*BI$1)+(BJ560*BJ$1)+(BK560*BK$1)+(BL560*BL$1)+(BM560*BM$1))/SUM(BH560:BM560)","v":0.52758620689655178},8815023,{"$f":"VLOOKUP(M560,#REF!,2,TRUE)*(BR560/1000000)","v":{"$error":"#REF!"}},{"$f":"VLOOKUP(M560,#REF!,3,TRUE)*(BR560/1000000)","v":{"$error":"#REF!"}}]
[null,2024,"No Award FA","Bridge Apartments","1205 West Broadway St","Missoula",59802,46.877020000000002,-114.01130999999999,"Missoula",0.09,"For-Profit","Acq/Rehab","Family",20,1,3701410,3108870,null,null,null,null,null,null,null,null,null,null,"Blueline Development, Inc.","Jason Boal","1004 South Ave West","Missoula","MT",59801,"jason@bluelinedevelopment.com",4062144788,"Jason Hess Mayor","City of Missoula","435 Ryman St","Missoula ","MT",59802,30,"mayorstaff@ci.missoula.mt.us",4065526001,1119,{"$f":"SUM(AV561:BE561)","v":20},null,null,20,null,null,null,null,null,null,null,"40/60",null,20,null,null,null,null,null,null,null,{"$f":"SUM(BH561:BO561)","v":20},{"$f":"((BH561*BH$1)+(BI561*BI$1)+(BJ561*BJ$1)+(BK561*BK$1)+(BL561*BL$1)+(BM561*BM$1))/SUM(BH561:BM561)","v":0.3},4338864,{"$f":"VLOOKUP(M561,#REF!,2,TRUE)*(BR561/1000000)","v":{"$error":"#REF!"}},{"$f":"VLOOKUP(M561,#REF!,3,TRUE)*(BR561/1000000)","v":{"$error":"#REF!"}}]
[null,2024,"No Award FA","Timber Meadows","383 Hawk Dr","Polson",59860,47.693849999999998,-114.11333999999999,"Lake",0.09,"Non-Profit","New Const","Senior",24,1,6500000,5459454,null,null,null,null,null,null,null,null,null,null,"Immanuel Luth/CR Blders","Jason Cronk","185 Crestline Dr","Kalispell","MT",59901,"jcronk@ilcorp.org",4067529143,"Eric Huffine Mayor","City of Polson","106 1st St East","Polson","MT",59860,"30/50/60/mkt","mayor@cityofpolson.com",4068838205,139,{"$f":"SUM(AV562:BE562)","v":24},null,null,12,12,null,null,null,null,null,null,"40/60",null,{"$f":"2+2","v":4},null,{"$f":"7+7","v":14},{"$f":"1+1","v":2},null,null,4,null,{"$f":"SUM(BH562:BO562)","v":24},{"$f":"((BH562*BH$1)+(BI562*BI$1)+(BJ562*BJ$1)+(BK562*BK$1)+(BL562*BL$1)+(BM562*BM$1))/SUM(BH562:BM562)","v":0.46999999999999992},8120792,{"$f":"VLOOKUP(M562,#REF!,2,TRUE)*(BR562/1000000)","v":{"$error":"#REF!"}},{"$f":"VLOOKUP(M562,#REF!,3,TRUE)*(BR562/1000000)","v":{"$error":"#REF!"}}]
[null,2025,"FA-withdrawn","Eagle Seeker Housing",null,"Billings",null,null,null,"Yellowstone",0.09,"Non-Profit","New","Family",24,null,6500000,null,null,null,null,null,null,null,null,null,null,null,"Native Amer Dev / CR Builders","Leonard Smith",null,"Billings","MT",null,"lsmith@nadc-nabn.org",4062593804]